{"text_format":"1","workbook":"xlsx","n_sheets":7,"sheets":["FERIAS 3 DIAS","FERIAS DE 4 A 6 DIAS","Matriz de busqueda de los cod","FERIAS DE 7 DIAS EN ADELANTE","FORMULARIO SOLICITUD SERVICIOS","TARIFAS SERVICIOS","TERMINOS Y CONDICIONES"],"not_rendered":{"charts":0,"images":4,"macros":1,"external_links":0,"defined_names":2,"comments":0,"pivot_tables":0},"unopened":[],"bounds":{"document_bytes":16777216,"sheet_cells":100000,"rows_first":2000,"rows_last":500,"rows_between":2000,"halvings":0,"cell_chars":16384,"cell_head_chars":4096},"cells_cut":0,"cells_raw":0,"read":"whole","date_system":"1900"}

{"sheet":"FERIAS 3 DIAS","index":0,"n_rows":199,"n_cols":5,"rows_kept":199,"cut":false,"hidden":true,"merged":[]}
["CLAVE","CODIGO","DESCRIPCIÓN","VALOR"]
[{"$f":"CONCATENATE(B2:B199,\" \",C2:C199)","v":"3070101 Instalación Monofásica (Toma corriente doble, consumo hasta 2KW/110V) valor de 1 a 6 dias"},3070101,"Instalación Monofásica (Toma corriente doble, consumo hasta 2KW/110V) valor de 1 a 6 dias",364140,"Cenda vinculada"]
["3070103 Instalación kilovatio adicional monofásico (Debe contar con punto principal, MAX 2KW por punto)",3070103,"Instalación kilovatio adicional monofásico (Debe contar con punto principal, MAX 2KW por punto)",124593,3]
["3070102 Instalación trifásica (Regleta plastica, consumo hasta 4KW/208V)",3070102,"Instalación trifásica (Regleta plastica, consumo hasta 4KW/208V)",664734]
["3070104 Instalación kilovatio adicional trifásico (Debe contar con punto principal)",3070104,"Instalación kilovatio adicional trifásico (Debe contar con punto principal)",162673]
["3071372 De 21 a 50 kilovatios adicionales trifásicos (Valor por KW) (Debe contar con punto principal)",3071372,"De 21 a 50 kilovatios adicionales trifásicos (Valor por KW) (Debe contar con punto principal)",147917]
["3071373 De 51 a 100 kilovatios adicionales trifásicos (Valor por KW) (Debe contar con punto principal)",3071373,"De 51 a 100 kilovatios adicionales trifásicos (Valor por KW) (Debe contar con punto principal)",141372]
["3071374 Mas de100 kilovatios adicionales trifásicos (Valor por KW) (Debe contar con punto principal)",3071374,"Mas de100 kilovatios adicionales trifásicos (Valor por KW) (Debe contar con punto principal)",135541]
["3070402 Lampara de pared ajustable (150W/110V)",3070402,"Lampara de pared ajustable (150W/110V)",68663]
["3070405 Reflector Led (50W- mltV)",3070405,"Reflector Led (50W- mltV)",72352]
["3070403 Extensión – tomacorriente doble con polo a tierra (1500W/110V) MAX 6mts ",3070403,"Extensión – tomacorriente doble con polo a tierra (1500W/110V) MAX 6mts ",35581]
["3071345 Lavaplatos 90XL* 60XH* 90 (No incluye agua y desague) valor de 1 a 6 dias",3071345,"Lavaplatos 90XL* 60XH* 90 (No incluye agua y desague) valor de 1 a 6 dias",163149]
["3070301 Punto de Agua en 1/2\" (incluye consumo) valor de 1 a 6 dias",3070301,"Punto de Agua en 1/2\" (incluye consumo) valor de 1 a 6 dias",348075]
["3070302 Desagüe en 1 1/2\" Por toda la feria (Ubicación asignada por Corferias en su stand) valor de 1 a 6 dias",3070302,"Desagüe en 1 1/2\" Por toda la feria (Ubicación asignada por Corferias en su stand) valor de 1 a 6 dias",322252]
["3071341 Aire comprimido para punto con presión máx. de 100 PSI, y caudal máx. 35CFM. valor de 1 a 6 dias",3071341,"Aire comprimido para punto con presión máx. de 100 PSI, y caudal máx. 35CFM. valor de 1 a 6 dias",444108]
["3070307 Punto de Agua en 1/2\" (Incluye consumo)  + Desagüe en 1 1/2\" + Lavaplatos valor de 1 a 6 dias",3070307,"Punto de Agua en 1/2\" (Incluye consumo)  + Desagüe en 1 1/2\" + Lavaplatos valor de 1 a 6 dias",750057]
["3071321 Punto de gas propano para UN (1) equipo de máximo 4 quemadores valor de 1 a 6 dias",3071321,"Punto de gas propano para UN (1) equipo de máximo 4 quemadores valor de 1 a 6 dias",395080]
["3071368 Quemador adicional (unidad), debe contar con punto de gas valor de 1 a 6 dias ",3071368,"Quemador adicional (unidad), debe contar con punto de gas valor de 1 a 6 dias ",80563]
["3070601 Panel adicional sistema cfe 100cm x 240cm",3070601,"Panel adicional sistema cfe 100cm x 240cm",36652]
["3070801 Puerta sistema cfe 90cm x 240cm",3070801,"Puerta sistema cfe 90cm x 240cm",90797]
["3070803 Bodega estándar con puerta 150cm x 150cm (Sistema Corferias)",3070803,"Bodega estándar con puerta 150cm x 150cm (Sistema Corferias)",144823]
["3071319 Brazo Mecánico por Fracciòn de 15 min (Solo para primer nivel)",3071319,"Brazo Mecánico por Fracciòn de 15 min (Solo para primer nivel)",72709]
["3071319 Brazo Mecánico por Fracciòn de 30 min (Solo para primer nivel)",3071319,"Brazo Mecánico por Fracciòn de 30 min (Solo para primer nivel)",134946]
["3071319 Brazo Mecánico por Fracciòn de 45 min (Solo para primer nivel)",3071319,"Brazo Mecánico por Fracciòn de 45 min (Solo para primer nivel)",207655]
["3071319 Brazo Mecánico por Fracciòn de 60 min (Solo para primer nivel)",3071319,"Brazo Mecánico por Fracciòn de 60 min (Solo para primer nivel)",249186]
["3070413 Diferencial (Cap. 1 Ton.) + Brazo mecánico (Montaje y desmontaje) ",3070413,"Diferencial (Cap. 1 Ton.) + Brazo mecánico (Montaje y desmontaje) ",467313]
["3070414 Plataforma Tijera eléctrica por Fracciòn /30 min (Uso para segundos niveles)",3070414,"Plataforma Tijera eléctrica por Fracciòn /30 min (Uso para segundos niveles)",81396]
["3071418 Servicio de Internet Cableado \"PARA UN EQUIPO - DURANTE UN DÍA\"  ",3071418,"Servicio de Internet Cableado \"PARA UN EQUIPO - DURANTE UN DÍA\"  ",74970]
["3071419 Clave de acceso para la red WiFi  \"PARA UN EQUIPO - DURANTE UN DÍA\"",3071419,"Clave de acceso para la red WiFi  \"PARA UN EQUIPO - DURANTE UN DÍA\"",74970]
["3071417 Servicio de Internet Cableado \"PARA UN EQUIPO - DURANTE TODA LA FERIA\" valor de 3 dias",3071417,"Servicio de Internet Cableado \"PARA UN EQUIPO - DURANTE TODA LA FERIA\" valor de 3 dias",180404]
["3071420 Clave de acceso para la Red WiFi \"PARA UN EQUIPO - DURANTE TODA LA FERIA\" valor de 3 dias",3071420,"Clave de acceso para la Red WiFi \"PARA UN EQUIPO - DURANTE TODA LA FERIA\" valor de 3 dias",180404]
["3071423 Conexión para Datafono + Clave de acceso WIFI (Para un equipo durante toda la feria) valor de 3 dias ",3071423,"Conexión para Datafono + Clave de acceso WIFI (Para un equipo durante toda la feria) valor de 3 dias ",289765]
["3071424 Conexión para Datafono + Servicio de Internet Cableado (Para un equipo durante toda la feria) valor de 3 dias ",3071424,"Conexión para Datafono + Servicio de Internet Cableado (Para un equipo durante toda la feria) valor de 3 dias ",289765]
["3071425 Servicio de Internet Cableado + Clave de acceso WIFI (Para un equipo durante toda la feria) valor de 3 dias ",3071425,"Servicio de Internet Cableado + Clave de acceso WIFI (Para un equipo durante toda la feria) valor de 3 dias ",324751]
["3071437 Internet Dedicado: Si requiere conexión banda ancha para diferentes servicios o redes locales, contáctese con serviciosplus@corferias.com para brindarle asesoria y cotización.",3071437,"Internet Dedicado: Si requiere conexión banda ancha para diferentes servicios o redes locales, contáctese con serviciosplus@corferias.com para brindarle asesoria y cotización.","Según cotización"]
["3071406 Instalación Punto de Red:Incluye un cable UTP por punto",3071406,"Instalación Punto de Red:Incluye un cable UTP por punto",89012]
["3071407 Switch VALOR POR FERIA ",3071407,"Switch VALOR POR FERIA ",85680]
["3071402 Servicio de VLAN: Servicio virtual de red.  VALOR POR FERIA",3071402,"Servicio de VLAN: Servicio virtual de red.  VALOR POR FERIA",349979]
["3071430 Extension LAN VALOR POR FERIA  (Incluye punto de red y aplica para extender el servicio de internet contratado con terceros)",3071430,"Extension LAN VALOR POR FERIA  (Incluye punto de red y aplica para extender el servicio de internet contratado con terceros)",1113245]
["3071442 Soporte técnico permanente (Por espacio de 8 horas) de un técnico. VALOR DÍARIO ",3071442,"Soporte técnico permanente (Por espacio de 8 horas) de un técnico. VALOR DÍARIO ",243474]
["3070202 Servicio Telefónico Urbano con Aparato (Incluye consumo local ilimitado)",3070202,"Servicio Telefónico Urbano con Aparato (Incluye consumo local ilimitado)",42483]
["3070203 Servicio Telefónico Larga Distancia con aparato",3070203,"Servicio Telefónico Larga Distancia con aparato",42483]
["3070201 Línea Externa no conmutada (Previa solicitud a Etb, Claro, EPM, Colomsat u otro operador)",3070201,"Línea Externa no conmutada (Previa solicitud a Etb, Claro, EPM, Colomsat u otro operador)",120071]
["3070207 Conexión cableada para Datafono:(No incluye Datafono)",3070207,"Conexión cableada para Datafono:(No incluye Datafono)",124593]
["3070942 Kit básico Pino 1 (1 mesa pleglable pino, 3 sillas acrilicas k negra)",3070942,"Kit básico Pino 1 (1 mesa pleglable pino, 3 sillas acrilicas k negra)",187306]
["3071105 KIT básico oficina 2 (2 sillas interlocutoras, 1 silla ejecutiva, 1 mesa oficina)",3071105,"KIT básico oficina 2 (2 sillas interlocutoras, 1 silla ejecutiva, 1 mesa oficina)",222411]
["3071036 Mesa plegable plastico + 2 sillas interlocutoras",3071036,"Mesa plegable plastico + 2 sillas interlocutoras",171836]
["3071039 Mesa alta Daysa + 2 sillas neumaticas altas marsella",3071039,"Mesa alta Daysa + 2 sillas neumaticas altas marsella",228599]
["3071054 Mesa estandar lotus vidrio + 2 sillas tipo huevo",3071054,"Mesa estandar lotus vidrio + 2 sillas tipo huevo",249781]
["3071002 Silla Acrílica k negra (85cm x 49cm x 47cm)",3071002,"Silla Acrílica k negra (85cm x 49cm x 47cm)",41769]
["3071078 Silla con Espaldar Arles (75cm x 38cm x39cm)",3071078,"Silla con Espaldar Arles (75cm x 38cm x39cm)",61761]
["30713198 Silla Gerencial (119cm x 67cm x 78cm)",30713198,"Silla Gerencial (119cm x 67cm x 78cm)",145418]
["3071081 Silla Ejecutiva (79cm x 53cm x 42cm)",3071081,"Silla Ejecutiva (79cm x 53cm x 42cm)",70567]
["3071061 Silla estandar Suiza (48cm x 46cm x 45cm)",3071061,"Silla estandar Suiza (48cm x 46cm x 45cm)",64617]
["3071008 Silla estandar Tipo Huevo (48cm x 46cm x 45cm)",3071008,"Silla estandar Tipo Huevo (48cm x 46cm x 45cm)",64617]
["3071006 Silla Interlocutora Negra (79cm x 53cm x 42cm)",3071006,"Silla Interlocutora Negra (79cm x 53cm x 42cm)",46410]
["3071022 Silla Neumatica alta Versalles (80cm x 40 cm x 40cm",3071022,"Silla Neumatica alta Versalles (80cm x 40 cm x 40cm",97580]
["3071077 Silla Neumática alta Marsella (80cm x 40cm x 40cm)",3071077,"Silla Neumática alta Marsella (80cm x 40cm x 40cm)",77588]
["3071092 Silla Neumatica alta POP (Blanca o negra) (80cm x 43cm x 40cm)",3071092,"Silla Neumatica alta POP (Blanca o negra) (80cm x 43cm x 40cm)",76755]
["3070503 Estantería Polo (Melaminico)   (100cm x 93cm x 35cm)",3070503,"Estantería Polo (Melaminico)   (100cm x 93cm x 35cm)",170527]
["3070503 Estantería Polo (Miel)  (100cm x 93cm x 35cm)",3070503,"Estantería Polo (Miel)  (100cm x 93cm x 35cm)",170527]
["3070503 Estantería Polo (Rovere)  (100cm x 93cm x 35cm)",3070503,"Estantería Polo (Rovere)  (100cm x 93cm x 35cm)",170527]
["3070503 Estantería Polo (Roble Gris)  (100cm x 93cm x 35cm)",3070503,"Estantería Polo (Roble Gris)  (100cm x 93cm x 35cm)",170527]
["3071108 Estantería Shelf 4E (190cm x 125cm x 41cm)",3071108,"Estantería Shelf 4E (190cm x 125cm x 41cm)",142086]
["3071107 Archivador Regina (70cm x 37cm x50cm)",3071107,"Archivador Regina (70cm x 37cm x50cm)",148274]
["3070954 Counter Mónaco (Melaminico) (100cm x 100cm x 40cm)",3070954,"Counter Mónaco (Melaminico) (100cm x 100cm x 40cm)",160531]
["3070954 Counter Mónaco (Miel) (100cm x 100cm x 40cm)",3070954,"Counter Mónaco (Miel) (100cm x 100cm x 40cm)",160531]
["3070954 Counter Mónaco (Rovere) (100cm x 100cm x 40cm)",3070954,"Counter Mónaco (Rovere) (100cm x 100cm x 40cm)",160531]
["3070954 Counter Mónaco (Roble Gris) (100cm x 100cm x 40cm)",3070954,"Counter Mónaco (Roble Gris) (100cm x 100cm x 40cm)",160531]
["3070535 Vitrina Isla 2E (200cm x 50cm x 50cm)",3070535,"Vitrina Isla 2E (200cm x 50cm x 50cm)",232526]
["3070517 Vitrina Mostrador 1E (100cm x 100cm x 40cm)",3070517,"Vitrina Mostrador 1E (100cm x 100cm x 40cm)",200634]
["3070518 Vitrina Mostrador Tipo 2 1E (100cm x 50 cm x 40cm)",3070518,"Vitrina Mostrador Tipo 2 1E (100cm x 50 cm x 40cm)",200634]
["3071111 Vitrina Rectangular 2E (200cm x 100cm x 40cm)",3071111,"Vitrina Rectangular 2E (200cm x 100cm x 40cm)",268702]
["30713199 Vitrina Rectangular 3E (180cm x 100cm x 40cm)",30713199,"Vitrina Rectangular 3E (180cm x 100cm x 40cm)",268702]
["3071115 Mesa alta Daysa (Melaminico) (100cm x 60cm)",3071115,"Mesa alta Daysa (Melaminico) (100cm x 60cm)",98889]
["3071115 Mesa alta Daysa (Miel) (100cm x 60cm)",3071115,"Mesa alta Daysa (Miel) (100cm x 60cm)",98889]
["3071115 Mesa alta Daysa (Rovere) (100cm x 60cm)",3071115,"Mesa alta Daysa (Rovere) (100cm x 60cm)",98889]
["3071115 Mesa alta Daysa (Roble Gris) (100cm x 60cm)",3071115,"Mesa alta Daysa (Roble Gris) (100cm x 60cm)",98889]
["3071093 Mesa alta Daysa vidrio (100cm x 60cm)",3071093,"Mesa alta Daysa vidrio (100cm x 60cm)",111265]
["3071104 Mesa Centro 2 Niveles (melaminico) (50cm x 60cm x 60)",3071104,"Mesa Centro 2 Niveles (melaminico) (50cm x 60cm x 60)",80087]
["3071100 Mesa Centro Circular doble nivel (melaminico) (50cm x 110cm x 60cm)",3071100,"Mesa Centro Circular doble nivel (melaminico) (50cm x 110cm x 60cm)",110075]
["3071068 Mesa Centro Rectangular doble nivel (melaminico) (50cm x 75cm x 50cm) ",3071068,"Mesa Centro Rectangular doble nivel (melaminico) (50cm x 75cm x 50cm) ",80087]
["3071097 Mesa estandar Daysa (76cm x 60cm)",3071097,"Mesa estandar Daysa (76cm x 60cm)",98889]
["3071116 Mesa estandar Lotus (70cm x 64cm x 81cm)",3071116,"Mesa estandar Lotus (70cm x 64cm x 81cm)",148274]
["3071098 Mesa estandar Shia (76cm x 60cm x 60cm)",3071098,"Mesa estandar Shia (76cm x 60cm x 60cm)",98889]
["30713200 Mesa Oficina (78cm x 120cm x 50cm)",30713200,"Mesa Oficina (78cm x 120cm x 50cm)",124593]
["3070936 Mesón plegable plástico (Gris o blanco) (73cm x 182cm x 76cm)",3070936,"Mesón plegable plástico (Gris o blanco) (73cm x 182cm x 76cm)",98056]
["3070904 Mesón plegable pino (75cm x 120cm x 60cm)",3070904,"Mesón plegable pino (75cm x 120cm x 60cm)",98056]
["3071113 Sala Osaka (1 sofá Toronto, 2 puffs Donna, 1 mesa centro 2 niveles)",3071113,"Sala Osaka (1 sofá Toronto, 2 puffs Donna, 1 mesa centro 2 niveles)",432446]
["3071095 Sala VIP (1 sofá Victoria derecho, 1 sofá Victoria izquierdo, 2 poltronas, 1 mesa centro 2 niveles)",3071095,"Sala VIP (1 sofá Victoria derecho, 1 sofá Victoria izquierdo, 2 poltronas, 1 mesa centro 2 niveles)",716737]
["3071090 Puff estandar cuadrado (43cm x 43cm x 43cm)",3071090,"Puff estandar cuadrado (43cm x 43cm x 43cm)",51765]
["3071091 Puff Trunk 2 cuerpos (48cm x 81cm x 40cm)",3071091,"Puff Trunk 2 cuerpos (48cm x 81cm x 40cm)",98889]
["3071114 Puff Trunk 3 cuerpos (48cm x 120cm x 54cm)",3071114,"Puff Trunk 3 cuerpos (48cm x 120cm x 54cm)",98889]
["3071085 Sofa Otawa 2 cuerpos (85cm x 120cm x 76cm)",3071085,"Sofa Otawa 2 cuerpos (85cm x 120cm x 76cm)",197659]
["3071083 Sofa Toronto 3 cuerpos (88cm x 173cm x 80cm)",3071083,"Sofa Toronto 3 cuerpos (88cm x 173cm x 80cm)",210035]
["3071031 Sofa Terranova 2 cuerpos (88cm x 173cm x 80cm)",3071031,"Sofa Terranova 2 cuerpos (88cm x 173cm x 80cm)",210035]
["3071013 Sofa Victoria derecho (70cm x 100cm x 75cm)",3071013,"Sofa Victoria derecho (70cm x 100cm x 75cm)",170646]
["3071023 Sofa Victoria izquierdo (70cm x 100cm x 75cm)",3071023,"Sofa Victoria izquierdo (70cm x 100cm x 75cm)",170646]
["30713201 Poltrona Buggy (72cm x 64cm)",30713201,"Poltrona Buggy (72cm x 64cm)",145418]
["3071059 Poltrona Levis (73cm x 86cm x 78cm)",3071059,"Poltrona Levis (73cm x 86cm x 78cm)",185402]
["3071302 Papelera metálica",3071302,"Papelera metálica",23443]
["3071325 Poste separador 120cm de alto",3071325,"Poste separador 120cm de alto",46291]
["3070714 Cubo de exhibición (40cm x 40cm x 25cm)",3070714,"Cubo de exhibición (40cm x 40cm x 25cm)",33439]
["3070957 Pedestal cuadrado (30cm x 30cm x 30cm)",3070957,"Pedestal cuadrado (30cm x 30cm x 30cm)",32249]
["3070956 Pedestal rectangular 60cm (30cm x 60cm x 30cm)",3070956,"Pedestal rectangular 60cm (30cm x 60cm x 30cm)",37128]
["3070955 Pedestal rectangular 90cm (30cm x 90cm x 30cm)",3070955,"Pedestal rectangular 90cm (30cm x 90cm x 30cm)",42126]
["3071370 Revistero plegable (140cm x 25cm x 29cm)",3071370,"Revistero plegable (140cm x 25cm x 29cm)",73661]
["3070505 Tarima 120x120x60, (Previa verificación con área de montaje)",3070505,"Tarima 120x120x60, (Previa verificación con área de montaje)",43197]
["3071388 Módulo de carga 20 puntos 110V",3071388,"Módulo de carga 20 puntos 110V",247163]
["3071375 Planta + matera plástica (Pequeña)",3071375,"Planta + matera plástica (Pequeña)",24514]
["3071376 Planta + matera plástica (Mediana)",3071376,"Planta + matera plástica (Mediana)",55216]
["3071377 Planta + matera plástica (Grande)",3071377,"Planta + matera plástica (Grande)",70448]
["3071378 Jardinera en madera + 3 Plantas grandes",3071378,"Jardinera en madera + 3 Plantas grandes",119357]
["3071379 Jardinera en madera + 3 Plantas medianas",3071379,"Jardinera en madera + 3 Plantas medianas",96509]
["3071380 Jardinera en madera + 7 Plantas pequeñas",3071380,"Jardinera en madera + 7 Plantas pequeñas",99365]
["3071381 Cajoneras con flores",3071381,"Cajoneras con flores",185402]
["3071314 Grandes (61cm x 120cm)",3071314,"Grandes (61cm x 120cm)",37723]
["3071301 Medianas (31cm x 120cm)",3071301,"Medianas (31cm x 120cm)",29750]
["3071317 Pequeñas (10cm x 30cm)",3071317,"Pequeñas (10cm x 30cm)",13209]
["3071382 Suculentas (10cm x 15cm)",3071382,"Suculentas (10cm x 15cm)",13209]
["3071383 Chamizos",3071383,"Chamizos",13209]
["3071355 De barro grande",3071355,"De barro grande",36533]
["3071356 De barro mediana",3071356,"De barro mediana",28441]
["3071384 De barro pequeña",3071384,"De barro pequeña",12614]
["3071357 Plástica grande",3071357,"Plástica grande",36533]
["3071358 Plástica mediana",3071358,"Plástica mediana",28441]
["3071359 Plástica pequeña",3071359,"Plástica pequeña",12614]
["3071360 Jardinera en madera (35cm x 100cm x 35cm)",3071360,"Jardinera en madera (35cm x 100cm x 35cm)",12614]
["3071352 Grandes",3071352,"Grandes",111622]
["3071353 Medianos",3071353,"Medianos",64974]
["3071354 Pequeños",3071354,"Pequeños",28560]
["3071364 Topiario en forma de animales o frutas ",3071364,"Topiario en forma de animales o frutas ",271915]
["3071365 Topiario en bolas grandes",3071365,"Topiario en bolas grandes",271915]
["3071385 Topiario en bolas pequeñas",3071385,"Topiario en bolas pequeñas",247163]
["3071363 Piedras (Por m2)",3071363,"Piedras (Por m2)",28441]
["3071367 Pino patula (Por bulto)",3071367,"Pino patula (Por bulto)",12614]
["3071361 Gravilla (Por m2)",3071361,"Gravilla (Por m2)",12614]
["3071386 Muros verticales (Por m2)",3071386,"Muros verticales (Por m2)",390915]
["3071366 Cascarilla (Por bulto)",3071366,"Cascarilla (Por bulto)",12614]
["3071362 Rocas (Por unidad)",3071362,"Rocas (Por unidad)",75327]
["3071346 Base de Pedestal Para TV Led - LCD (No incluye instalación del equipo - ni tornillería) Tarifa por dia 1 a 2 dias",3071346,"Base de Pedestal Para TV Led - LCD (No incluye instalación del equipo - ni tornillería) Tarifa por dia 1 a 2 dias",42721]
["3071346 Base de Pedestal Para TV Led - LCD (No incluye instalación del equipo - ni tornillería) Tarifa por dia de 3 a 6 dias ",3071346,"Base de Pedestal Para TV Led - LCD (No incluye instalación del equipo - ni tornillería) Tarifa por dia de 3 a 6 dias ",38913]
["3071204 TV LED o LCD de 40''+ base para pedestal (Incluye cableado) IN: USB, hdmi, rca  Tarifa por dia 1 a 2 dias ",3071204,"TV LED o LCD de 40''+ base para pedestal (Incluye cableado) IN: USB, hdmi, rca  Tarifa por dia 1 a 2 dias ",138992]
["3071204 TV LED o LCD de 40''+ base para pedestal (Incluye cableado) IN: USB, hdmi, rca  Tarifa por dia de 3 a 6 dias ",3071204,"TV LED o LCD de 40''+ base para pedestal (Incluye cableado) IN: USB, hdmi, rca  Tarifa por dia de 3 a 6 dias ",126378]
["3071206 TV LED o LCD de 50''+ base para pedestal (Incluye cableado) IN: USB, hdmi, rca  Tarifa por dia 1 a 2 dias",3071206,"TV LED o LCD de 50''+ base para pedestal (Incluye cableado) IN: USB, hdmi, rca  Tarifa por dia 1 a 2 dias",216580]
["3071206 TV LED o LCD de 50''+ base para pedestal (Incluye cableado) IN: USB, hdmi, rca  Tarifa por dia de 3 a 6 dias ",3071206,"TV LED o LCD de 50''+ base para pedestal (Incluye cableado) IN: USB, hdmi, rca  Tarifa por dia de 3 a 6 dias ",197064]
["3071279 TV LED o LCD de 70''+ base para pedestal (Incluye cableado) IN: USB, hdmi, rca  Tarifa por dia 1 a 2 dias",3071279,"TV LED o LCD de 70''+ base para pedestal (Incluye cableado) IN: USB, hdmi, rca  Tarifa por dia 1 a 2 dias",541450]
["3071279 TV LED o LCD de 70''+ base para pedestal (Incluye cableado) IN: USB, hdmi, rca  Tarifa por dia de 3 a 6 dias ",3071279,"TV LED o LCD de 70''+ base para pedestal (Incluye cableado) IN: USB, hdmi, rca  Tarifa por dia de 3 a 6 dias ",492303]
["3071222 TV LED o LCD de 84''+ base para pedestal (Incluye cableado) IN: USB, hdmi, rca Tarifa por dia 1 a 2 dias",3071222,"TV LED o LCD de 84''+ base para pedestal (Incluye cableado) IN: USB, hdmi, rca Tarifa por dia 1 a 2 dias",1005550]
["3071222 TV LED o LCD de 84''+ base para pedestal (Incluye cableado) IN: USB, hdmi, rca  Tarifa por dia de 3 a 6 dias ",3071222,"TV LED o LCD de 84''+ base para pedestal (Incluye cableado) IN: USB, hdmi, rca  Tarifa por dia de 3 a 6 dias ",914277]
["3071277 TV LED o LCD de 90'' (Incluye: base de pedestal y cableado) IN: USB, hdmi, rca Tarifa por dia 1 a 2 dias",3071277,"TV LED o LCD de 90'' (Incluye: base de pedestal y cableado) IN: USB, hdmi, rca Tarifa por dia 1 a 2 dias",1547000]
["3071277 TV LED o LCD de 90'' (Incluye: base de pedestal y cableado) IN: USB, hdmi, rca Tarifa por dia de 3 a 6 dias ",3071277,"TV LED o LCD de 90'' (Incluye: base de pedestal y cableado) IN: USB, hdmi, rca Tarifa por dia de 3 a 6 dias ",1406461]
["3071261 Pantalla TACTIL de 40'' + base de pedestal (Incluye cableado, PC portátil) IN: hdmi. Tarifa por dia 1 a 2 dias",3071261,"Pantalla TACTIL de 40'' + base de pedestal (Incluye cableado, PC portátil) IN: hdmi. Tarifa por dia 1 a 2 dias",510153]
["3071261 Pantalla TACTIL de 40'' + base de pedestal (Incluye cableado, PC portátil) IN: hdmi. Tarifa por dia de 3 a 6 dias ",3071261,"Pantalla TACTIL de 40'' + base de pedestal (Incluye cableado, PC portátil) IN: hdmi. Tarifa por dia de 3 a 6 dias ",463862]
["3071284 Tablet Táctil 7 pulgadas Tarifa por dia 1 a 2 dias",3071284,"Tablet Táctil 7 pulgadas Tarifa por dia 1 a 2 dias",85085]
["3071284 Tablet Táctil 7 pulgadas  Tarifa por dia de 3 a 6 dias ",3071284,"Tablet Táctil 7 pulgadas  Tarifa por dia de 3 a 6 dias ",77469]
["3071234 Video Proyector 4500 ansi lumens - El lugar de proyección debe estar lo mas oscuro posible Tarifa por dia 1 a 2 dias",3071234,"Video Proyector 4500 ansi lumens - El lugar de proyección debe estar lo mas oscuro posible Tarifa por dia 1 a 2 dias",386869]
["3071234 Video Proyector 4500 ansi lumens - El lugar de proyección debe estar lo mas oscuro posible  Tarifa por dia de 3 a 6 dias ",3071234,"Video Proyector 4500 ansi lumens - El lugar de proyección debe estar lo mas oscuro posible  Tarifa por dia de 3 a 6 dias ",351645]
["3071232 Telón de proyección (180cm x 135cm) - Frontal (colgar) - el espacio debe estar oscuro Tarifa por dia 1 a 2 dias",3071232,"Telón de proyección (180cm x 135cm) - Frontal (colgar) - el espacio debe estar oscuro Tarifa por dia 1 a 2 dias",46529]
["3071232 Telón de proyección (180cm x 135cm) - Frontal (colgar) - el espacio debe estar oscuro Tarifa por dia de 3 a 6 dias ",3071232,"Telón de proyección (180cm x 135cm) - Frontal (colgar) - el espacio debe estar oscuro Tarifa por dia de 3 a 6 dias ",42245]
["3071231 Telón de proyección (305cm x 229cm)  Frontal & Retro - el espacio debe estar oscuro Tarifa por dia 1 a 2 dias",3071231,"Telón de proyección (305cm x 229cm)  Frontal & Retro - el espacio debe estar oscuro Tarifa por dia 1 a 2 dias",212177]
["3071231 Telón de proyección (305cm x 229cm)  Frontal & Retro - el espacio debe estar oscuro Tarifa por dia de 3 a 6 dias ",3071231,"Telón de proyección (305cm x 229cm)  Frontal & Retro - el espacio debe estar oscuro Tarifa por dia de 3 a 6 dias ",193018]
["3071292 Circuito cerrado a 1 cámara (Digital) Tarifa por dia 1 a 2 dias",3071292,"Circuito cerrado a 1 cámara (Digital) Tarifa por dia 1 a 2 dias",1005669]
["3071292 Circuito cerrado a 1 cámara (Digital)  Tarifa por dia de 3 a 6 dias ",3071292,"Circuito cerrado a 1 cámara (Digital)  Tarifa por dia de 3 a 6 dias ",914277]
["3071348 Micrófono inalámbrico de mano - sin operario (requiere sistema de sonido) Tarifa por dia 1 a 2 dias",3071348,"Micrófono inalámbrico de mano - sin operario (requiere sistema de sonido) Tarifa por dia 1 a 2 dias",92820]
["3071348 Micrófono inalámbrico de mano - sin operario (requiere sistema de sonido)  Tarifa por dia de 3 a 6 dias ",3071348,"Micrófono inalámbrico de mano - sin operario (requiere sistema de sonido)  Tarifa por dia de 3 a 6 dias ",84371]
["3071349 Micrófono inalámbrico de diadema - sin operario (requiere sistema de sonido) Tarifa por dia 1 a 2 dias",3071349,"Micrófono inalámbrico de diadema - sin operario (requiere sistema de sonido) Tarifa por dia 1 a 2 dias",92820]
["3071349 Micrófono inalámbrico de diadema - sin operario (requiere sistema de sonido) Tarifa por dia de 3 a 6 dias ",3071349,"Micrófono inalámbrico de diadema - sin operario (requiere sistema de sonido) Tarifa por dia de 3 a 6 dias ",84371]
["3070411 Sonido de 1 a 100 personas 1 micrófono alambrico - cabineria activa Tarifa por dia 1 a 2 dias",3070411,"Sonido de 1 a 100 personas 1 micrófono alambrico - cabineria activa Tarifa por dia 1 a 2 dias",169575]
["3070411 Sonido de 1 a 100 personas 1 micrófono alambrico - cabineria activa  Tarifa por dia de 3 a 6 dias ",3070411,"Sonido de 1 a 100 personas 1 micrófono alambrico - cabineria activa  Tarifa por dia de 3 a 6 dias ",154224]
["3071347 Sonido de 100 a 200 personas 2 micrófono alambrico - cabineria activa Tarifa por dia 1 a 2 dias",3071347,"Sonido de 100 a 200 personas 2 micrófono alambrico - cabineria activa Tarifa por dia 1 a 2 dias",255374]
["3071347 Sonido de 100 a 200 personas 2 micrófono alambrico - cabineria activa  Tarifa por dia de 3 a 6 dias ",3071347,"Sonido de 100 a 200 personas 2 micrófono alambrico - cabineria activa  Tarifa por dia de 3 a 6 dias ",232169]
["3071294 Sonido de 200 a 300 personas 3 micrófono alambrico - cabineria activa Tarifa por dia 1 a 2 dias",3071294,"Sonido de 200 a 300 personas 3 micrófono alambrico - cabineria activa Tarifa por dia 1 a 2 dias",470169]
["3071294 Sonido de 200 a 300 personas 3 micrófono alambrico - cabineria activa  Tarifa por dia de 3 a 6 dias ",3071294,"Sonido de 200 a 300 personas 3 micrófono alambrico - cabineria activa  Tarifa por dia de 3 a 6 dias ",427448]
["3071275 PAR LED - Luz LED multicolor decorar ambientes - espectáculos (Según  cantidad requiere dmx)  Tarifa por dia 1 a 2 dias",3071275,"PAR LED - Luz LED multicolor decorar ambientes - espectáculos (Según  cantidad requiere dmx)  Tarifa por dia 1 a 2 dias",40341]
["3071275 PAR LED - Luz LED multicolor decorar ambientes - espectáculos (Según  cantidad requiere dmx)  Tarifa por dia de 3 a 6 dias ",3071275,"PAR LED - Luz LED multicolor decorar ambientes - espectáculos (Según  cantidad requiere dmx)  Tarifa por dia de 3 a 6 dias ",36652]
["3071285 Control Mouse inalámbrico pasador de diapositivas USB con puntero laser  Tarifa por dia 1 a 2 dias",3071285,"Control Mouse inalámbrico pasador de diapositivas USB con puntero laser  Tarifa por dia 1 a 2 dias",26656]
["3071285 Control Mouse inalámbrico pasador de diapositivas USB con puntero laser  Tarifa por dia de 3 a 6 dias ",3071285,"Control Mouse inalámbrico pasador de diapositivas USB con puntero laser  Tarifa por dia de 3 a 6 dias ",24276]
["3070534 Operario técnico audiovisual, turno de 8 horas. Manejo de sonido básico, apoyo logístico  Tarifa por dia 1 a 2 dias",3070534,"Operario técnico audiovisual, turno de 8 horas. Manejo de sonido básico, apoyo logístico  Tarifa por dia 1 a 2 dias",178024]
["3070534 Operario técnico audiovisual, turno de 8 horas. Manejo de sonido básico, apoyo logístico Tarifa por dia de 3 a 6 dias ",3070534,"Operario técnico audiovisual, turno de 8 horas. Manejo de sonido básico, apoyo logístico Tarifa por dia de 3 a 6 dias ",161840]
["3071300 Asesoría técnica en producción de eventos y/o asesoramiento técnico audiovisual (Una hora por sesión)  Tarifa por dia 1 a 2 dias",3071300,"Asesoría técnica en producción de eventos y/o asesoramiento técnico audiovisual (Una hora por sesión)  Tarifa por dia 1 a 2 dias",92939]
["3071300 Asesoría técnica en producción de eventos y/o asesoramiento técnico audiovisual (Una hora por sesión) Tarifa por dia de 3 a 6 dias ",3071300,"Asesoría técnica en producción de eventos y/o asesoramiento técnico audiovisual (Una hora por sesión) Tarifa por dia de 3 a 6 dias ",84490]
["3071256-12 Computador portátil  Tarifa por dia 1 a 2 dias","3071256-12","Computador portátil  Tarifa por dia 1 a 2 dias",92939]
["3071256-12 Computador portátil  Tarifa por dia de 3 a 6 dias ","3071256-12","Computador portátil  Tarifa por dia de 3 a 6 dias ",84490]
["3071237 Computador de escritorio  Tarifa por dia 1 a 2 dias",3071237,"Computador de escritorio  Tarifa por dia 1 a 2 dias",88179]
["3071237 Computador de escritorio  Tarifa por dia de 3 a 6 dias ",3071237,"Computador de escritorio  Tarifa por dia de 3 a 6 dias ",80206]
["3071103 Nevera Minibar CHALLENGER 121lt  Tarifa por dia 1 a 2 dias",3071103,"Nevera Minibar CHALLENGER 121lt  Tarifa por dia 1 a 2 dias",74375]
["3071103 Nevera Minibar CHALLENGER 121lt  Tarifa por dia de 3 a 6 dias ",3071103,"Nevera Minibar CHALLENGER 121lt  Tarifa por dia de 3 a 6 dias ",56644]
["3071312 Aseo stands dos veces al dia entre 9 mts² y 27 mts² (valor por dia)",3071312,"Aseo stands dos veces al dia entre 9 mts² y 27 mts² (valor por dia)",19992]
["3071312 Aseo stands dos veces al dia entre 28 mts² y 55 mts² (valor por dia)",3071312,"Aseo stands dos veces al dia entre 28 mts² y 55 mts² (valor por dia)",27846]
["3071312 Aseo stands dos veces al dia entre 56 mts² y 108 mts² (valor por dia)",3071312,"Aseo stands dos veces al dia entre 56 mts² y 108 mts² (valor por dia)",41769]
["3071312 Aseo stands dos veces al dia entre 109 mts² y 162 mts² (valor por dia)",3071312,"Aseo stands dos veces al dia entre 109 mts² y 162 mts² (valor por dia)",67116]
["3071312 Aseo stands dos veces al dia de 162mts² en adelante se requiere de cotización previa,contactese con serviciosplus@corferias.com para brindarle asesoria y cotización.",3071312,"Aseo stands dos veces al dia de 162mts² en adelante se requiere de cotización previa,contactese con serviciosplus@corferias.com para brindarle asesoria y cotización.","Según cotización"]
["3071312 Aseo permanente 8 horas 1 Operario - Día normal",3071312,"Aseo permanente 8 horas 1 Operario - Día normal",112931]
["3071312 Aseo permanente 8 horas 1 Operario - Día festivo",3071312,"Aseo permanente 8 horas 1 Operario - Día festivo",166719]
["3071433 Corferias Conecta  APP (incluye el internet para un equipo)",3071433,"Corferias Conecta  APP (incluye el internet para un equipo)",330225]
["3071432 Corferias Conecta  APP + Tablet con internet",3071432,"Corferias Conecta  APP + Tablet con internet",436135]
["3071431 Tablet adicional con internet",3071431,"Tablet adicional con internet",290717]
["3071326 Internet adicional para la app por equipo",3071326,"Internet adicional para la app por equipo",103887]

{"sheet":"FERIAS DE 4 A 6 DIAS","index":1,"n_rows":199,"n_cols":4,"rows_kept":199,"cut":false,"hidden":true,"merged":[]}
["CLAVE","CODIGO","DESCRIPCIÓN","VALOR"]
[{"$f":"CONCATENATE(B2:B199,\" \",C2:C199)","v":"3070101 Instalación Monofásica (Toma corriente doble, consumo hasta 2KW/110V) valor de 1 a 6 dias"},3070101,"Instalación Monofásica (Toma corriente doble, consumo hasta 2KW/110V) valor de 1 a 6 dias",364140]
["3070103 Instalación kilovatio adicional monofásico (Debe contar con punto principal, MAX 2KW por punto)",3070103,"Instalación kilovatio adicional monofásico (Debe contar con punto principal, MAX 2KW por punto)",124593]
["3070102 Instalación trifásica (Regleta plastica, consumo hasta 4KW/208V)",3070102,"Instalación trifásica (Regleta plastica, consumo hasta 4KW/208V)",664734]
["3070104 Instalación kilovatio adicional trifásico (Debe contar con punto principal)",3070104,"Instalación kilovatio adicional trifásico (Debe contar con punto principal)",162673]
["3071372 De 21 a 50 kilovatios adicionales trifásicos (Valor por KW) (Debe contar con punto principal)",3071372,"De 21 a 50 kilovatios adicionales trifásicos (Valor por KW) (Debe contar con punto principal)",147917]
["3071373 De 51 a 100 kilovatios adicionales trifásicos (Valor por KW) (Debe contar con punto principal)",3071373,"De 51 a 100 kilovatios adicionales trifásicos (Valor por KW) (Debe contar con punto principal)",141372]
["3071374 Mas de100 kilovatios adicionales trifásicos (Valor por KW) (Debe contar con punto principal)",3071374,"Mas de100 kilovatios adicionales trifásicos (Valor por KW) (Debe contar con punto principal)",135541]
["3070402 Lampara de pared ajustable (150W/110V)",3070402,"Lampara de pared ajustable (150W/110V)",68663]
["3070405 Reflector Led (50W- mltV)",3070405,"Reflector Led (50W- mltV)",72352]
["3070403 Extensión – tomacorriente doble con polo a tierra (1500W/110V) MAX 6mts ",3070403,"Extensión – tomacorriente doble con polo a tierra (1500W/110V) MAX 6mts ",35581]
["3071345 Lavaplatos 90XL* 60XH* 90 (No incluye agua y desague) valor de 1 a 6 dias",3071345,"Lavaplatos 90XL* 60XH* 90 (No incluye agua y desague) valor de 1 a 6 dias",163149]
["3070301 Punto de Agua en 1/2\" (incluye consumo) valor de 1 a 6 dias",3070301,"Punto de Agua en 1/2\" (incluye consumo) valor de 1 a 6 dias",348075]
["3070302 Desagüe en 1 1/2\" Por toda la feria (Ubicación asignada por Corferias en su stand) valor de 1 a 6 dias",3070302,"Desagüe en 1 1/2\" Por toda la feria (Ubicación asignada por Corferias en su stand) valor de 1 a 6 dias",322252]
["3071341 Aire comprimido para punto con presión máx. de 100 PSI, y caudal máx. 35CFM. valor de 1 a 6 dias",3071341,"Aire comprimido para punto con presión máx. de 100 PSI, y caudal máx. 35CFM. valor de 1 a 6 dias",444108]
["3070307 Punto de Agua en 1/2\" (Incluye consumo)  + Desagüe en 1 1/2\" + Lavaplatos valor de 1 a 6 dias",3070307,"Punto de Agua en 1/2\" (Incluye consumo)  + Desagüe en 1 1/2\" + Lavaplatos valor de 1 a 6 dias",750057]
["3071321 Punto de gas propano para UN (1) equipo de máximo 4 quemadores valor de 1 a 6 dias",3071321,"Punto de gas propano para UN (1) equipo de máximo 4 quemadores valor de 1 a 6 dias",395080]
["3071368 Quemador adicional (unidad), debe contar con punto de gas valor de 1 a 6 dias ",3071368,"Quemador adicional (unidad), debe contar con punto de gas valor de 1 a 6 dias ",80563]
["3070601 Panel adicional sistema cfe 100cm x 240cm",3070601,"Panel adicional sistema cfe 100cm x 240cm",36652]
["3070801 Puerta sistema cfe 90cm x 240cm",3070801,"Puerta sistema cfe 90cm x 240cm",90797]
["3070803 Bodega estándar con puerta 150cm x 150cm (Sistema Corferias)",3070803,"Bodega estándar con puerta 150cm x 150cm (Sistema Corferias)",144823]
["3071319 Brazo Mecánico por Fracciòn de 15 min (Solo para primer nivel)",3071319,"Brazo Mecánico por Fracciòn de 15 min (Solo para primer nivel)",72709]
["3071319 Brazo Mecánico por Fracciòn de 30 min (Solo para primer nivel)",3071319,"Brazo Mecánico por Fracciòn de 30 min (Solo para primer nivel)",134946]
["3071319 Brazo Mecánico por Fracciòn de 45 min (Solo para primer nivel)",3071319,"Brazo Mecánico por Fracciòn de 45 min (Solo para primer nivel)",207655]
["3071319 Brazo Mecánico por Fracciòn de 60 min (Solo para primer nivel)",3071319,"Brazo Mecánico por Fracciòn de 60 min (Solo para primer nivel)",249186]
["3070413 Diferencial (Cap. 1 Ton.) + Brazo mecánico (Montaje y desmontaje) ",3070413,"Diferencial (Cap. 1 Ton.) + Brazo mecánico (Montaje y desmontaje) ",467313]
["3070414 Plataforma Tijera eléctrica por Fracciòn /30 min (Uso para segundos niveles)",3070414,"Plataforma Tijera eléctrica por Fracciòn /30 min (Uso para segundos niveles)",81396]
["3071418 Servicio de Internet Cableado \"PARA UN EQUIPO - DURANTE UN DÍA\"  ",3071418,"Servicio de Internet Cableado \"PARA UN EQUIPO - DURANTE UN DÍA\"  ",74970]
["3071419 Clave de acceso para la red WiFi  \"PARA UN EQUIPO - DURANTE UN DÍA\"",3071419,"Clave de acceso para la red WiFi  \"PARA UN EQUIPO - DURANTE UN DÍA\"",74970]
["3071417 Servicio de Internet Cableado \"PARA UN EQUIPO - DURANTE TODA LA FERIA\" valor de 4 a 6 dias",3071417,"Servicio de Internet Cableado \"PARA UN EQUIPO - DURANTE TODA LA FERIA\" valor de 4 a 6 dias",199563]
["3071420 Clave de acceso para la Red WiFi \"PARA UN EQUIPO - DURANTE TODA LA FERIA\" valor de 4 a 6 dias",3071420,"Clave de acceso para la Red WiFi \"PARA UN EQUIPO - DURANTE TODA LA FERIA\" valor de 4 a 6 dias",199563]
["3071423 Conexión para Datafono + Clave de acceso WIFI (Para un equipo durante toda la feria)  valor de 4 a 6 dias",3071423,"Conexión para Datafono + Clave de acceso WIFI (Para un equipo durante toda la feria)  valor de 4 a 6 dias",307972]
["3071424 Conexión para Datafono + Servicio de Internet Cableado (Para un equipo durante toda la feria)  valor de 4 a 6 dias",3071424,"Conexión para Datafono + Servicio de Internet Cableado (Para un equipo durante toda la feria)  valor de 4 a 6 dias",307972]
["3071425 Servicio de Internet Cableado + Clave de acceso WIFI (Para un equipo durante toda la feria)  valor de 4 a 6 dias",3071425,"Servicio de Internet Cableado + Clave de acceso WIFI (Para un equipo durante toda la feria)  valor de 4 a 6 dias",359142]
["3071437 Internet Dedicado: Si requiere conexión banda ancha para diferentes servicios o redes locales, contáctese con serviciosplus@corferias.com para brindarle asesoria y cotización.",3071437,"Internet Dedicado: Si requiere conexión banda ancha para diferentes servicios o redes locales, contáctese con serviciosplus@corferias.com para brindarle asesoria y cotización.","Según cotización"]
["3071406 Instalación Punto de Red:Incluye un cable UTP por punto",3071406,"Instalación Punto de Red:Incluye un cable UTP por punto",89012]
["3071407 Switch VALOR POR FERIA ",3071407,"Switch VALOR POR FERIA ",85680]
["3071402 Servicio de VLAN: Servicio virtual de red.  VALOR POR FERIA",3071402,"Servicio de VLAN: Servicio virtual de red.  VALOR POR FERIA",349979]
["3071430 Extension LAN VALOR POR FERIA  (Incluye punto de red y aplica para extender el servicio de internet contratado con terceros)",3071430,"Extension LAN VALOR POR FERIA  (Incluye punto de red y aplica para extender el servicio de internet contratado con terceros)",1113245]
["3071442 Soporte técnico permanente (Por espacio de 8 horas) de un técnico. VALOR DÍARIO ",3071442,"Soporte técnico permanente (Por espacio de 8 horas) de un técnico. VALOR DÍARIO ",243474]
["3070202 Servicio Telefónico Urbano con Aparato (Incluye consumo local ilimitado)",3070202,"Servicio Telefónico Urbano con Aparato (Incluye consumo local ilimitado)",42483]
["3070203 Servicio Telefónico Larga Distancia con aparato",3070203,"Servicio Telefónico Larga Distancia con aparato",42483]
["3070201 Línea Externa no conmutada (Previa solicitud a Etb, Claro, EPM, Colomsat u otro operador)",3070201,"Línea Externa no conmutada (Previa solicitud a Etb, Claro, EPM, Colomsat u otro operador)",120071]
["3070207 Conexión cableada para Datafono:(No incluye Datafono)",3070207,"Conexión cableada para Datafono:(No incluye Datafono)",124593]
["3070942 Kit básico Pino 1 (1 mesa pleglable pino, 3 sillas acrilicas k negra)",3070942,"Kit básico Pino 1 (1 mesa pleglable pino, 3 sillas acrilicas k negra)",187306]
["3071105 KIT básico oficina 2 (2 sillas interlocutoras, 1 silla ejecutiva, 1 mesa oficina)",3071105,"KIT básico oficina 2 (2 sillas interlocutoras, 1 silla ejecutiva, 1 mesa oficina)",222411]
["3071036 Mesa plegable plastico + 2 sillas interlocutoras",3071036,"Mesa plegable plastico + 2 sillas interlocutoras",171836]
["3071039 Mesa alta Daysa + 2 sillas neumaticas altas marsella",3071039,"Mesa alta Daysa + 2 sillas neumaticas altas marsella",228599]
["3071054 Mesa estandar lotus vidrio + 2 sillas tipo huevo",3071054,"Mesa estandar lotus vidrio + 2 sillas tipo huevo",249781]
["3071002 Silla Acrílica k negra (85cm x 49cm x 47cm)",3071002,"Silla Acrílica k negra (85cm x 49cm x 47cm)",41769]
["3071078 Silla con Espaldar Arles (75cm x 38cm x39cm)",3071078,"Silla con Espaldar Arles (75cm x 38cm x39cm)",61761]
["30713198 Silla Gerencial (119cm x 67cm x 78cm)",30713198,"Silla Gerencial (119cm x 67cm x 78cm)",145418]
["3071081 Silla Ejecutiva (79cm x 53cm x 42cm)",3071081,"Silla Ejecutiva (79cm x 53cm x 42cm)",70567]
["3071061 Silla estandar Suiza (48cm x 46cm x 45cm)",3071061,"Silla estandar Suiza (48cm x 46cm x 45cm)",64617]
["3071008 Silla estandar Tipo Huevo (48cm x 46cm x 45cm)",3071008,"Silla estandar Tipo Huevo (48cm x 46cm x 45cm)",64617]
["3071006 Silla Interlocutora Negra (79cm x 53cm x 42cm)",3071006,"Silla Interlocutora Negra (79cm x 53cm x 42cm)",46410]
["3071022 Silla Neumatica alta Versalles (80cm x 40 cm x 40cm",3071022,"Silla Neumatica alta Versalles (80cm x 40 cm x 40cm",97580]
["3071077 Silla Neumática alta Marsella (80cm x 40cm x 40cm)",3071077,"Silla Neumática alta Marsella (80cm x 40cm x 40cm)",77588]
["3071092 Silla Neumatica alta POP (Blanca o negra) (80cm x 43cm x 40cm)",3071092,"Silla Neumatica alta POP (Blanca o negra) (80cm x 43cm x 40cm)",76755]
["3070503 Estantería Polo (Melaminico)   (100cm x 93cm x 35cm)",3070503,"Estantería Polo (Melaminico)   (100cm x 93cm x 35cm)",170527]
["3070503 Estantería Polo (Miel)  (100cm x 93cm x 35cm)",3070503,"Estantería Polo (Miel)  (100cm x 93cm x 35cm)",170527]
["3070503 Estantería Polo (Rovere)  (100cm x 93cm x 35cm)",3070503,"Estantería Polo (Rovere)  (100cm x 93cm x 35cm)",170527]
["3070503 Estantería Polo (Roble Gris)  (100cm x 93cm x 35cm)",3070503,"Estantería Polo (Roble Gris)  (100cm x 93cm x 35cm)",170527]
["3071108 Estantería Shelf 4E (190cm x 125cm x 41cm)",3071108,"Estantería Shelf 4E (190cm x 125cm x 41cm)",142086]
["3071107 Archivador Regina (70cm x 37cm x50cm)",3071107,"Archivador Regina (70cm x 37cm x50cm)",148274]
["3070954 Counter Mónaco (Melaminico) (100cm x 100cm x 40cm)",3070954,"Counter Mónaco (Melaminico) (100cm x 100cm x 40cm)",160531]
["3070954 Counter Mónaco (Miel) (100cm x 100cm x 40cm)",3070954,"Counter Mónaco (Miel) (100cm x 100cm x 40cm)",160531]
["3070954 Counter Mónaco (Rovere) (100cm x 100cm x 40cm)",3070954,"Counter Mónaco (Rovere) (100cm x 100cm x 40cm)",160531]
["3070954 Counter Mónaco (Roble Gris) (100cm x 100cm x 40cm)",3070954,"Counter Mónaco (Roble Gris) (100cm x 100cm x 40cm)",160531]
["3070535 Vitrina Isla 2E (200cm x 50cm x 50cm)",3070535,"Vitrina Isla 2E (200cm x 50cm x 50cm)",232526]
["3070517 Vitrina Mostrador 1E (100cm x 100cm x 40cm)",3070517,"Vitrina Mostrador 1E (100cm x 100cm x 40cm)",200634]
["3070518 Vitrina Mostrador Tipo 2 1E (100cm x 50 cm x 40cm)",3070518,"Vitrina Mostrador Tipo 2 1E (100cm x 50 cm x 40cm)",200634]
["3071111 Vitrina Rectangular 2E (200cm x 100cm x 40cm)",3071111,"Vitrina Rectangular 2E (200cm x 100cm x 40cm)",268702]
["30713199 Vitrina Rectangular 3E (180cm x 100cm x 40cm)",30713199,"Vitrina Rectangular 3E (180cm x 100cm x 40cm)",268702]
["3071115 Mesa alta Daysa (Melaminico) (100cm x 60cm)",3071115,"Mesa alta Daysa (Melaminico) (100cm x 60cm)",98889]
["3071115 Mesa alta Daysa (Miel) (100cm x 60cm)",3071115,"Mesa alta Daysa (Miel) (100cm x 60cm)",98889]
["3071115 Mesa alta Daysa (Rovere) (100cm x 60cm)",3071115,"Mesa alta Daysa (Rovere) (100cm x 60cm)",98889]
["3071115 Mesa alta Daysa (Roble Gris) (100cm x 60cm)",3071115,"Mesa alta Daysa (Roble Gris) (100cm x 60cm)",98889]
["3071093 Mesa alta Daysa vidrio (100cm x 60cm)",3071093,"Mesa alta Daysa vidrio (100cm x 60cm)",111265]
["3071104 Mesa Centro 2 Niveles (melaminico) (50cm x 60cm x 60)",3071104,"Mesa Centro 2 Niveles (melaminico) (50cm x 60cm x 60)",80087]
["3071100 Mesa Centro Circular doble nivel (melaminico) (50cm x 110cm x 60cm)",3071100,"Mesa Centro Circular doble nivel (melaminico) (50cm x 110cm x 60cm)",110075]
["3071068 Mesa Centro Rectangular doble nivel (melaminico) (50cm x 75cm x 50cm) ",3071068,"Mesa Centro Rectangular doble nivel (melaminico) (50cm x 75cm x 50cm) ",80087]
["3071097 Mesa estandar Daysa (76cm x 60cm)",3071097,"Mesa estandar Daysa (76cm x 60cm)",98889]
["3071116 Mesa estandar Lotus (70cm x 64cm x 81cm)",3071116,"Mesa estandar Lotus (70cm x 64cm x 81cm)",148274]
["3071098 Mesa estandar Shia (76cm x 60cm x 60cm)",3071098,"Mesa estandar Shia (76cm x 60cm x 60cm)",98889]
["30713200 Mesa Oficina (78cm x 120cm x 50cm)",30713200,"Mesa Oficina (78cm x 120cm x 50cm)",124593]
["3070936 Mesón plegable plástico (Gris o blanco) (73cm x 182cm x 76cm)",3070936,"Mesón plegable plástico (Gris o blanco) (73cm x 182cm x 76cm)",98056]
["3070904 Mesón plegable pino (75cm x 120cm x 60cm)",3070904,"Mesón plegable pino (75cm x 120cm x 60cm)",98056]
["3071113 Sala Osaka (1 sofá Toronto, 2 puffs Donna, 1 mesa centro 2 niveles)",3071113,"Sala Osaka (1 sofá Toronto, 2 puffs Donna, 1 mesa centro 2 niveles)",432446]
["3071095 Sala VIP (1 sofá Victoria derecho, 1 sofá Victoria izquierdo, 2 poltronas, 1 mesa centro 2 niveles)",3071095,"Sala VIP (1 sofá Victoria derecho, 1 sofá Victoria izquierdo, 2 poltronas, 1 mesa centro 2 niveles)",716737]
["3071090 Puff estandar cuadrado (43cm x 43cm x 43cm)",3071090,"Puff estandar cuadrado (43cm x 43cm x 43cm)",51765]
["3071091 Puff Trunk 2 cuerpos (48cm x 81cm x 40cm)",3071091,"Puff Trunk 2 cuerpos (48cm x 81cm x 40cm)",98889]
["3071114 Puff Trunk 3 cuerpos (48cm x 120cm x 54cm)",3071114,"Puff Trunk 3 cuerpos (48cm x 120cm x 54cm)",98889]
["3071085 Sofa Otawa 2 cuerpos (85cm x 120cm x 76cm)",3071085,"Sofa Otawa 2 cuerpos (85cm x 120cm x 76cm)",197659]
["3071083 Sofa Toronto 3 cuerpos (88cm x 173cm x 80cm)",3071083,"Sofa Toronto 3 cuerpos (88cm x 173cm x 80cm)",210035]
["3071031 Sofa Terranova 2 cuerpos (88cm x 173cm x 80cm)",3071031,"Sofa Terranova 2 cuerpos (88cm x 173cm x 80cm)",210035]
["3071013 Sofa Victoria derecho (70cm x 100cm x 75cm)",3071013,"Sofa Victoria derecho (70cm x 100cm x 75cm)",170646]
["3071023 Sofa Victoria izquierdo (70cm x 100cm x 75cm)",3071023,"Sofa Victoria izquierdo (70cm x 100cm x 75cm)",170646]
["30713201 Poltrona Buggy (72cm x 64cm)",30713201,"Poltrona Buggy (72cm x 64cm)",145418]
["3071059 Poltrona Levis (73cm x 86cm x 78cm)",3071059,"Poltrona Levis (73cm x 86cm x 78cm)",185402]
["3071302 Papelera metálica",3071302,"Papelera metálica",23443]
["3071325 Poste separador 120cm de alto",3071325,"Poste separador 120cm de alto",46291]
["3070714 Cubo de exhibición (40cm x 40cm x 25cm)",3070714,"Cubo de exhibición (40cm x 40cm x 25cm)",33439]
["3070957 Pedestal cuadrado (30cm x 30cm x 30cm)",3070957,"Pedestal cuadrado (30cm x 30cm x 30cm)",32249]
["3070956 Pedestal rectangular 60cm (30cm x 60cm x 30cm)",3070956,"Pedestal rectangular 60cm (30cm x 60cm x 30cm)",37128]
["3070955 Pedestal rectangular 90cm (30cm x 90cm x 30cm)",3070955,"Pedestal rectangular 90cm (30cm x 90cm x 30cm)",42126]
["3071370 Revistero plegable (140cm x 25cm x 29cm)",3071370,"Revistero plegable (140cm x 25cm x 29cm)",73661]
["3070505 Tarima 120x120x60, (Previa verificación con área de montaje)",3070505,"Tarima 120x120x60, (Previa verificación con área de montaje)",43197]
["3071388 Módulo de carga 20 puntos 110V",3071388,"Módulo de carga 20 puntos 110V",247163]
["3071375 Planta + matera plástica (Pequeña)",3071375,"Planta + matera plástica (Pequeña)",24514]
["3071376 Planta + matera plástica (Mediana)",3071376,"Planta + matera plástica (Mediana)",55216]
["3071377 Planta + matera plástica (Grande)",3071377,"Planta + matera plástica (Grande)",70448]
["3071378 Jardinera en madera + 3 Plantas grandes",3071378,"Jardinera en madera + 3 Plantas grandes",119357]
["3071379 Jardinera en madera + 3 Plantas medianas",3071379,"Jardinera en madera + 3 Plantas medianas",96509]
["3071380 Jardinera en madera + 7 Plantas pequeñas",3071380,"Jardinera en madera + 7 Plantas pequeñas",99365]
["3071381 Cajoneras con flores",3071381,"Cajoneras con flores",185402]
["3071314 Grandes (61cm x 120cm)",3071314,"Grandes (61cm x 120cm)",37723]
["3071301 Medianas (31cm x 120cm)",3071301,"Medianas (31cm x 120cm)",29750]
["3071317 Pequeñas (10cm x 30cm)",3071317,"Pequeñas (10cm x 30cm)",13209]
["3071382 Suculentas (10cm x 15cm)",3071382,"Suculentas (10cm x 15cm)",13209]
["3071383 Chamizos",3071383,"Chamizos",13209]
["3071355 De barro grande",3071355,"De barro grande",36533]
["3071356 De barro mediana",3071356,"De barro mediana",28441]
["3071384 De barro pequeña",3071384,"De barro pequeña",12614]
["3071357 Plástica grande",3071357,"Plástica grande",36533]
["3071358 Plástica mediana",3071358,"Plástica mediana",28441]
["3071359 Plástica pequeña",3071359,"Plástica pequeña",12614]
["3071360 Jardinera en madera (35cm x 100cm x 35cm)",3071360,"Jardinera en madera (35cm x 100cm x 35cm)",12614]
["3071352 Grandes",3071352,"Grandes",111622]
["3071353 Medianos",3071353,"Medianos",64974]
["3071354 Pequeños",3071354,"Pequeños",28560]
["3071364 Topiario en forma de animales o frutas ",3071364,"Topiario en forma de animales o frutas ",271915]
["3071365 Topiario en bolas grandes",3071365,"Topiario en bolas grandes",271915]
["3071385 Topiario en bolas pequeñas",3071385,"Topiario en bolas pequeñas",247163]
["3071363 Piedras (Por m2)",3071363,"Piedras (Por m2)",28441]
["3071367 Pino patula (Por bulto)",3071367,"Pino patula (Por bulto)",12614]
["3071361 Gravilla (Por m2)",3071361,"Gravilla (Por m2)",12614]
["3071386 Muros verticales (Por m2)",3071386,"Muros verticales (Por m2)",390915]
["3071366 Cascarilla (Por bulto)",3071366,"Cascarilla (Por bulto)",12614]
["3071362 Rocas (Por unidad)",3071362,"Rocas (Por unidad)",75327]
["3071346 Base de Pedestal Para TV Led - LCD (No incluye instalación del equipo - ni tornillería) Tarifa por dia 1 a 2 dias",3071346,"Base de Pedestal Para TV Led - LCD (No incluye instalación del equipo - ni tornillería) Tarifa por dia 1 a 2 dias",42721]
["3071346 Base de Pedestal Para TV Led - LCD (No incluye instalación del equipo - ni tornillería) Tarifa por dia de 3 a 6 dias ",3071346,"Base de Pedestal Para TV Led - LCD (No incluye instalación del equipo - ni tornillería) Tarifa por dia de 3 a 6 dias ",38913]
["3071204 TV LED o LCD de 40''+ base para pedestal (Incluye cableado) IN: USB, hdmi, rca  Tarifa por dia 1 a 2 dias ",3071204,"TV LED o LCD de 40''+ base para pedestal (Incluye cableado) IN: USB, hdmi, rca  Tarifa por dia 1 a 2 dias ",138992]
["3071204 TV LED o LCD de 40''+ base para pedestal (Incluye cableado) IN: USB, hdmi, rca  Tarifa por dia de 3 a 6 dias ",3071204,"TV LED o LCD de 40''+ base para pedestal (Incluye cableado) IN: USB, hdmi, rca  Tarifa por dia de 3 a 6 dias ",126378]
["3071206 TV LED o LCD de 50''+ base para pedestal (Incluye cableado) IN: USB, hdmi, rca  Tarifa por dia 1 a 2 dias",3071206,"TV LED o LCD de 50''+ base para pedestal (Incluye cableado) IN: USB, hdmi, rca  Tarifa por dia 1 a 2 dias",216580]
["3071206 TV LED o LCD de 50''+ base para pedestal (Incluye cableado) IN: USB, hdmi, rca  Tarifa por dia de 3 a 6 dias ",3071206,"TV LED o LCD de 50''+ base para pedestal (Incluye cableado) IN: USB, hdmi, rca  Tarifa por dia de 3 a 6 dias ",197064]
["3071279 TV LED o LCD de 70''+ base para pedestal (Incluye cableado) IN: USB, hdmi, rca  Tarifa por dia 1 a 2 dias",3071279,"TV LED o LCD de 70''+ base para pedestal (Incluye cableado) IN: USB, hdmi, rca  Tarifa por dia 1 a 2 dias",541450]
["3071279 TV LED o LCD de 70''+ base para pedestal (Incluye cableado) IN: USB, hdmi, rca  Tarifa por dia de 3 a 6 dias ",3071279,"TV LED o LCD de 70''+ base para pedestal (Incluye cableado) IN: USB, hdmi, rca  Tarifa por dia de 3 a 6 dias ",492303]
["3071222 TV LED o LCD de 84''+ base para pedestal (Incluye cableado) IN: USB, hdmi, rca Tarifa por dia 1 a 2 dias",3071222,"TV LED o LCD de 84''+ base para pedestal (Incluye cableado) IN: USB, hdmi, rca Tarifa por dia 1 a 2 dias",1005550]
["3071222 TV LED o LCD de 84''+ base para pedestal (Incluye cableado) IN: USB, hdmi, rca  Tarifa por dia de 3 a 6 dias ",3071222,"TV LED o LCD de 84''+ base para pedestal (Incluye cableado) IN: USB, hdmi, rca  Tarifa por dia de 3 a 6 dias ",914277]
["3071277 TV LED o LCD de 90'' (Incluye: base de pedestal y cableado) IN: USB, hdmi, rca Tarifa por dia 1 a 2 dias",3071277,"TV LED o LCD de 90'' (Incluye: base de pedestal y cableado) IN: USB, hdmi, rca Tarifa por dia 1 a 2 dias",1547000]
["3071277 TV LED o LCD de 90'' (Incluye: base de pedestal y cableado) IN: USB, hdmi, rca Tarifa por dia de 3 a 6 dias ",3071277,"TV LED o LCD de 90'' (Incluye: base de pedestal y cableado) IN: USB, hdmi, rca Tarifa por dia de 3 a 6 dias ",1406461]
["3071261 Pantalla TACTIL de 40'' + base de pedestal (Incluye cableado, PC portátil) IN: hdmi. Tarifa por dia 1 a 2 dias",3071261,"Pantalla TACTIL de 40'' + base de pedestal (Incluye cableado, PC portátil) IN: hdmi. Tarifa por dia 1 a 2 dias",510153]
["3071261 Pantalla TACTIL de 40'' + base de pedestal (Incluye cableado, PC portátil) IN: hdmi. Tarifa por dia de 3 a 6 dias ",3071261,"Pantalla TACTIL de 40'' + base de pedestal (Incluye cableado, PC portátil) IN: hdmi. Tarifa por dia de 3 a 6 dias ",463862]
["3071284 Tablet Táctil 7 pulgadas Tarifa por dia 1 a 2 dias",3071284,"Tablet Táctil 7 pulgadas Tarifa por dia 1 a 2 dias",85085]
["3071284 Tablet Táctil 7 pulgadas  Tarifa por dia de 3 a 6 dias ",3071284,"Tablet Táctil 7 pulgadas  Tarifa por dia de 3 a 6 dias ",77469]
["3071234 Video Proyector 4500 ansi lumens - El lugar de proyección debe estar lo mas oscuro posible Tarifa por dia 1 a 2 dias",3071234,"Video Proyector 4500 ansi lumens - El lugar de proyección debe estar lo mas oscuro posible Tarifa por dia 1 a 2 dias",386869]
["3071234 Video Proyector 4500 ansi lumens - El lugar de proyección debe estar lo mas oscuro posible  Tarifa por dia de 3 a 6 dias ",3071234,"Video Proyector 4500 ansi lumens - El lugar de proyección debe estar lo mas oscuro posible  Tarifa por dia de 3 a 6 dias ",351645]
["3071232 Telón de proyección (180cm x 135cm) - Frontal (colgar) - el espacio debe estar oscuro Tarifa por dia 1 a 2 dias",3071232,"Telón de proyección (180cm x 135cm) - Frontal (colgar) - el espacio debe estar oscuro Tarifa por dia 1 a 2 dias",46529]
["3071232 Telón de proyección (180cm x 135cm) - Frontal (colgar) - el espacio debe estar oscuro Tarifa por dia de 3 a 6 dias ",3071232,"Telón de proyección (180cm x 135cm) - Frontal (colgar) - el espacio debe estar oscuro Tarifa por dia de 3 a 6 dias ",42245]
["3071231 Telón de proyección (305cm x 229cm)  Frontal & Retro - el espacio debe estar oscuro Tarifa por dia 1 a 2 dias",3071231,"Telón de proyección (305cm x 229cm)  Frontal & Retro - el espacio debe estar oscuro Tarifa por dia 1 a 2 dias",212177]
["3071231 Telón de proyección (305cm x 229cm)  Frontal & Retro - el espacio debe estar oscuro Tarifa por dia de 3 a 6 dias ",3071231,"Telón de proyección (305cm x 229cm)  Frontal & Retro - el espacio debe estar oscuro Tarifa por dia de 3 a 6 dias ",193018]
["3071292 Circuito cerrado a 1 cámara (Digital) Tarifa por dia 1 a 2 dias",3071292,"Circuito cerrado a 1 cámara (Digital) Tarifa por dia 1 a 2 dias",1005669]
["3071292 Circuito cerrado a 1 cámara (Digital)  Tarifa por dia de 3 a 6 dias ",3071292,"Circuito cerrado a 1 cámara (Digital)  Tarifa por dia de 3 a 6 dias ",914277]
["3071348 Micrófono inalámbrico de mano - sin operario (requiere sistema de sonido) Tarifa por dia 1 a 2 dias",3071348,"Micrófono inalámbrico de mano - sin operario (requiere sistema de sonido) Tarifa por dia 1 a 2 dias",92820]
["3071348 Micrófono inalámbrico de mano - sin operario (requiere sistema de sonido)  Tarifa por dia de 3 a 6 dias ",3071348,"Micrófono inalámbrico de mano - sin operario (requiere sistema de sonido)  Tarifa por dia de 3 a 6 dias ",84371]
["3071349 Micrófono inalámbrico de diadema - sin operario (requiere sistema de sonido) Tarifa por dia 1 a 2 dias",3071349,"Micrófono inalámbrico de diadema - sin operario (requiere sistema de sonido) Tarifa por dia 1 a 2 dias",92820]
["3071349 Micrófono inalámbrico de diadema - sin operario (requiere sistema de sonido) Tarifa por dia de 3 a 6 dias ",3071349,"Micrófono inalámbrico de diadema - sin operario (requiere sistema de sonido) Tarifa por dia de 3 a 6 dias ",84371]
["3070411 Sonido de 1 a 100 personas 1 micrófono alambrico - cabineria activa Tarifa por dia 1 a 2 dias",3070411,"Sonido de 1 a 100 personas 1 micrófono alambrico - cabineria activa Tarifa por dia 1 a 2 dias",169575]
["3070411 Sonido de 1 a 100 personas 1 micrófono alambrico - cabineria activa  Tarifa por dia de 3 a 6 dias ",3070411,"Sonido de 1 a 100 personas 1 micrófono alambrico - cabineria activa  Tarifa por dia de 3 a 6 dias ",154224]
["3071347 Sonido de 100 a 200 personas 2 micrófono alambrico - cabineria activa Tarifa por dia 1 a 2 dias",3071347,"Sonido de 100 a 200 personas 2 micrófono alambrico - cabineria activa Tarifa por dia 1 a 2 dias",255374]
["3071347 Sonido de 100 a 200 personas 2 micrófono alambrico - cabineria activa  Tarifa por dia de 3 a 6 dias ",3071347,"Sonido de 100 a 200 personas 2 micrófono alambrico - cabineria activa  Tarifa por dia de 3 a 6 dias ",232169]
["3071294 Sonido de 200 a 300 personas 3 micrófono alambrico - cabineria activa Tarifa por dia 1 a 2 dias",3071294,"Sonido de 200 a 300 personas 3 micrófono alambrico - cabineria activa Tarifa por dia 1 a 2 dias",470169]
["3071294 Sonido de 200 a 300 personas 3 micrófono alambrico - cabineria activa  Tarifa por dia de 3 a 6 dias ",3071294,"Sonido de 200 a 300 personas 3 micrófono alambrico - cabineria activa  Tarifa por dia de 3 a 6 dias ",427448]
["3071275 PAR LED - Luz LED multicolor decorar ambientes - espectáculos (Según  cantidad requiere dmx)  Tarifa por dia 1 a 2 dias",3071275,"PAR LED - Luz LED multicolor decorar ambientes - espectáculos (Según  cantidad requiere dmx)  Tarifa por dia 1 a 2 dias",40341]
["3071275 PAR LED - Luz LED multicolor decorar ambientes - espectáculos (Según  cantidad requiere dmx)  Tarifa por dia de 3 a 6 dias ",3071275,"PAR LED - Luz LED multicolor decorar ambientes - espectáculos (Según  cantidad requiere dmx)  Tarifa por dia de 3 a 6 dias ",36652]
["3071285 Control Mouse inalámbrico pasador de diapositivas USB con puntero laser  Tarifa por dia 1 a 2 dias",3071285,"Control Mouse inalámbrico pasador de diapositivas USB con puntero laser  Tarifa por dia 1 a 2 dias",26656]
["3071285 Control Mouse inalámbrico pasador de diapositivas USB con puntero laser  Tarifa por dia de 3 a 6 dias ",3071285,"Control Mouse inalámbrico pasador de diapositivas USB con puntero laser  Tarifa por dia de 3 a 6 dias ",24276]
["3070534 Operario técnico audiovisual, turno de 8 horas. Manejo de sonido básico, apoyo logístico  Tarifa por dia 1 a 2 dias",3070534,"Operario técnico audiovisual, turno de 8 horas. Manejo de sonido básico, apoyo logístico  Tarifa por dia 1 a 2 dias",178024]
["3070534 Operario técnico audiovisual, turno de 8 horas. Manejo de sonido básico, apoyo logístico Tarifa por dia de 3 a 6 dias ",3070534,"Operario técnico audiovisual, turno de 8 horas. Manejo de sonido básico, apoyo logístico Tarifa por dia de 3 a 6 dias ",161840]
["3071300 Asesoría técnica en producción de eventos y/o asesoramiento técnico audiovisual (Una hora por sesión)  Tarifa por dia 1 a 2 dias",3071300,"Asesoría técnica en producción de eventos y/o asesoramiento técnico audiovisual (Una hora por sesión)  Tarifa por dia 1 a 2 dias",92939]
["3071300 Asesoría técnica en producción de eventos y/o asesoramiento técnico audiovisual (Una hora por sesión) Tarifa por dia de 3 a 6 dias ",3071300,"Asesoría técnica en producción de eventos y/o asesoramiento técnico audiovisual (Una hora por sesión) Tarifa por dia de 3 a 6 dias ",84490]
["3071256-12 Computador portátil  Tarifa por dia 1 a 2 dias","3071256-12","Computador portátil  Tarifa por dia 1 a 2 dias",92939]
["3071256-12 Computador portátil  Tarifa por dia de 3 a 6 dias ","3071256-12","Computador portátil  Tarifa por dia de 3 a 6 dias ",84490]
["3071237 Computador de escritorio  Tarifa por dia 1 a 2 dias",3071237,"Computador de escritorio  Tarifa por dia 1 a 2 dias",88179]
["3071237 Computador de escritorio  Tarifa por dia de 3 a 6 dias ",3071237,"Computador de escritorio  Tarifa por dia de 3 a 6 dias ",80206]
["3071103 Nevera Minibar CHALLENGER 121lt  Tarifa por dia 1 a 2 dias",3071103,"Nevera Minibar CHALLENGER 121lt  Tarifa por dia 1 a 2 dias",74375]
["3071103 Nevera Minibar CHALLENGER 121lt  Tarifa por dia de 3 a 6 dias ",3071103,"Nevera Minibar CHALLENGER 121lt  Tarifa por dia de 3 a 6 dias ",56644]
["3071312 Aseo stands dos veces al dia entre 9 mts² y 27 mts² (valor por dia)",3071312,"Aseo stands dos veces al dia entre 9 mts² y 27 mts² (valor por dia)",19992]
["3071312 Aseo stands dos veces al dia entre 28 mts² y 55 mts² (valor por dia)",3071312,"Aseo stands dos veces al dia entre 28 mts² y 55 mts² (valor por dia)",27846]
["3071312 Aseo stands dos veces al dia entre 56 mts² y 108 mts² (valor por dia)",3071312,"Aseo stands dos veces al dia entre 56 mts² y 108 mts² (valor por dia)",41769]
["3071312 Aseo stands dos veces al dia entre 109 mts² y 162 mts² (valor por dia)",3071312,"Aseo stands dos veces al dia entre 109 mts² y 162 mts² (valor por dia)",67116]
["3071312 Aseo stands dos veces al dia de 162mts² en adelante se requiere de cotización previa,contactese con serviciosplus@corferias.com para brindarle asesoria y cotización.",3071312,"Aseo stands dos veces al dia de 162mts² en adelante se requiere de cotización previa,contactese con serviciosplus@corferias.com para brindarle asesoria y cotización.","Según cotización"]
["3071312 Aseo permanente 8 horas 1 Operario - Día normal",3071312,"Aseo permanente 8 horas 1 Operario - Día normal",112931]
["3071312 Aseo permanente 8 horas 1 Operario - Día festivo",3071312,"Aseo permanente 8 horas 1 Operario - Día festivo",166719]
["3071433 Corferias Conecta  APP (incluye el internet para un equipo)",3071433,"Corferias Conecta  APP (incluye el internet para un equipo)",330225]
["3071432 Corferias Conecta  APP + Tablet con internet",3071432,"Corferias Conecta  APP + Tablet con internet",436135]
["3071431 Tablet adicional con internet",3071431,"Tablet adicional con internet",290717]
["3071326 Internet adicional para la app por equipo",3071326,"Internet adicional para la app por equipo",103887]

{"sheet":"Matriz de busqueda de los cod","index":2,"n_rows":241,"n_cols":3,"rows_kept":241,"cut":false,"hidden":true,"merged":[]}
["Codigo","DESCRIPCIÓN","Clave"]
[3070101,"Instalación Monofásica (Toma corriente doble, consumo hasta 2KW/110V) valor de 1 a 6 dias",{"$f":"CONCATENATE(A2:A241,\" \",B2:B241)","v":"3070101 Instalación Monofásica (Toma corriente doble, consumo hasta 2KW/110V) valor de 1 a 6 dias"}]
[3070101,"Instalación Monofásica (Toma corriente doble, consumo hasta 2KW/110V) valor de 7 dias en adelante","3070101 Instalación Monofásica (Toma corriente doble, consumo hasta 2KW/110V) valor de 7 dias en adelante"]
[3070103,"Instalación kilovatio adicional monofásico (Debe contar con punto principal, MAX 2KW por punto)","3070103 Instalación kilovatio adicional monofásico (Debe contar con punto principal, MAX 2KW por punto)"]
[3070102,"Instalación trifásica (Regleta plastica, consumo hasta 4KW/208V)","3070102 Instalación trifásica (Regleta plastica, consumo hasta 4KW/208V)"]
[3070104,"Instalación kilovatio adicional trifásico (Debe contar con punto principal)","3070104 Instalación kilovatio adicional trifásico (Debe contar con punto principal)"]
[3071372,"De 21 a 50 kilovatios adicionales trifásicos (Valor por KW) (Debe contar con punto principal)","3071372 De 21 a 50 kilovatios adicionales trifásicos (Valor por KW) (Debe contar con punto principal)"]
[3071373,"De 51 a 100 kilovatios adicionales trifásicos (Valor por KW) (Debe contar con punto principal)","3071373 De 51 a 100 kilovatios adicionales trifásicos (Valor por KW) (Debe contar con punto principal)"]
[3071374,"Mas de100 kilovatios adicionales trifásicos (Valor por KW) (Debe contar con punto principal)","3071374 Mas de100 kilovatios adicionales trifásicos (Valor por KW) (Debe contar con punto principal)"]
[3070402,"Lampara de pared ajustable (150W/110V)","3070402 Lampara de pared ajustable (150W/110V)"]
[3070405,"Reflector Led (50W- mltV)","3070405 Reflector Led (50W- mltV)"]
[3070403,"Extensión – tomacorriente doble con polo a tierra (1500W/110V) MAX 6mts ","3070403 Extensión – tomacorriente doble con polo a tierra (1500W/110V) MAX 6mts "]
[3071345,"Lavaplatos 90XL* 60XH* 90 (No incluye agua y desague) valor de 1 a 6 dias","3071345 Lavaplatos 90XL* 60XH* 90 (No incluye agua y desague) valor de 1 a 6 dias"]
[3071345,"Lavaplatos 90XL* 60XH* 90 (No incluye agua y desague) valor de 7 dias en adelante","3071345 Lavaplatos 90XL* 60XH* 90 (No incluye agua y desague) valor de 7 dias en adelante"]
[3070301,"Punto de Agua en 1/2\" (incluye consumo) valor de 1 a 6 dias","3070301 Punto de Agua en 1/2\" (incluye consumo) valor de 1 a 6 dias"]
[3070301,"Punto de Agua en 1/2\" (incluye consumo) valor de 7 dias en adelante","3070301 Punto de Agua en 1/2\" (incluye consumo) valor de 7 dias en adelante"]
[3070302,"Desagüe en 1 1/2\" Por toda la feria (Ubicación asignada por Corferias en su stand) valor de 1 a 6 dias","3070302 Desagüe en 1 1/2\" Por toda la feria (Ubicación asignada por Corferias en su stand) valor de 1 a 6 dias"]
[3070302,"Desagüe en 1 1/2\" Por toda la feria (Ubicación asignada por Corferias en su stand) valor de 7 dias en adelante","3070302 Desagüe en 1 1/2\" Por toda la feria (Ubicación asignada por Corferias en su stand) valor de 7 dias en adelante"]
[3071341,"Aire comprimido para punto con presión máx. de 100 PSI, y caudal máx. 35CFM. valor de 1 a 6 dias","3071341 Aire comprimido para punto con presión máx. de 100 PSI, y caudal máx. 35CFM. valor de 1 a 6 dias"]
[3071341,"Aire comprimido para punto con presión máx. de 100 PSI, y caudal máx. 35CFM. valor de 7 dias en adelante","3071341 Aire comprimido para punto con presión máx. de 100 PSI, y caudal máx. 35CFM. valor de 7 dias en adelante"]
[3070307,"Punto de Agua en 1/2\" (Incluye consumo)  + Desagüe en 1 1/2\" + Lavaplatos valor de 1 a 6 dias","3070307 Punto de Agua en 1/2\" (Incluye consumo)  + Desagüe en 1 1/2\" + Lavaplatos valor de 1 a 6 dias"]
[3070307,"Punto de Agua en 1/2\" (Incluye consumo)  + Desagüe en 1 1/2\" + Lavaplatos valor de 7 dias en adelante","3070307 Punto de Agua en 1/2\" (Incluye consumo)  + Desagüe en 1 1/2\" + Lavaplatos valor de 7 dias en adelante"]
[3071321,"Punto de gas propano para UN (1) equipo de máximo 4 quemadores valor de 1 a 6 dias","3071321 Punto de gas propano para UN (1) equipo de máximo 4 quemadores valor de 1 a 6 dias"]
[3071321,"Punto de gas propano para UN (1) equipo de máximo 4 quemadores valor de 7 dias en adelante","3071321 Punto de gas propano para UN (1) equipo de máximo 4 quemadores valor de 7 dias en adelante"]
[3071368,"Quemador adicional (unidad), debe contar con punto de gas valor de 1 a 6 dias ","3071368 Quemador adicional (unidad), debe contar con punto de gas valor de 1 a 6 dias "]
[3071368,"Quemador adicional (unidad), debe contar con punto de gas valor de 7 dias en adelante","3071368 Quemador adicional (unidad), debe contar con punto de gas valor de 7 dias en adelante"]
[3070601,"Panel adicional sistema cfe 100cm x 240cm","3070601 Panel adicional sistema cfe 100cm x 240cm"]
[3070801,"Puerta sistema cfe 90cm x 240cm","3070801 Puerta sistema cfe 90cm x 240cm"]
[3070803,"Bodega estándar con puerta 150cm x 150cm (Sistema Corferias)","3070803 Bodega estándar con puerta 150cm x 150cm (Sistema Corferias)"]
[3071319,"Brazo Mecánico por Fracciòn de 15 min (Solo para primer nivel)","3071319 Brazo Mecánico por Fracciòn de 15 min (Solo para primer nivel)"]
[3071319,"Brazo Mecánico por Fracciòn de 30 min (Solo para primer nivel)","3071319 Brazo Mecánico por Fracciòn de 30 min (Solo para primer nivel)"]
[3071319,"Brazo Mecánico por Fracciòn de 45 min (Solo para primer nivel)","3071319 Brazo Mecánico por Fracciòn de 45 min (Solo para primer nivel)"]
[3071319,"Brazo Mecánico por Fracciòn de 60 min (Solo para primer nivel)","3071319 Brazo Mecánico por Fracciòn de 60 min (Solo para primer nivel)"]
[3070413,"Diferencial (Cap. 1 Ton.) + Brazo mecánico (Montaje y desmontaje) ","3070413 Diferencial (Cap. 1 Ton.) + Brazo mecánico (Montaje y desmontaje) "]
[3070414,"Plataforma Tijera eléctrica por Fracciòn /30 min (Uso para segundos niveles)","3070414 Plataforma Tijera eléctrica por Fracciòn /30 min (Uso para segundos niveles)"]
[3071418,"Servicio de Internet Cableado \"PARA UN EQUIPO - DURANTE UN DÍA\"  ","3071418 Servicio de Internet Cableado \"PARA UN EQUIPO - DURANTE UN DÍA\"  "]
[3071419,"Clave de acceso para la red WiFi  \"PARA UN EQUIPO - DURANTE UN DÍA\"","3071419 Clave de acceso para la red WiFi  \"PARA UN EQUIPO - DURANTE UN DÍA\""]
[3071417,"Servicio de Internet Cableado \"PARA UN EQUIPO - DURANTE TODA LA FERIA\" valor de 3 dias","3071417 Servicio de Internet Cableado \"PARA UN EQUIPO - DURANTE TODA LA FERIA\" valor de 3 dias"]
[3071417,"Servicio de Internet Cableado \"PARA UN EQUIPO - DURANTE TODA LA FERIA\" valor de 4 a 6 dias","3071417 Servicio de Internet Cableado \"PARA UN EQUIPO - DURANTE TODA LA FERIA\" valor de 4 a 6 dias"]
[3071417,"Servicio de Internet Cableado \"PARA UN EQUIPO - DURANTE TODA LA FERIA\" valor a partir de 7 dias","3071417 Servicio de Internet Cableado \"PARA UN EQUIPO - DURANTE TODA LA FERIA\" valor a partir de 7 dias"]
[3071420,"Clave de acceso para la Red WiFi \"PARA UN EQUIPO - DURANTE TODA LA FERIA\" valor de 3 dias","3071420 Clave de acceso para la Red WiFi \"PARA UN EQUIPO - DURANTE TODA LA FERIA\" valor de 3 dias"]
[3071420,"Clave de acceso para la Red WiFi \"PARA UN EQUIPO - DURANTE TODA LA FERIA\" valor de 4 a 6 dias","3071420 Clave de acceso para la Red WiFi \"PARA UN EQUIPO - DURANTE TODA LA FERIA\" valor de 4 a 6 dias"]
[3071420,"Clave de acceso para la Red WiFi \"PARA UN EQUIPO - DURANTE TODA LA FERIA\" valor a partir de 7 dias","3071420 Clave de acceso para la Red WiFi \"PARA UN EQUIPO - DURANTE TODA LA FERIA\" valor a partir de 7 dias"]
[3071423,"Conexión para Datafono + Clave de acceso WIFI (Para un equipo durante toda la feria) valor de 3 dias ","3071423 Conexión para Datafono + Clave de acceso WIFI (Para un equipo durante toda la feria) valor de 3 dias "]
[3071423,"Conexión para Datafono + Clave de acceso WIFI (Para un equipo durante toda la feria)  valor de 4 a 6 dias","3071423 Conexión para Datafono + Clave de acceso WIFI (Para un equipo durante toda la feria)  valor de 4 a 6 dias"]
[3071423,"Conexión para Datafono + Clave de acceso WIFI (Para un equipo durante toda la feria) valor a partir de 7 dias","3071423 Conexión para Datafono + Clave de acceso WIFI (Para un equipo durante toda la feria) valor a partir de 7 dias"]
[3071424,"Conexión para Datafono + Servicio de Internet Cableado (Para un equipo durante toda la feria) valor de 3 dias ","3071424 Conexión para Datafono + Servicio de Internet Cableado (Para un equipo durante toda la feria) valor de 3 dias "]
[3071424,"Conexión para Datafono + Servicio de Internet Cableado (Para un equipo durante toda la feria)  valor de 4 a 6 dias","3071424 Conexión para Datafono + Servicio de Internet Cableado (Para un equipo durante toda la feria)  valor de 4 a 6 dias"]
[3071424,"Conexión para Datafono + Servicio de Internet Cableado (Para un equipo durante toda la feria) valor a partir de 7 dias","3071424 Conexión para Datafono + Servicio de Internet Cableado (Para un equipo durante toda la feria) valor a partir de 7 dias"]
[3071425,"Servicio de Internet Cableado + Clave de acceso WIFI (Para un equipo durante toda la feria) valor de 3 dias ","3071425 Servicio de Internet Cableado + Clave de acceso WIFI (Para un equipo durante toda la feria) valor de 3 dias "]
[3071425,"Servicio de Internet Cableado + Clave de acceso WIFI (Para un equipo durante toda la feria)  valor de 4 a 6 dias","3071425 Servicio de Internet Cableado + Clave de acceso WIFI (Para un equipo durante toda la feria)  valor de 4 a 6 dias"]
[3071425,"Servicio de Internet Cableado + Clave de acceso WIFI (Para un equipo durante toda la feria) valor a partir de 7 dias","3071425 Servicio de Internet Cableado + Clave de acceso WIFI (Para un equipo durante toda la feria) valor a partir de 7 dias"]
[3071437,"Internet Dedicado: Si requiere conexión banda ancha para diferentes servicios o redes locales, contáctese con serviciosplus@corferias.com para brindarle asesoria y cotización.","3071437 Internet Dedicado: Si requiere conexión banda ancha para diferentes servicios o redes locales, contáctese con serviciosplus@corferias.com para brindarle asesoria y cotización."]
[3071406,"Instalación Punto de Red:Incluye un cable UTP por punto","3071406 Instalación Punto de Red:Incluye un cable UTP por punto"]
[3071407,"Switch VALOR POR FERIA ","3071407 Switch VALOR POR FERIA "]
[3071402,"Servicio de VLAN: Servicio virtual de red.  VALOR POR FERIA","3071402 Servicio de VLAN: Servicio virtual de red.  VALOR POR FERIA"]
[3071430,"Extension LAN VALOR POR FERIA  (Incluye punto de red y aplica para extender el servicio de internet contratado con terceros)","3071430 Extension LAN VALOR POR FERIA  (Incluye punto de red y aplica para extender el servicio de internet contratado con terceros)"]
[3071442,"Soporte técnico permanente (Por espacio de 8 horas) de un técnico. VALOR DÍARIO ","3071442 Soporte técnico permanente (Por espacio de 8 horas) de un técnico. VALOR DÍARIO "]
[3070202,"Servicio Telefónico Urbano con Aparato (Incluye consumo local ilimitado)","3070202 Servicio Telefónico Urbano con Aparato (Incluye consumo local ilimitado)"]
[3070203,"Servicio Telefónico Larga Distancia con aparato","3070203 Servicio Telefónico Larga Distancia con aparato"]
[3070201,"Línea Externa no conmutada (Previa solicitud a Etb, Claro, EPM, Colomsat u otro operador)","3070201 Línea Externa no conmutada (Previa solicitud a Etb, Claro, EPM, Colomsat u otro operador)"]
[3070207,"Conexión cableada para Datafono:(No incluye Datafono)","3070207 Conexión cableada para Datafono:(No incluye Datafono)"]
[3070942,"Kit básico Pino 1 (1 mesa pleglable pino, 3 sillas acrilicas k negra)","3070942 Kit básico Pino 1 (1 mesa pleglable pino, 3 sillas acrilicas k negra)"]
[3071105,"KIT básico oficina 2 (2 sillas interlocutoras, 1 silla ejecutiva, 1 mesa oficina)","3071105 KIT básico oficina 2 (2 sillas interlocutoras, 1 silla ejecutiva, 1 mesa oficina)"]
[3071036,"Mesa plegable plastico + 2 sillas interlocutoras","3071036 Mesa plegable plastico + 2 sillas interlocutoras"]
[3071039,"Mesa alta Daysa + 2 sillas neumaticas altas marsella","3071039 Mesa alta Daysa + 2 sillas neumaticas altas marsella"]
[3071054,"Mesa estandar lotus vidrio + 2 sillas tipo huevo","3071054 Mesa estandar lotus vidrio + 2 sillas tipo huevo"]
[3071002,"Silla Acrílica k negra (85cm x 49cm x 47cm)","3071002 Silla Acrílica k negra (85cm x 49cm x 47cm)"]
[3071078,"Silla con Espaldar Arles (75cm x 38cm x39cm)","3071078 Silla con Espaldar Arles (75cm x 38cm x39cm)"]
[30713198,"Silla Gerencial (119cm x 67cm x 78cm)","30713198 Silla Gerencial (119cm x 67cm x 78cm)"]
[3071081,"Silla Ejecutiva (79cm x 53cm x 42cm)","3071081 Silla Ejecutiva (79cm x 53cm x 42cm)"]
[3071061,"Silla estandar Suiza (48cm x 46cm x 45cm)","3071061 Silla estandar Suiza (48cm x 46cm x 45cm)"]
[3071008,"Silla estandar Tipo Huevo (48cm x 46cm x 45cm)","3071008 Silla estandar Tipo Huevo (48cm x 46cm x 45cm)"]
[3071006,"Silla Interlocutora Negra (79cm x 53cm x 42cm)","3071006 Silla Interlocutora Negra (79cm x 53cm x 42cm)"]
[3071022,"Silla Neumatica alta Versalles (80cm x 40 cm x 40cm","3071022 Silla Neumatica alta Versalles (80cm x 40 cm x 40cm"]
[3071077,"Silla Neumática alta Marsella (80cm x 40cm x 40cm)","3071077 Silla Neumática alta Marsella (80cm x 40cm x 40cm)"]
[3071092,"Silla Neumatica alta POP (Blanca o negra) (80cm x 43cm x 40cm)","3071092 Silla Neumatica alta POP (Blanca o negra) (80cm x 43cm x 40cm)"]
[3070503,"Estantería Polo (Melaminico)   (100cm x 93cm x 35cm)","3070503 Estantería Polo (Melaminico)   (100cm x 93cm x 35cm)"]
[3070503,"Estantería Polo (Miel)  (100cm x 93cm x 35cm)","3070503 Estantería Polo (Miel)  (100cm x 93cm x 35cm)"]
[3070503,"Estantería Polo (Rovere)  (100cm x 93cm x 35cm)","3070503 Estantería Polo (Rovere)  (100cm x 93cm x 35cm)"]
[3070503,"Estantería Polo (Roble Gris)  (100cm x 93cm x 35cm)","3070503 Estantería Polo (Roble Gris)  (100cm x 93cm x 35cm)"]
[3071108,"Estantería Shelf 4E (190cm x 125cm x 41cm)","3071108 Estantería Shelf 4E (190cm x 125cm x 41cm)"]
[3071107,"Archivador Regina (70cm x 37cm x50cm)","3071107 Archivador Regina (70cm x 37cm x50cm)"]
[3070954,"Counter Mónaco (Melaminico) (100cm x 100cm x 40cm)","3070954 Counter Mónaco (Melaminico) (100cm x 100cm x 40cm)"]
[3070954,"Counter Mónaco (Miel) (100cm x 100cm x 40cm)","3070954 Counter Mónaco (Miel) (100cm x 100cm x 40cm)"]
[3070954,"Counter Mónaco (Rovere) (100cm x 100cm x 40cm)","3070954 Counter Mónaco (Rovere) (100cm x 100cm x 40cm)"]
[3070954,"Counter Mónaco (Roble Gris) (100cm x 100cm x 40cm)","3070954 Counter Mónaco (Roble Gris) (100cm x 100cm x 40cm)"]
[3070535,"Vitrina Isla 2E (200cm x 50cm x 50cm)","3070535 Vitrina Isla 2E (200cm x 50cm x 50cm)"]
[3070517,"Vitrina Mostrador 1E (100cm x 100cm x 40cm)","3070517 Vitrina Mostrador 1E (100cm x 100cm x 40cm)"]
[3070518,"Vitrina Mostrador Tipo 2 1E (100cm x 50 cm x 40cm)","3070518 Vitrina Mostrador Tipo 2 1E (100cm x 50 cm x 40cm)"]
[3071111,"Vitrina Rectangular 2E (200cm x 100cm x 40cm)","3071111 Vitrina Rectangular 2E (200cm x 100cm x 40cm)"]
[30713199,"Vitrina Rectangular 3E (180cm x 100cm x 40cm)","30713199 Vitrina Rectangular 3E (180cm x 100cm x 40cm)"]
[3071115,"Mesa alta Daysa (Melaminico) (100cm x 60cm)","3071115 Mesa alta Daysa (Melaminico) (100cm x 60cm)"]
[3071115,"Mesa alta Daysa (Miel) (100cm x 60cm)","3071115 Mesa alta Daysa (Miel) (100cm x 60cm)"]
[3071115,"Mesa alta Daysa (Rovere) (100cm x 60cm)","3071115 Mesa alta Daysa (Rovere) (100cm x 60cm)"]
[3071115,"Mesa alta Daysa (Roble Gris) (100cm x 60cm)","3071115 Mesa alta Daysa (Roble Gris) (100cm x 60cm)"]
[3071093,"Mesa alta Daysa vidrio (100cm x 60cm)","3071093 Mesa alta Daysa vidrio (100cm x 60cm)"]
[3071104,"Mesa Centro 2 Niveles (melaminico) (50cm x 60cm x 60)","3071104 Mesa Centro 2 Niveles (melaminico) (50cm x 60cm x 60)"]
[3071100,"Mesa Centro Circular doble nivel (melaminico) (50cm x 110cm x 60cm)","3071100 Mesa Centro Circular doble nivel (melaminico) (50cm x 110cm x 60cm)"]
[3071068,"Mesa Centro Rectangular doble nivel (melaminico) (50cm x 75cm x 50cm) ","3071068 Mesa Centro Rectangular doble nivel (melaminico) (50cm x 75cm x 50cm) "]
[3071097,"Mesa estandar Daysa (76cm x 60cm)","3071097 Mesa estandar Daysa (76cm x 60cm)"]
[3071116,"Mesa estandar Lotus (70cm x 64cm x 81cm)","3071116 Mesa estandar Lotus (70cm x 64cm x 81cm)"]
[3071098,"Mesa estandar Shia (76cm x 60cm x 60cm)","3071098 Mesa estandar Shia (76cm x 60cm x 60cm)"]
[30713200,"Mesa Oficina (78cm x 120cm x 50cm)","30713200 Mesa Oficina (78cm x 120cm x 50cm)"]
[3070936,"Mesón plegable plástico (Gris o blanco) (73cm x 182cm x 76cm)","3070936 Mesón plegable plástico (Gris o blanco) (73cm x 182cm x 76cm)"]
[3070904,"Mesón plegable pino (75cm x 120cm x 60cm)","3070904 Mesón plegable pino (75cm x 120cm x 60cm)"]
[3071113,"Sala Osaka (1 sofá Toronto, 2 puffs Donna, 1 mesa centro 2 niveles)","3071113 Sala Osaka (1 sofá Toronto, 2 puffs Donna, 1 mesa centro 2 niveles)"]
[3071095,"Sala VIP (1 sofá Victoria derecho, 1 sofá Victoria izquierdo, 2 poltronas, 1 mesa centro 2 niveles)","3071095 Sala VIP (1 sofá Victoria derecho, 1 sofá Victoria izquierdo, 2 poltronas, 1 mesa centro 2 niveles)"]
[3071090,"Puff estandar cuadrado (43cm x 43cm x 43cm)","3071090 Puff estandar cuadrado (43cm x 43cm x 43cm)"]
[3071091,"Puff Trunk 2 cuerpos (48cm x 81cm x 40cm)","3071091 Puff Trunk 2 cuerpos (48cm x 81cm x 40cm)"]
[3071114,"Puff Trunk 3 cuerpos (48cm x 120cm x 54cm)","3071114 Puff Trunk 3 cuerpos (48cm x 120cm x 54cm)"]
[3071085,"Sofa Otawa 2 cuerpos (85cm x 120cm x 76cm)","3071085 Sofa Otawa 2 cuerpos (85cm x 120cm x 76cm)"]
[3071083,"Sofa Toronto 3 cuerpos (88cm x 173cm x 80cm)","3071083 Sofa Toronto 3 cuerpos (88cm x 173cm x 80cm)"]
[3071031,"Sofa Terranova 2 cuerpos (88cm x 173cm x 80cm)","3071031 Sofa Terranova 2 cuerpos (88cm x 173cm x 80cm)"]
[3071013,"Sofa Victoria derecho (70cm x 100cm x 75cm)","3071013 Sofa Victoria derecho (70cm x 100cm x 75cm)"]
[3071023,"Sofa Victoria izquierdo (70cm x 100cm x 75cm)","3071023 Sofa Victoria izquierdo (70cm x 100cm x 75cm)"]
[30713201,"Poltrona Buggy (72cm x 64cm)","30713201 Poltrona Buggy (72cm x 64cm)"]
[3071059,"Poltrona Levis (73cm x 86cm x 78cm)","3071059 Poltrona Levis (73cm x 86cm x 78cm)"]
[3071302,"Papelera metálica","3071302 Papelera metálica"]
[3071325,"Poste separador 120cm de alto","3071325 Poste separador 120cm de alto"]
[3070714,"Cubo de exhibición (40cm x 40cm x 25cm)","3070714 Cubo de exhibición (40cm x 40cm x 25cm)"]
[3070957,"Pedestal cuadrado (30cm x 30cm x 30cm)","3070957 Pedestal cuadrado (30cm x 30cm x 30cm)"]
[3070956,"Pedestal rectangular 60cm (30cm x 60cm x 30cm)","3070956 Pedestal rectangular 60cm (30cm x 60cm x 30cm)"]
[3070955,"Pedestal rectangular 90cm (30cm x 90cm x 30cm)","3070955 Pedestal rectangular 90cm (30cm x 90cm x 30cm)"]
[3071370,"Revistero plegable (140cm x 25cm x 29cm)","3071370 Revistero plegable (140cm x 25cm x 29cm)"]
[3070505,"Tarima 120x120x60, (Previa verificación con área de montaje)","3070505 Tarima 120x120x60, (Previa verificación con área de montaje)"]
[3071388,"Módulo de carga 20 puntos 110V","3071388 Módulo de carga 20 puntos 110V"]
[3071375,"Planta + matera plástica (Pequeña)","3071375 Planta + matera plástica (Pequeña)"]
[3071376,"Planta + matera plástica (Mediana)","3071376 Planta + matera plástica (Mediana)"]
[3071377,"Planta + matera plástica (Grande)","3071377 Planta + matera plástica (Grande)"]
[3071378,"Jardinera en madera + 3 Plantas grandes","3071378 Jardinera en madera + 3 Plantas grandes"]
[3071379,"Jardinera en madera + 3 Plantas medianas","3071379 Jardinera en madera + 3 Plantas medianas"]
[3071380,"Jardinera en madera + 7 Plantas pequeñas","3071380 Jardinera en madera + 7 Plantas pequeñas"]
[3071381,"Cajoneras con flores","3071381 Cajoneras con flores"]
[3071314,"Grandes (61cm x 120cm)","3071314 Grandes (61cm x 120cm)"]
[3071301,"Medianas (31cm x 120cm)","3071301 Medianas (31cm x 120cm)"]
[3071317,"Pequeñas (10cm x 30cm)","3071317 Pequeñas (10cm x 30cm)"]
[3071382,"Suculentas (10cm x 15cm)","3071382 Suculentas (10cm x 15cm)"]
[3071383,"Chamizos","3071383 Chamizos"]
[3071355,"De barro grande","3071355 De barro grande"]
[3071356,"De barro mediana","3071356 De barro mediana"]
[3071384,"De barro pequeña","3071384 De barro pequeña"]
[3071357,"Plástica grande","3071357 Plástica grande"]
[3071358,"Plástica mediana","3071358 Plástica mediana"]
[3071359,"Plástica pequeña","3071359 Plástica pequeña"]
[3071360,"Jardinera en madera (35cm x 100cm x 35cm)","3071360 Jardinera en madera (35cm x 100cm x 35cm)"]
[3071352,"Grandes","3071352 Grandes"]
[3071353,"Medianos","3071353 Medianos"]
[3071354,"Pequeños","3071354 Pequeños"]
[3071364,"Topiario en forma de animales o frutas ","3071364 Topiario en forma de animales o frutas "]
[3071365,"Topiario en bolas grandes","3071365 Topiario en bolas grandes"]
[3071385,"Topiario en bolas pequeñas","3071385 Topiario en bolas pequeñas"]
[3071363,"Piedras (Por m2)","3071363 Piedras (Por m2)"]
[3071367,"Pino patula (Por bulto)","3071367 Pino patula (Por bulto)"]
[3071361,"Gravilla (Por m2)","3071361 Gravilla (Por m2)"]
[3071386,"Muros verticales (Por m2)","3071386 Muros verticales (Por m2)"]
[3071366,"Cascarilla (Por bulto)","3071366 Cascarilla (Por bulto)"]
[3071362,"Rocas (Por unidad)","3071362 Rocas (Por unidad)"]
[3071346,"Base de Pedestal Para TV Led - LCD (No incluye instalación del equipo - ni tornillería) Tarifa por dia 1 a 2 dias","3071346 Base de Pedestal Para TV Led - LCD (No incluye instalación del equipo - ni tornillería) Tarifa por dia 1 a 2 dias"]
[3071346,"Base de Pedestal Para TV Led - LCD (No incluye instalación del equipo - ni tornillería) Tarifa por dia de 3 a 6 dias ","3071346 Base de Pedestal Para TV Led - LCD (No incluye instalación del equipo - ni tornillería) Tarifa por dia de 3 a 6 dias "]
[3071346,"Base de Pedestal Para TV Led - LCD (No incluye instalación del equipo - ni tornillería) Tarifa de 7 dias en adelante ","3071346 Base de Pedestal Para TV Led - LCD (No incluye instalación del equipo - ni tornillería) Tarifa de 7 dias en adelante "]
[3071204,"TV LED o LCD de 40''+ base para pedestal (Incluye cableado) IN: USB, hdmi, rca  Tarifa por dia 1 a 2 dias ","3071204 TV LED o LCD de 40''+ base para pedestal (Incluye cableado) IN: USB, hdmi, rca  Tarifa por dia 1 a 2 dias "]
[3071204,"TV LED o LCD de 40''+ base para pedestal (Incluye cableado) IN: USB, hdmi, rca  Tarifa por dia de 3 a 6 dias ","3071204 TV LED o LCD de 40''+ base para pedestal (Incluye cableado) IN: USB, hdmi, rca  Tarifa por dia de 3 a 6 dias "]
[3071204,"TV LED o LCD de 40''+ base para pedestal (Incluye cableado) IN: USB, hdmi, rca  Tarifa de 7 dias en adelante ","3071204 TV LED o LCD de 40''+ base para pedestal (Incluye cableado) IN: USB, hdmi, rca  Tarifa de 7 dias en adelante "]
[3071206,"TV LED o LCD de 50''+ base para pedestal (Incluye cableado) IN: USB, hdmi, rca  Tarifa por dia 1 a 2 dias","3071206 TV LED o LCD de 50''+ base para pedestal (Incluye cableado) IN: USB, hdmi, rca  Tarifa por dia 1 a 2 dias"]
[3071206,"TV LED o LCD de 50''+ base para pedestal (Incluye cableado) IN: USB, hdmi, rca  Tarifa por dia de 3 a 6 dias ","3071206 TV LED o LCD de 50''+ base para pedestal (Incluye cableado) IN: USB, hdmi, rca  Tarifa por dia de 3 a 6 dias "]
[3071206,"TV LED o LCD de 50''+ base para pedestal (Incluye cableado) IN: USB, hdmi, rca Tarifa de 7 dias en adelante ","3071206 TV LED o LCD de 50''+ base para pedestal (Incluye cableado) IN: USB, hdmi, rca Tarifa de 7 dias en adelante "]
[3071279,"TV LED o LCD de 70''+ base para pedestal (Incluye cableado) IN: USB, hdmi, rca  Tarifa por dia 1 a 2 dias","3071279 TV LED o LCD de 70''+ base para pedestal (Incluye cableado) IN: USB, hdmi, rca  Tarifa por dia 1 a 2 dias"]
[3071279,"TV LED o LCD de 70''+ base para pedestal (Incluye cableado) IN: USB, hdmi, rca  Tarifa por dia de 3 a 6 dias ","3071279 TV LED o LCD de 70''+ base para pedestal (Incluye cableado) IN: USB, hdmi, rca  Tarifa por dia de 3 a 6 dias "]
[3071279,"TV LED o LCD de 70''+ base para pedestal (Incluye cableado) IN: USB, hdmi, rca  Tarifa de 7 dias en adelante ","3071279 TV LED o LCD de 70''+ base para pedestal (Incluye cableado) IN: USB, hdmi, rca  Tarifa de 7 dias en adelante "]
[3071222,"TV LED o LCD de 84''+ base para pedestal (Incluye cableado) IN: USB, hdmi, rca Tarifa por dia 1 a 2 dias","3071222 TV LED o LCD de 84''+ base para pedestal (Incluye cableado) IN: USB, hdmi, rca Tarifa por dia 1 a 2 dias"]
[3071222,"TV LED o LCD de 84''+ base para pedestal (Incluye cableado) IN: USB, hdmi, rca  Tarifa por dia de 3 a 6 dias ","3071222 TV LED o LCD de 84''+ base para pedestal (Incluye cableado) IN: USB, hdmi, rca  Tarifa por dia de 3 a 6 dias "]
[3071222,"TV LED o LCD de 84''+ base para pedestal (Incluye cableado) IN: USB, hdmi, rca  Tarifa de 7 dias en adelante ","3071222 TV LED o LCD de 84''+ base para pedestal (Incluye cableado) IN: USB, hdmi, rca  Tarifa de 7 dias en adelante "]
[3071277,"TV LED o LCD de 90'' (Incluye: base de pedestal y cableado) IN: USB, hdmi, rca Tarifa por dia 1 a 2 dias","3071277 TV LED o LCD de 90'' (Incluye: base de pedestal y cableado) IN: USB, hdmi, rca Tarifa por dia 1 a 2 dias"]
[3071277,"TV LED o LCD de 90'' (Incluye: base de pedestal y cableado) IN: USB, hdmi, rca Tarifa por dia de 3 a 6 dias ","3071277 TV LED o LCD de 90'' (Incluye: base de pedestal y cableado) IN: USB, hdmi, rca Tarifa por dia de 3 a 6 dias "]
[3071277,"TV LED o LCD de 90'' (Incluye: base de pedestal y cableado) IN: USB, hdmi, rca Tarifa de 7 dias en adelante ","3071277 TV LED o LCD de 90'' (Incluye: base de pedestal y cableado) IN: USB, hdmi, rca Tarifa de 7 dias en adelante "]
[3071261,"Pantalla TACTIL de 40'' + base de pedestal (Incluye cableado, PC portátil) IN: hdmi. Tarifa por dia 1 a 2 dias","3071261 Pantalla TACTIL de 40'' + base de pedestal (Incluye cableado, PC portátil) IN: hdmi. Tarifa por dia 1 a 2 dias"]
[3071261,"Pantalla TACTIL de 40'' + base de pedestal (Incluye cableado, PC portátil) IN: hdmi. Tarifa por dia de 3 a 6 dias ","3071261 Pantalla TACTIL de 40'' + base de pedestal (Incluye cableado, PC portátil) IN: hdmi. Tarifa por dia de 3 a 6 dias "]
[3071261,"Pantalla TACTIL de 40'' + base de pedestal (Incluye cableado, PC portátil) IN: hdmi. Tarifa de 7 dias en adelante ","3071261 Pantalla TACTIL de 40'' + base de pedestal (Incluye cableado, PC portátil) IN: hdmi. Tarifa de 7 dias en adelante "]
[3071284,"Tablet Táctil 7 pulgadas Tarifa por dia 1 a 2 dias","3071284 Tablet Táctil 7 pulgadas Tarifa por dia 1 a 2 dias"]
[3071284,"Tablet Táctil 7 pulgadas  Tarifa por dia de 3 a 6 dias ","3071284 Tablet Táctil 7 pulgadas  Tarifa por dia de 3 a 6 dias "]
[3071284,"Tablet Táctil 7 pulgadas Tarifa de 7 dias en adelante ","3071284 Tablet Táctil 7 pulgadas Tarifa de 7 dias en adelante "]
[3071234,"Video Proyector 4500 ansi lumens - El lugar de proyección debe estar lo mas oscuro posible Tarifa por dia 1 a 2 dias","3071234 Video Proyector 4500 ansi lumens - El lugar de proyección debe estar lo mas oscuro posible Tarifa por dia 1 a 2 dias"]
[3071234,"Video Proyector 4500 ansi lumens - El lugar de proyección debe estar lo mas oscuro posible  Tarifa por dia de 3 a 6 dias ","3071234 Video Proyector 4500 ansi lumens - El lugar de proyección debe estar lo mas oscuro posible  Tarifa por dia de 3 a 6 dias "]
[3071234,"Video Proyector 4500 ansi lumens - El lugar de proyección debe estar lo mas oscuro posible  Tarifa de 7 dias en adelante ","3071234 Video Proyector 4500 ansi lumens - El lugar de proyección debe estar lo mas oscuro posible  Tarifa de 7 dias en adelante "]
[3071232,"Telón de proyección (180cm x 135cm) - Frontal (colgar) - el espacio debe estar oscuro Tarifa por dia 1 a 2 dias","3071232 Telón de proyección (180cm x 135cm) - Frontal (colgar) - el espacio debe estar oscuro Tarifa por dia 1 a 2 dias"]
[3071232,"Telón de proyección (180cm x 135cm) - Frontal (colgar) - el espacio debe estar oscuro Tarifa por dia de 3 a 6 dias ","3071232 Telón de proyección (180cm x 135cm) - Frontal (colgar) - el espacio debe estar oscuro Tarifa por dia de 3 a 6 dias "]
[3071232,"Telón de proyección (180cm x 135cm) - Frontal (colgar) - el espacio debe estar oscuro Tarifa de 7 dias en adelante  ","3071232 Telón de proyección (180cm x 135cm) - Frontal (colgar) - el espacio debe estar oscuro Tarifa de 7 dias en adelante  "]
[3071231,"Telón de proyección (305cm x 229cm)  Frontal & Retro - el espacio debe estar oscuro Tarifa por dia 1 a 2 dias","3071231 Telón de proyección (305cm x 229cm)  Frontal & Retro - el espacio debe estar oscuro Tarifa por dia 1 a 2 dias"]
[3071231,"Telón de proyección (305cm x 229cm)  Frontal & Retro - el espacio debe estar oscuro Tarifa por dia de 3 a 6 dias ","3071231 Telón de proyección (305cm x 229cm)  Frontal & Retro - el espacio debe estar oscuro Tarifa por dia de 3 a 6 dias "]
[3071231,"Telón de proyección (305cm x 229cm)  Frontal & Retro - el espacio debe estar oscuro Tarifa de 7 dias en adelante ","3071231 Telón de proyección (305cm x 229cm)  Frontal & Retro - el espacio debe estar oscuro Tarifa de 7 dias en adelante "]
[3071292,"Circuito cerrado a 1 cámara (Digital) Tarifa por dia 1 a 2 dias","3071292 Circuito cerrado a 1 cámara (Digital) Tarifa por dia 1 a 2 dias"]
[3071292,"Circuito cerrado a 1 cámara (Digital)  Tarifa por dia de 3 a 6 dias ","3071292 Circuito cerrado a 1 cámara (Digital)  Tarifa por dia de 3 a 6 dias "]
[3071292,"Circuito cerrado a 1 cámara (Digital)  Tarifa de 7 dias en adelante ","3071292 Circuito cerrado a 1 cámara (Digital)  Tarifa de 7 dias en adelante "]
[3071348,"Micrófono inalámbrico de mano - sin operario (requiere sistema de sonido) Tarifa por dia 1 a 2 dias","3071348 Micrófono inalámbrico de mano - sin operario (requiere sistema de sonido) Tarifa por dia 1 a 2 dias"]
[3071348,"Micrófono inalámbrico de mano - sin operario (requiere sistema de sonido)  Tarifa por dia de 3 a 6 dias ","3071348 Micrófono inalámbrico de mano - sin operario (requiere sistema de sonido)  Tarifa por dia de 3 a 6 dias "]
[3071348,"Micrófono inalámbrico de mano - sin operario (requiere sistema de sonido)  Tarifa de 7 dias en adelante ","3071348 Micrófono inalámbrico de mano - sin operario (requiere sistema de sonido)  Tarifa de 7 dias en adelante "]
[3071349,"Micrófono inalámbrico de diadema - sin operario (requiere sistema de sonido) Tarifa por dia 1 a 2 dias","3071349 Micrófono inalámbrico de diadema - sin operario (requiere sistema de sonido) Tarifa por dia 1 a 2 dias"]
[3071349,"Micrófono inalámbrico de diadema - sin operario (requiere sistema de sonido) Tarifa por dia de 3 a 6 dias ","3071349 Micrófono inalámbrico de diadema - sin operario (requiere sistema de sonido) Tarifa por dia de 3 a 6 dias "]
[3071349,"Micrófono inalámbrico de diadema - sin operario (requiere sistema de sonido) Tarifa de 7 dias en adelante ","3071349 Micrófono inalámbrico de diadema - sin operario (requiere sistema de sonido) Tarifa de 7 dias en adelante "]
[3070411,"Sonido de 1 a 100 personas 1 micrófono alambrico - cabineria activa Tarifa por dia 1 a 2 dias","3070411 Sonido de 1 a 100 personas 1 micrófono alambrico - cabineria activa Tarifa por dia 1 a 2 dias"]
[3070411,"Sonido de 1 a 100 personas 1 micrófono alambrico - cabineria activa  Tarifa por dia de 3 a 6 dias ","3070411 Sonido de 1 a 100 personas 1 micrófono alambrico - cabineria activa  Tarifa por dia de 3 a 6 dias "]
[3070411,"Sonido de 1 a 100 personas 1 micrófono alambrico - cabineria activa  Tarifa de 7 dias en adelante ","3070411 Sonido de 1 a 100 personas 1 micrófono alambrico - cabineria activa  Tarifa de 7 dias en adelante "]
[3071347,"Sonido de 100 a 200 personas 2 micrófono alambrico - cabineria activa Tarifa por dia 1 a 2 dias","3071347 Sonido de 100 a 200 personas 2 micrófono alambrico - cabineria activa Tarifa por dia 1 a 2 dias"]
[3071347,"Sonido de 100 a 200 personas 2 micrófono alambrico - cabineria activa  Tarifa por dia de 3 a 6 dias ","3071347 Sonido de 100 a 200 personas 2 micrófono alambrico - cabineria activa  Tarifa por dia de 3 a 6 dias "]
[3071347,"Sonido de 100 a 200 personas 2 micrófono alambrico - cabineria activa  Tarifa de 7 dias en adelante ","3071347 Sonido de 100 a 200 personas 2 micrófono alambrico - cabineria activa  Tarifa de 7 dias en adelante "]
[3071294,"Sonido de 200 a 300 personas 3 micrófono alambrico - cabineria activa Tarifa por dia 1 a 2 dias","3071294 Sonido de 200 a 300 personas 3 micrófono alambrico - cabineria activa Tarifa por dia 1 a 2 dias"]
[3071294,"Sonido de 200 a 300 personas 3 micrófono alambrico - cabineria activa  Tarifa por dia de 3 a 6 dias ","3071294 Sonido de 200 a 300 personas 3 micrófono alambrico - cabineria activa  Tarifa por dia de 3 a 6 dias "]
[3071294,"Sonido de 200 a 300 personas 3 micrófono alambrico - cabineria activa  Tarifa de 7 dias en adelante ","3071294 Sonido de 200 a 300 personas 3 micrófono alambrico - cabineria activa  Tarifa de 7 dias en adelante "]
[3071275,"PAR LED - Luz LED multicolor decorar ambientes - espectáculos (Según  cantidad requiere dmx)  Tarifa por dia 1 a 2 dias","3071275 PAR LED - Luz LED multicolor decorar ambientes - espectáculos (Según  cantidad requiere dmx)  Tarifa por dia 1 a 2 dias"]
[3071275,"PAR LED - Luz LED multicolor decorar ambientes - espectáculos (Según  cantidad requiere dmx)  Tarifa por dia de 3 a 6 dias ","3071275 PAR LED - Luz LED multicolor decorar ambientes - espectáculos (Según  cantidad requiere dmx)  Tarifa por dia de 3 a 6 dias "]
[3071275,"PAR LED - Luz LED multicolor decorar ambientes - espectáculos (Según  cantidad requiere dmx)  Tarifa de 7 dias en adelante ","3071275 PAR LED - Luz LED multicolor decorar ambientes - espectáculos (Según  cantidad requiere dmx)  Tarifa de 7 dias en adelante "]
[3071285,"Control Mouse inalámbrico pasador de diapositivas USB con puntero laser  Tarifa por dia 1 a 2 dias","3071285 Control Mouse inalámbrico pasador de diapositivas USB con puntero laser  Tarifa por dia 1 a 2 dias"]
[3071285,"Control Mouse inalámbrico pasador de diapositivas USB con puntero laser  Tarifa por dia de 3 a 6 dias ","3071285 Control Mouse inalámbrico pasador de diapositivas USB con puntero laser  Tarifa por dia de 3 a 6 dias "]
[3071285,"Control Mouse inalámbrico pasador de diapositivas USB con puntero laser  Tarifa de 7 dias en adelante ","3071285 Control Mouse inalámbrico pasador de diapositivas USB con puntero laser  Tarifa de 7 dias en adelante "]
[3070534,"Operario técnico audiovisual, turno de 8 horas. Manejo de sonido básico, apoyo logístico  Tarifa por dia 1 a 2 dias","3070534 Operario técnico audiovisual, turno de 8 horas. Manejo de sonido básico, apoyo logístico  Tarifa por dia 1 a 2 dias"]
[3070534,"Operario técnico audiovisual, turno de 8 horas. Manejo de sonido básico, apoyo logístico Tarifa por dia de 3 a 6 dias ","3070534 Operario técnico audiovisual, turno de 8 horas. Manejo de sonido básico, apoyo logístico Tarifa por dia de 3 a 6 dias "]
[3070534,"Operario técnico audiovisual, turno de 8 horas. Manejo de sonido básico, apoyo logístico Tarifa de 7 dias en adelante ","3070534 Operario técnico audiovisual, turno de 8 horas. Manejo de sonido básico, apoyo logístico Tarifa de 7 dias en adelante "]
[3071300,"Asesoría técnica en producción de eventos y/o asesoramiento técnico audiovisual (Una hora por sesión)  Tarifa por dia 1 a 2 dias","3071300 Asesoría técnica en producción de eventos y/o asesoramiento técnico audiovisual (Una hora por sesión)  Tarifa por dia 1 a 2 dias"]
[3071300,"Asesoría técnica en producción de eventos y/o asesoramiento técnico audiovisual (Una hora por sesión) Tarifa por dia de 3 a 6 dias ","3071300 Asesoría técnica en producción de eventos y/o asesoramiento técnico audiovisual (Una hora por sesión) Tarifa por dia de 3 a 6 dias "]
[3071300,"Asesoría técnica en producción de eventos y/o asesoramiento técnico audiovisual (Una hora por sesión) Tarifa de 7 dias en adelante ","3071300 Asesoría técnica en producción de eventos y/o asesoramiento técnico audiovisual (Una hora por sesión) Tarifa de 7 dias en adelante "]
["3071256-12","Computador portátil  Tarifa por dia 1 a 2 dias","3071256-12 Computador portátil  Tarifa por dia 1 a 2 dias"]
["3071256-12","Computador portátil  Tarifa por dia de 3 a 6 dias ","3071256-12 Computador portátil  Tarifa por dia de 3 a 6 dias "]
["3071256-12","Computador portátil  Tarifa de 7 dias en adelante ","3071256-12 Computador portátil  Tarifa de 7 dias en adelante "]
[3071237,"Computador de escritorio  Tarifa por dia 1 a 2 dias","3071237 Computador de escritorio  Tarifa por dia 1 a 2 dias"]
[3071237,"Computador de escritorio  Tarifa por dia de 3 a 6 dias ","3071237 Computador de escritorio  Tarifa por dia de 3 a 6 dias "]
[3071237,"Computador de escritorio  Tarifa de 7 dias en adelante ","3071237 Computador de escritorio  Tarifa de 7 dias en adelante "]
[3071103,"Nevera Minibar CHALLENGER 121lt  Tarifa por dia 1 a 2 dias","3071103 Nevera Minibar CHALLENGER 121lt  Tarifa por dia 1 a 2 dias"]
[3071103,"Nevera Minibar CHALLENGER 121lt  Tarifa por dia de 3 a 6 dias ","3071103 Nevera Minibar CHALLENGER 121lt  Tarifa por dia de 3 a 6 dias "]
[3071103,"Nevera Minibar CHALLENGER 121lt Tarifa de 7 dias en adelante ","3071103 Nevera Minibar CHALLENGER 121lt Tarifa de 7 dias en adelante "]
[3071312,"Aseo stands dos veces al dia entre 9 mts² y 27 mts² (valor por dia)","3071312 Aseo stands dos veces al dia entre 9 mts² y 27 mts² (valor por dia)"]
[3071312,"Aseo stands dos veces al dia entre 28 mts² y 55 mts² (valor por dia)","3071312 Aseo stands dos veces al dia entre 28 mts² y 55 mts² (valor por dia)"]
[3071312,"Aseo stands dos veces al dia entre 56 mts² y 108 mts² (valor por dia)","3071312 Aseo stands dos veces al dia entre 56 mts² y 108 mts² (valor por dia)"]
[3071312,"Aseo stands dos veces al dia entre 109 mts² y 162 mts² (valor por dia)","3071312 Aseo stands dos veces al dia entre 109 mts² y 162 mts² (valor por dia)"]
[3071312,"Aseo stands dos veces al dia de 162mts² en adelante se requiere de cotización previa,contactese con serviciosplus@corferias.com para brindarle asesoria y cotización.","3071312 Aseo stands dos veces al dia de 162mts² en adelante se requiere de cotización previa,contactese con serviciosplus@corferias.com para brindarle asesoria y cotización."]
[3071312,"Aseo permanente 8 horas 1 Operario - Día normal","3071312 Aseo permanente 8 horas 1 Operario - Día normal"]
[3071312,"Aseo permanente 8 horas 1 Operario - Día festivo","3071312 Aseo permanente 8 horas 1 Operario - Día festivo"]
[3071433,"Corferias Conecta  APP (incluye el internet para un equipo)","3071433 Corferias Conecta  APP (incluye el internet para un equipo)"]
[3071432,"Corferias Conecta  APP + Tablet con internet","3071432 Corferias Conecta  APP + Tablet con internet"]
[3071431,"Tablet adicional con internet","3071431 Tablet adicional con internet"]
[3071326,"Internet adicional para la app por equipo","3071326 Internet adicional para la app por equipo"]

{"sheet":"FERIAS DE 7 DIAS EN ADELANTE","index":3,"n_rows":223,"n_cols":4,"rows_kept":223,"cut":false,"hidden":true,"merged":[]}
["CLAVE","CODIGO","DESCRIPCIÓN","VALOR"]
[{"$f":"CONCATENATE(B2:B223,\" \",C2:C223)","v":"3070101 Instalación Monofásica (Toma corriente doble, consumo hasta 2KW/110V) valor de 7 dias en adelante"},3070101,"Instalación Monofásica (Toma corriente doble, consumo hasta 2KW/110V) valor de 7 dias en adelante",369852]
["3070103 Instalación kilovatio adicional monofásico (Debe contar con punto principal, MAX 2KW por punto)",3070103,"Instalación kilovatio adicional monofásico (Debe contar con punto principal, MAX 2KW por punto)",124593]
["3070102 Instalación trifásica (Regleta plastica, consumo hasta 4KW/208V)",3070102,"Instalación trifásica (Regleta plastica, consumo hasta 4KW/208V)",664734]
["3070104 Instalación kilovatio adicional trifásico (Debe contar con punto principal)",3070104,"Instalación kilovatio adicional trifásico (Debe contar con punto principal)",162673]
["3071372 De 21 a 50 kilovatios adicionales trifásicos (Valor por KW) (Debe contar con punto principal)",3071372,"De 21 a 50 kilovatios adicionales trifásicos (Valor por KW) (Debe contar con punto principal)",147917]
["3071373 De 51 a 100 kilovatios adicionales trifásicos (Valor por KW) (Debe contar con punto principal)",3071373,"De 51 a 100 kilovatios adicionales trifásicos (Valor por KW) (Debe contar con punto principal)",141372]
["3071374 Mas de100 kilovatios adicionales trifásicos (Valor por KW) (Debe contar con punto principal)",3071374,"Mas de100 kilovatios adicionales trifásicos (Valor por KW) (Debe contar con punto principal)",135541]
["3070402 Lampara de pared ajustable (150W/110V)",3070402,"Lampara de pared ajustable (150W/110V)",68663]
["3070405 Reflector Led (50W- mltV)",3070405,"Reflector Led (50W- mltV)",72352]
["3070403 Extensión – tomacorriente doble con polo a tierra (1500W/110V) MAX 6mts ",3070403,"Extensión – tomacorriente doble con polo a tierra (1500W/110V) MAX 6mts ",35581]
["3071345 Lavaplatos 90XL* 60XH* 90 (No incluye agua y desague) valor de 7 dias en adelante",3071345,"Lavaplatos 90XL* 60XH* 90 (No incluye agua y desague) valor de 7 dias en adelante",176477]
["3070301 Punto de Agua en 1/2\" (incluye consumo) valor de 7 dias en adelante",3070301,"Punto de Agua en 1/2\" (incluye consumo) valor de 7 dias en adelante",429947]
["3070302 Desagüe en 1 1/2\" Por toda la feria (Ubicación asignada por Corferias en su stand) valor de 7 dias en adelante",3070302,"Desagüe en 1 1/2\" Por toda la feria (Ubicación asignada por Corferias en su stand) valor de 7 dias en adelante",396865]
["3071341 Aire comprimido para punto con presión máx. de 100 PSI, y caudal máx. 35CFM. valor de 7 dias en adelante",3071341,"Aire comprimido para punto con presión máx. de 100 PSI, y caudal máx. 35CFM. valor de 7 dias en adelante",528479]
["3070307 Punto de Agua en 1/2\" (Incluye consumo)  + Desagüe en 1 1/2\" + Lavaplatos valor de 7 dias en adelante",3070307,"Punto de Agua en 1/2\" (Incluye consumo)  + Desagüe en 1 1/2\" + Lavaplatos valor de 7 dias en adelante",902972]
["3071321 Punto de gas propano para UN (1) equipo de máximo 4 quemadores valor de 7 dias en adelante",3071321,"Punto de gas propano para UN (1) equipo de máximo 4 quemadores valor de 7 dias en adelante",610708]
["3071368 Quemador adicional (unidad), debe contar con punto de gas valor de 7 dias en adelante",3071368,"Quemador adicional (unidad), debe contar con punto de gas valor de 7 dias en adelante",124593]
["3070601 Panel adicional sistema cfe 100cm x 240cm",3070601,"Panel adicional sistema cfe 100cm x 240cm",36652]
["3070801 Puerta sistema cfe 90cm x 240cm",3070801,"Puerta sistema cfe 90cm x 240cm",90797]
["3070803 Bodega estándar con puerta 150cm x 150cm (Sistema Corferias)",3070803,"Bodega estándar con puerta 150cm x 150cm (Sistema Corferias)",144823]
["3071319 Brazo Mecánico por Fracciòn de 15 min (Solo para primer nivel)",3071319,"Brazo Mecánico por Fracciòn de 15 min (Solo para primer nivel)",72709]
["3071319 Brazo Mecánico por Fracciòn de 30 min (Solo para primer nivel)",3071319,"Brazo Mecánico por Fracciòn de 30 min (Solo para primer nivel)",134946]
["3071319 Brazo Mecánico por Fracciòn de 45 min (Solo para primer nivel)",3071319,"Brazo Mecánico por Fracciòn de 45 min (Solo para primer nivel)",207655]
["3071319 Brazo Mecánico por Fracciòn de 60 min (Solo para primer nivel)",3071319,"Brazo Mecánico por Fracciòn de 60 min (Solo para primer nivel)",249186]
["3070413 Diferencial (Cap. 1 Ton.) + Brazo mecánico (Montaje y desmontaje) ",3070413,"Diferencial (Cap. 1 Ton.) + Brazo mecánico (Montaje y desmontaje) ",467313]
["3070414 Plataforma Tijera eléctrica por Fracciòn /30 min (Uso para segundos niveles)",3070414,"Plataforma Tijera eléctrica por Fracciòn /30 min (Uso para segundos niveles)",81396]
["3071418 Servicio de Internet Cableado \"PARA UN EQUIPO - DURANTE UN DÍA\" ",3071418,"Servicio de Internet Cableado \"PARA UN EQUIPO - DURANTE UN DÍA\" ",74970]
["3071419 Clave de acceso para la red WiFi  \"PARA UN EQUIPO - DURANTE UN DÍA\"",3071419,"Clave de acceso para la red WiFi  \"PARA UN EQUIPO - DURANTE UN DÍA\"",74970]
["3071417 Servicio de Internet Cableado \"PARA UN EQUIPO - DURANTE TODA LA FERIA\" valor a partir de 7 dias",3071417,"Servicio de Internet Cableado \"PARA UN EQUIPO - DURANTE TODA LA FERIA\" valor a partir de 7 dias",272986]
["3071420 Clave de acceso para la Red WiFi \"PARA UN EQUIPO - DURANTE TODA LA FERIA\" valor a partir de 7 dias",3071420,"Clave de acceso para la Red WiFi \"PARA UN EQUIPO - DURANTE TODA LA FERIA\" valor a partir de 7 dias",272986]
["3071423 Conexión para Datafono + Clave de acceso WIFI (Para un equipo durante toda la feria) valor a partir de 7 dias",3071423,"Conexión para Datafono + Clave de acceso WIFI (Para un equipo durante toda la feria) valor a partir de 7 dias",377706]
["3071424 Conexión para Datafono + Servicio de Internet Cableado (Para un equipo durante toda la feria) valor a partir de 7 dias",3071424,"Conexión para Datafono + Servicio de Internet Cableado (Para un equipo durante toda la feria) valor a partir de 7 dias",377706]
["3071425 Servicio de Internet Cableado + Clave de acceso WIFI (Para un equipo durante toda la feria) valor a partir de 7 dias",3071425,"Servicio de Internet Cableado + Clave de acceso WIFI (Para un equipo durante toda la feria) valor a partir de 7 dias",491351]
["3071437 Internet Dedicado: Si requiere conexión banda ancha para diferentes servicios o redes locales, contáctese con serviciosplus@corferias.com para brindarle asesoria y cotización.",3071437,"Internet Dedicado: Si requiere conexión banda ancha para diferentes servicios o redes locales, contáctese con serviciosplus@corferias.com para brindarle asesoria y cotización.","Según cotización"]
["3071406 Instalación Punto de Red:Incluye un cable UTP por punto",3071406,"Instalación Punto de Red:Incluye un cable UTP por punto",89012]
["3071407 Switch VALOR POR FERIA ",3071407,"Switch VALOR POR FERIA ",85680]
["3071402 Servicio de VLAN: Servicio virtual de red.  VALOR POR FERIA",3071402,"Servicio de VLAN: Servicio virtual de red.  VALOR POR FERIA",349979]
["3071430 Extension LAN VALOR POR FERIA  (Incluye punto de red y aplica para extender el servicio de internet contratado con terceros)",3071430,"Extension LAN VALOR POR FERIA  (Incluye punto de red y aplica para extender el servicio de internet contratado con terceros)",1113245]
["3071442 Soporte técnico permanente (Por espacio de 8 horas) de un técnico. VALOR DÍARIO ",3071442,"Soporte técnico permanente (Por espacio de 8 horas) de un técnico. VALOR DÍARIO ",243474]
["3070202 Servicio Telefónico Urbano con Aparato (Incluye consumo local ilimitado)",3070202,"Servicio Telefónico Urbano con Aparato (Incluye consumo local ilimitado)",42483]
["3070203 Servicio Telefónico Larga Distancia con aparato",3070203,"Servicio Telefónico Larga Distancia con aparato",42483]
["3070201 Línea Externa no conmutada (Previa solicitud a Etb, Claro, EPM, Colomsat u otro operador)",3070201,"Línea Externa no conmutada (Previa solicitud a Etb, Claro, EPM, Colomsat u otro operador)",120071]
["3070207 Conexión cableada para Datafono:(No incluye Datafono)",3070207,"Conexión cableada para Datafono:(No incluye Datafono)",124593]
["3070942 Kit básico Pino 1 (1 mesa pleglable pino, 3 sillas acrilicas k negra)",3070942,"Kit básico Pino 1 (1 mesa pleglable pino, 3 sillas acrilicas k negra)",187306]
["3071105 KIT básico oficina 2 (2 sillas interlocutoras, 1 silla ejecutiva, 1 mesa oficina)",3071105,"KIT básico oficina 2 (2 sillas interlocutoras, 1 silla ejecutiva, 1 mesa oficina)",222411]
["3071036 Mesa plegable plastico + 2 sillas interlocutoras",3071036,"Mesa plegable plastico + 2 sillas interlocutoras",171836]
["3071039 Mesa alta Daysa + 2 sillas neumaticas altas marsella",3071039,"Mesa alta Daysa + 2 sillas neumaticas altas marsella",228599]
["3071054 Mesa estandar lotus vidrio + 2 sillas tipo huevo",3071054,"Mesa estandar lotus vidrio + 2 sillas tipo huevo",249781]
["3071002 Silla Acrílica k negra (85cm x 49cm x 47cm)",3071002,"Silla Acrílica k negra (85cm x 49cm x 47cm)",41769]
["3071078 Silla con Espaldar Arles (75cm x 38cm x39cm)",3071078,"Silla con Espaldar Arles (75cm x 38cm x39cm)",61761]
["30713198 Silla Gerencial (119cm x 67cm x 78cm)",30713198,"Silla Gerencial (119cm x 67cm x 78cm)",145418]
["3071081 Silla Ejecutiva (79cm x 53cm x 42cm)",3071081,"Silla Ejecutiva (79cm x 53cm x 42cm)",70567]
["3071061 Silla estandar Suiza (48cm x 46cm x 45cm)",3071061,"Silla estandar Suiza (48cm x 46cm x 45cm)",64617]
["3071008 Silla estandar Tipo Huevo (48cm x 46cm x 45cm)",3071008,"Silla estandar Tipo Huevo (48cm x 46cm x 45cm)",64617]
["3071006 Silla Interlocutora Negra (79cm x 53cm x 42cm)",3071006,"Silla Interlocutora Negra (79cm x 53cm x 42cm)",46410]
["3071022 Silla Neumatica alta Versalles (80cm x 40 cm x 40cm",3071022,"Silla Neumatica alta Versalles (80cm x 40 cm x 40cm",97580]
["3071077 Silla Neumática alta Marsella (80cm x 40cm x 40cm)",3071077,"Silla Neumática alta Marsella (80cm x 40cm x 40cm)",77588]
["3071092 Silla Neumatica alta POP (Blanca o negra) (80cm x 43cm x 40cm)",3071092,"Silla Neumatica alta POP (Blanca o negra) (80cm x 43cm x 40cm)",76755]
["3070503 Estantería Polo (Melaminico)   (100cm x 93cm x 35cm)",3070503,"Estantería Polo (Melaminico)   (100cm x 93cm x 35cm)",170527]
["3070503 Estantería Polo (Miel)  (100cm x 93cm x 35cm)",3070503,"Estantería Polo (Miel)  (100cm x 93cm x 35cm)",170527]
["3070503 Estantería Polo (Rovere)  (100cm x 93cm x 35cm)",3070503,"Estantería Polo (Rovere)  (100cm x 93cm x 35cm)",170527]
["3070503 Estantería Polo (Roble Gris)  (100cm x 93cm x 35cm)",3070503,"Estantería Polo (Roble Gris)  (100cm x 93cm x 35cm)",170527]
["3071108 Estantería Shelf 4E (190cm x 125cm x 41cm)",3071108,"Estantería Shelf 4E (190cm x 125cm x 41cm)",142086]
["3071107 Archivador Regina (70cm x 37cm x50cm)",3071107,"Archivador Regina (70cm x 37cm x50cm)",148274]
["3070954 Counter Mónaco (Melaminico) (100cm x 100cm x 40cm)",3070954,"Counter Mónaco (Melaminico) (100cm x 100cm x 40cm)",160531]
["3070954 Counter Mónaco (Miel) (100cm x 100cm x 40cm)",3070954,"Counter Mónaco (Miel) (100cm x 100cm x 40cm)",160531]
["3070954 Counter Mónaco (Rovere) (100cm x 100cm x 40cm)",3070954,"Counter Mónaco (Rovere) (100cm x 100cm x 40cm)",160531]
["3070954 Counter Mónaco (Roble Gris) (100cm x 100cm x 40cm)",3070954,"Counter Mónaco (Roble Gris) (100cm x 100cm x 40cm)",160531]
["3070535 Vitrina Isla 2E (200cm x 50cm x 50cm)",3070535,"Vitrina Isla 2E (200cm x 50cm x 50cm)",232526]
["3070517 Vitrina Mostrador 1E (100cm x 100cm x 40cm)",3070517,"Vitrina Mostrador 1E (100cm x 100cm x 40cm)",200634]
["3070518 Vitrina Mostrador Tipo 2 1E (100cm x 50 cm x 40cm)",3070518,"Vitrina Mostrador Tipo 2 1E (100cm x 50 cm x 40cm)",200634]
["3071111 Vitrina Rectangular 2E (200cm x 100cm x 40cm)",3071111,"Vitrina Rectangular 2E (200cm x 100cm x 40cm)",268702]
["30713199 Vitrina Rectangular 3E (180cm x 100cm x 40cm)",30713199,"Vitrina Rectangular 3E (180cm x 100cm x 40cm)",268702]
["3071115 Mesa alta Daysa (Melaminico) (100cm x 60cm)",3071115,"Mesa alta Daysa (Melaminico) (100cm x 60cm)",98889]
["3071115 Mesa alta Daysa (Miel) (100cm x 60cm)",3071115,"Mesa alta Daysa (Miel) (100cm x 60cm)",98889]
["3071115 Mesa alta Daysa (Rovere) (100cm x 60cm)",3071115,"Mesa alta Daysa (Rovere) (100cm x 60cm)",98889]
["3071115 Mesa alta Daysa (Roble Gris) (100cm x 60cm)",3071115,"Mesa alta Daysa (Roble Gris) (100cm x 60cm)",98889]
["3071093 Mesa alta Daysa vidrio (100cm x 60cm)",3071093,"Mesa alta Daysa vidrio (100cm x 60cm)",111265]
["3071104 Mesa Centro 2 Niveles (melaminico) (50cm x 60cm x 60)",3071104,"Mesa Centro 2 Niveles (melaminico) (50cm x 60cm x 60)",80087]
["3071100 Mesa Centro Circular doble nivel (melaminico) (50cm x 110cm x 60cm)",3071100,"Mesa Centro Circular doble nivel (melaminico) (50cm x 110cm x 60cm)",110075]
["3071068 Mesa Centro Rectangular doble nivel (melaminico) (50cm x 75cm x 50cm) ",3071068,"Mesa Centro Rectangular doble nivel (melaminico) (50cm x 75cm x 50cm) ",80087]
["3071097 Mesa estandar Daysa (76cm x 60cm)",3071097,"Mesa estandar Daysa (76cm x 60cm)",98889]
["3071116 Mesa estandar Lotus (70cm x 64cm x 81cm)",3071116,"Mesa estandar Lotus (70cm x 64cm x 81cm)",148274]
["3071098 Mesa estandar Shia (76cm x 60cm x 60cm)",3071098,"Mesa estandar Shia (76cm x 60cm x 60cm)",98889]
["30713200 Mesa Oficina (78cm x 120cm x 50cm)",30713200,"Mesa Oficina (78cm x 120cm x 50cm)",124593]
["3070936 Mesón plegable plástico (Gris o blanco) (73cm x 182cm x 76cm)",3070936,"Mesón plegable plástico (Gris o blanco) (73cm x 182cm x 76cm)",98056]
["3070904 Mesón plegable pino (75cm x 120cm x 60cm)",3070904,"Mesón plegable pino (75cm x 120cm x 60cm)",98056]
["3071113 Sala Osaka (1 sofá Toronto, 2 puffs Donna, 1 mesa centro 2 niveles)",3071113,"Sala Osaka (1 sofá Toronto, 2 puffs Donna, 1 mesa centro 2 niveles)",432446]
["3071095 Sala VIP (1 sofá Victoria derecho, 1 sofá Victoria izquierdo, 2 poltronas, 1 mesa centro 2 niveles)",3071095,"Sala VIP (1 sofá Victoria derecho, 1 sofá Victoria izquierdo, 2 poltronas, 1 mesa centro 2 niveles)",716737]
["3071090 Puff estandar cuadrado (43cm x 43cm x 43cm)",3071090,"Puff estandar cuadrado (43cm x 43cm x 43cm)",51765]
["3071091 Puff Trunk 2 cuerpos (48cm x 81cm x 40cm)",3071091,"Puff Trunk 2 cuerpos (48cm x 81cm x 40cm)",98889]
["3071114 Puff Trunk 3 cuerpos (48cm x 120cm x 54cm)",3071114,"Puff Trunk 3 cuerpos (48cm x 120cm x 54cm)",98889]
["3071085 Sofa Otawa 2 cuerpos (85cm x 120cm x 76cm)",3071085,"Sofa Otawa 2 cuerpos (85cm x 120cm x 76cm)",197659]
["3071083 Sofa Toronto 3 cuerpos (88cm x 173cm x 80cm)",3071083,"Sofa Toronto 3 cuerpos (88cm x 173cm x 80cm)",210035]
["3071031 Sofa Terranova 2 cuerpos (88cm x 173cm x 80cm)",3071031,"Sofa Terranova 2 cuerpos (88cm x 173cm x 80cm)",210035]
["3071013 Sofa Victoria derecho (70cm x 100cm x 75cm)",3071013,"Sofa Victoria derecho (70cm x 100cm x 75cm)",170646]
["3071023 Sofa Victoria izquierdo (70cm x 100cm x 75cm)",3071023,"Sofa Victoria izquierdo (70cm x 100cm x 75cm)",170646]
["30713201 Poltrona Buggy (72cm x 64cm)",30713201,"Poltrona Buggy (72cm x 64cm)",145418]
["3071059 Poltrona Levis (73cm x 86cm x 78cm)",3071059,"Poltrona Levis (73cm x 86cm x 78cm)",185402]
["3071302 Papelera metálica",3071302,"Papelera metálica",23443]
["3071325 Poste separador 120cm de alto",3071325,"Poste separador 120cm de alto",46291]
["3070714 Cubo de exhibición (40cm x 40cm x 25cm)",3070714,"Cubo de exhibición (40cm x 40cm x 25cm)",33439]
["3070957 Pedestal cuadrado (30cm x 30cm x 30cm)",3070957,"Pedestal cuadrado (30cm x 30cm x 30cm)",32249]
["3070956 Pedestal rectangular 60cm (30cm x 60cm x 30cm)",3070956,"Pedestal rectangular 60cm (30cm x 60cm x 30cm)",37128]
["3070955 Pedestal rectangular 90cm (30cm x 90cm x 30cm)",3070955,"Pedestal rectangular 90cm (30cm x 90cm x 30cm)",42126]
["3071370 Revistero plegable (140cm x 25cm x 29cm)",3071370,"Revistero plegable (140cm x 25cm x 29cm)",73661]
["3070505 Tarima 120x120x60, (Previa verificación con área de montaje)",3070505,"Tarima 120x120x60, (Previa verificación con área de montaje)",43197]
["3071388 Módulo de carga 20 puntos 110V",3071388,"Módulo de carga 20 puntos 110V",247163]
["3071375 Planta + matera plástica (Pequeña)",3071375,"Planta + matera plástica (Pequeña)",24514]
["3071376 Planta + matera plástica (Mediana)",3071376,"Planta + matera plástica (Mediana)",55216]
["3071377 Planta + matera plástica (Grande)",3071377,"Planta + matera plástica (Grande)",70448]
["3071378 Jardinera en madera + 3 Plantas grandes",3071378,"Jardinera en madera + 3 Plantas grandes",119357]
["3071379 Jardinera en madera + 3 Plantas medianas",3071379,"Jardinera en madera + 3 Plantas medianas",96509]
["3071380 Jardinera en madera + 7 Plantas pequeñas",3071380,"Jardinera en madera + 7 Plantas pequeñas",99365]
["3071381 Cajoneras con flores",3071381,"Cajoneras con flores",185402]
["3071314 Grandes (61cm x 120cm)",3071314,"Grandes (61cm x 120cm)",37723]
["3071301 Medianas (31cm x 120cm)",3071301,"Medianas (31cm x 120cm)",29750]
["3071317 Pequeñas (10cm x 30cm)",3071317,"Pequeñas (10cm x 30cm)",13209]
["3071382 Suculentas (10cm x 15cm)",3071382,"Suculentas (10cm x 15cm)",13209]
["3071383 Chamizos",3071383,"Chamizos",13209]
["3071355 De barro grande",3071355,"De barro grande",36533]
["3071356 De barro mediana",3071356,"De barro mediana",28441]
["3071384 De barro pequeña",3071384,"De barro pequeña",12614]
["3071357 Plástica grande",3071357,"Plástica grande",36533]
["3071358 Plástica mediana",3071358,"Plástica mediana",28441]
["3071359 Plástica pequeña",3071359,"Plástica pequeña",12614]
["3071360 Jardinera en madera (35cm x 100cm x 35cm)",3071360,"Jardinera en madera (35cm x 100cm x 35cm)",12614]
["3071352 Grandes",3071352,"Grandes",111622]
["3071353 Medianos",3071353,"Medianos",64974]
["3071354 Pequeños",3071354,"Pequeños",28560]
["3071364 Topiario en forma de animales o frutas ",3071364,"Topiario en forma de animales o frutas ",271915]
["3071365 Topiario en bolas grandes",3071365,"Topiario en bolas grandes",271915]
["3071385 Topiario en bolas pequeñas",3071385,"Topiario en bolas pequeñas",247163]
["3071363 Piedras (Por m2)",3071363,"Piedras (Por m2)",28441]
["3071367 Pino patula (Por bulto)",3071367,"Pino patula (Por bulto)",12614]
["3071361 Gravilla (Por m2)",3071361,"Gravilla (Por m2)",12614]
["3071386 Muros verticales (Por m2)",3071386,"Muros verticales (Por m2)",390915]
["3071366 Cascarilla (Por bulto)",3071366,"Cascarilla (Por bulto)",12614]
["3071362 Rocas (Por unidad)",3071362,"Rocas (Por unidad)",75327]
["3071346 Base de Pedestal Para TV Led - LCD (No incluye instalación del equipo - ni tornillería) Tarifa por dia 1 a 2 dias",3071346,"Base de Pedestal Para TV Led - LCD (No incluye instalación del equipo - ni tornillería) Tarifa por dia 1 a 2 dias",42721]
["3071346 Base de Pedestal Para TV Led - LCD (No incluye instalación del equipo - ni tornillería) Tarifa por dia de 3 a 6 dias ",3071346,"Base de Pedestal Para TV Led - LCD (No incluye instalación del equipo - ni tornillería) Tarifa por dia de 3 a 6 dias ",38913]
["3071346 Base de Pedestal Para TV Led - LCD (No incluye instalación del equipo - ni tornillería) Tarifa de 7 dias en adelante ",3071346,"Base de Pedestal Para TV Led - LCD (No incluye instalación del equipo - ni tornillería) Tarifa de 7 dias en adelante ",277389]
["3071204 TV LED o LCD de 40''+ base para pedestal (Incluye cableado) IN: USB, hdmi, rca  Tarifa por dia 1 a 2 dias ",3071204,"TV LED o LCD de 40''+ base para pedestal (Incluye cableado) IN: USB, hdmi, rca  Tarifa por dia 1 a 2 dias ",138992]
["3071204 TV LED o LCD de 40''+ base para pedestal (Incluye cableado) IN: USB, hdmi, rca  Tarifa por dia de 3 a 6 dias ",3071204,"TV LED o LCD de 40''+ base para pedestal (Incluye cableado) IN: USB, hdmi, rca  Tarifa por dia de 3 a 6 dias ",126378]
["3071204 TV LED o LCD de 40''+ base para pedestal (Incluye cableado) IN: USB, hdmi, rca  Tarifa de 7 dias en adelante ",3071204,"TV LED o LCD de 40''+ base para pedestal (Incluye cableado) IN: USB, hdmi, rca  Tarifa de 7 dias en adelante ",902615]
["3071206 TV LED o LCD de 50''+ base para pedestal (Incluye cableado) IN: USB, hdmi, rca  Tarifa por dia 1 a 2 dias",3071206,"TV LED o LCD de 50''+ base para pedestal (Incluye cableado) IN: USB, hdmi, rca  Tarifa por dia 1 a 2 dias",216580]
["3071206 TV LED o LCD de 50''+ base para pedestal (Incluye cableado) IN: USB, hdmi, rca  Tarifa por dia de 3 a 6 dias ",3071206,"TV LED o LCD de 50''+ base para pedestal (Incluye cableado) IN: USB, hdmi, rca  Tarifa por dia de 3 a 6 dias ",197064]
["3071206 TV LED o LCD de 50''+ base para pedestal (Incluye cableado) IN: USB, hdmi, rca Tarifa de 7 dias en adelante ",3071206,"TV LED o LCD de 50''+ base para pedestal (Incluye cableado) IN: USB, hdmi, rca Tarifa de 7 dias en adelante ",1406580]
["3071279 TV LED o LCD de 70''+ base para pedestal (Incluye cableado) IN: USB, hdmi, rca  Tarifa por dia 1 a 2 dias",3071279,"TV LED o LCD de 70''+ base para pedestal (Incluye cableado) IN: USB, hdmi, rca  Tarifa por dia 1 a 2 dias",541450]
["3071279 TV LED o LCD de 70''+ base para pedestal (Incluye cableado) IN: USB, hdmi, rca  Tarifa por dia de 3 a 6 dias ",3071279,"TV LED o LCD de 70''+ base para pedestal (Incluye cableado) IN: USB, hdmi, rca  Tarifa por dia de 3 a 6 dias ",492303]
["3071279 TV LED o LCD de 70''+ base para pedestal (Incluye cableado) IN: USB, hdmi, rca  Tarifa de 7 dias en adelante ",3071279,"TV LED o LCD de 70''+ base para pedestal (Incluye cableado) IN: USB, hdmi, rca  Tarifa de 7 dias en adelante ",3515974]
["3071222 TV LED o LCD de 84''+ base para pedestal (Incluye cableado) IN: USB, hdmi, rca Tarifa por dia 1 a 2 dias",3071222,"TV LED o LCD de 84''+ base para pedestal (Incluye cableado) IN: USB, hdmi, rca Tarifa por dia 1 a 2 dias",1005550]
["3071222 TV LED o LCD de 84''+ base para pedestal (Incluye cableado) IN: USB, hdmi, rca  Tarifa por dia de 3 a 6 dias ",3071222,"TV LED o LCD de 84''+ base para pedestal (Incluye cableado) IN: USB, hdmi, rca  Tarifa por dia de 3 a 6 dias ",914277]
["3071222 TV LED o LCD de 84''+ base para pedestal (Incluye cableado) IN: USB, hdmi, rca  Tarifa de 7 dias en adelante ",3071222,"TV LED o LCD de 84''+ base para pedestal (Incluye cableado) IN: USB, hdmi, rca  Tarifa de 7 dias en adelante ",6529649]
["3071277 TV LED o LCD de 90'' (Incluye: base de pedestal y cableado) IN: USB, hdmi, rca Tarifa por dia 1 a 2 dias",3071277,"TV LED o LCD de 90'' (Incluye: base de pedestal y cableado) IN: USB, hdmi, rca Tarifa por dia 1 a 2 dias",1547000]
["3071277 TV LED o LCD de 90'' (Incluye: base de pedestal y cableado) IN: USB, hdmi, rca Tarifa por dia de 3 dias ",3071277,"TV LED o LCD de 90'' (Incluye: base de pedestal y cableado) IN: USB, hdmi, rca Tarifa por dia de 3 dias ",1406461]
["3071277 TV LED o LCD de 90'' (Incluye: base de pedestal y cableado) IN: USB, hdmi, rca Tarifa de 7 dias en adelante ",3071277,"TV LED o LCD de 90'' (Incluye: base de pedestal y cableado) IN: USB, hdmi, rca Tarifa de 7 dias en adelante ",10045504]
["3071261 Pantalla TACTIL de 40'' + base de pedestal (Incluye cableado, PC portátil) IN: hdmi. Tarifa por dia 1 a 2 dias",3071261,"Pantalla TACTIL de 40'' + base de pedestal (Incluye cableado, PC portátil) IN: hdmi. Tarifa por dia 1 a 2 dias",510153]
["3071261 Pantalla TACTIL de 40'' + base de pedestal (Incluye cableado, PC portátil) IN: hdmi. Tarifa por dia de 3 a 6 dias ",3071261,"Pantalla TACTIL de 40'' + base de pedestal (Incluye cableado, PC portátil) IN: hdmi. Tarifa por dia de 3 a 6 dias ",463862]
["3071261 Pantalla TACTIL de 40'' + base de pedestal (Incluye cableado, PC portátil) IN: hdmi. Tarifa de 7 dias en adelante ",3071261,"Pantalla TACTIL de 40'' + base de pedestal (Incluye cableado, PC portátil) IN: hdmi. Tarifa de 7 dias en adelante ",3312365]
["3071284 Tablet Táctil 7 pulgadas Tarifa por dia 1 a 2 dias",3071284,"Tablet Táctil 7 pulgadas Tarifa por dia 1 a 2 dias",85085]
["3071284 Tablet Táctil 7 pulgadas  Tarifa por dia de 3 a 6 dias ",3071284,"Tablet Táctil 7 pulgadas  Tarifa por dia de 3 a 6 dias ",77469]
["3071284 Tablet Táctil 7 pulgadas Tarifa de 7 dias en adelante ",3071284,"Tablet Táctil 7 pulgadas Tarifa de 7 dias en adelante ",552517]
["3071234 Video Proyector 4500 ansi lumens - El lugar de proyección debe estar lo mas oscuro posible Tarifa por dia 1 a 2 dias",3071234,"Video Proyector 4500 ansi lumens - El lugar de proyección debe estar lo mas oscuro posible Tarifa por dia 1 a 2 dias",386869]
["3071234 Video Proyector 4500 ansi lumens - El lugar de proyección debe estar lo mas oscuro posible  Tarifa por dia de 3 a 6 dias ",3071234,"Video Proyector 4500 ansi lumens - El lugar de proyección debe estar lo mas oscuro posible  Tarifa por dia de 3 a 6 dias ",351645]
["3071234 Video Proyector 4500 ansi lumens - El lugar de proyección debe estar lo mas oscuro posible  Tarifa de 7 dias en adelante ",3071234,"Video Proyector 4500 ansi lumens - El lugar de proyección debe estar lo mas oscuro posible  Tarifa de 7 dias en adelante ",2511376]
["3071232 Telón de proyección (180cm x 135cm) - Frontal (colgar) - el espacio debe estar oscuro Tarifa por dia 1 a 2 dias",3071232,"Telón de proyección (180cm x 135cm) - Frontal (colgar) - el espacio debe estar oscuro Tarifa por dia 1 a 2 dias",46529]
["3071232 Telón de proyección (180cm x 135cm) - Frontal (colgar) - el espacio debe estar oscuro Tarifa por dia de 3 a 6 dias ",3071232,"Telón de proyección (180cm x 135cm) - Frontal (colgar) - el espacio debe estar oscuro Tarifa por dia de 3 a 6 dias ",42245]
["3071232 Telón de proyección (180cm x 135cm) - Frontal (colgar) - el espacio debe estar oscuro Tarifa de 7 dias en adelante  ",3071232,"Telón de proyección (180cm x 135cm) - Frontal (colgar) - el espacio debe estar oscuro Tarifa de 7 dias en adelante  ",301427]
["3071231 Telón de proyección (305cm x 229cm)  Frontal & Retro - el espacio debe estar oscuro Tarifa por dia 1 a 2 dias",3071231,"Telón de proyección (305cm x 229cm)  Frontal & Retro - el espacio debe estar oscuro Tarifa por dia 1 a 2 dias",212177]
["3071231 Telón de proyección (305cm x 229cm)  Frontal & Retro - el espacio debe estar oscuro Tarifa por dia de 3 a 6 dias ",3071231,"Telón de proyección (305cm x 229cm)  Frontal & Retro - el espacio debe estar oscuro Tarifa por dia de 3 a 6 dias ",193018]
["3071231 Telón de proyección (305cm x 229cm)  Frontal & Retro - el espacio debe estar oscuro Tarifa de 7 dias en adelante ",3071231,"Telón de proyección (305cm x 229cm)  Frontal & Retro - el espacio debe estar oscuro Tarifa de 7 dias en adelante ",1378020]
["3071292 Circuito cerrado a 1 cámara (Digital) Tarifa por dia 1 a 2 dias",3071292,"Circuito cerrado a 1 cámara (Digital) Tarifa por dia 1 a 2 dias",1005669]
["3071292 Circuito cerrado a 1 cámara (Digital)  Tarifa por dia de 3 a 6 dias ",3071292,"Circuito cerrado a 1 cámara (Digital)  Tarifa por dia de 3 a 6 dias ",914277]
["3071292 Circuito cerrado a 1 cámara (Digital)  Tarifa de 7 dias en adelante ",3071292,"Circuito cerrado a 1 cámara (Digital)  Tarifa de 7 dias en adelante ",6529649]
["3071348 Micrófono inalámbrico de mano - sin operario (requiere sistema de sonido) Tarifa por dia 1 a 2 dias",3071348,"Micrófono inalámbrico de mano - sin operario (requiere sistema de sonido) Tarifa por dia 1 a 2 dias",92820]
["3071348 Micrófono inalámbrico de mano - sin operario (requiere sistema de sonido)  Tarifa por dia de 3 a 6 dias ",3071348,"Micrófono inalámbrico de mano - sin operario (requiere sistema de sonido)  Tarifa por dia de 3 a 6 dias ",84371]
["3071348 Micrófono inalámbrico de mano - sin operario (requiere sistema de sonido)  Tarifa de 7 dias en adelante ",3071348,"Micrófono inalámbrico de mano - sin operario (requiere sistema de sonido)  Tarifa de 7 dias en adelante ",602616]
["3071349 Micrófono inalámbrico de diadema - sin operario (requiere sistema de sonido) Tarifa por dia 1 a 2 dias",3071349,"Micrófono inalámbrico de diadema - sin operario (requiere sistema de sonido) Tarifa por dia 1 a 2 dias",92820]
["3071349 Micrófono inalámbrico de diadema - sin operario (requiere sistema de sonido) Tarifa por dia de 3 a 6 dias ",3071349,"Micrófono inalámbrico de diadema - sin operario (requiere sistema de sonido) Tarifa por dia de 3 a 6 dias ",84371]
["3071349 Micrófono inalámbrico de diadema - sin operario (requiere sistema de sonido) Tarifa de 7 dias en adelante ",3071349,"Micrófono inalámbrico de diadema - sin operario (requiere sistema de sonido) Tarifa de 7 dias en adelante ",602616]
["3070411 Sonido de 1 a 100 personas 1 micrófono alambrico - cabineria activa Tarifa por dia 1 a 2 dias",3070411,"Sonido de 1 a 100 personas 1 micrófono alambrico - cabineria activa Tarifa por dia 1 a 2 dias",169575]
["3070411 Sonido de 1 a 100 personas 1 micrófono alambrico - cabineria activa  Tarifa por dia de 3 a 6 dias ",3070411,"Sonido de 1 a 100 personas 1 micrófono alambrico - cabineria activa  Tarifa por dia de 3 a 6 dias ",154224]
["3070411 Sonido de 1 a 100 personas 1 micrófono alambrico - cabineria activa  Tarifa de 7 dias en adelante ",3070411,"Sonido de 1 a 100 personas 1 micrófono alambrico - cabineria activa  Tarifa de 7 dias en adelante ",1101345]
["3071347 Sonido de 100 a 200 personas 2 micrófono alambrico - cabineria activa Tarifa por dia 1 a 2 dias",3071347,"Sonido de 100 a 200 personas 2 micrófono alambrico - cabineria activa Tarifa por dia 1 a 2 dias",255374]
["3071347 Sonido de 100 a 200 personas 2 micrófono alambrico - cabineria activa  Tarifa por dia de 3 a 6 dias ",3071347,"Sonido de 100 a 200 personas 2 micrófono alambrico - cabineria activa  Tarifa por dia de 3 a 6 dias ",232169]
["3071347 Sonido de 100 a 200 personas 2 micrófono alambrico - cabineria activa  Tarifa de 7 dias en adelante ",3071347,"Sonido de 100 a 200 personas 2 micrófono alambrico - cabineria activa  Tarifa de 7 dias en adelante ",1658503]
["3071294 Sonido de 200 a 300 personas 3 micrófono alambrico - cabineria activa Tarifa por dia 1 a 2 dias",3071294,"Sonido de 200 a 300 personas 3 micrófono alambrico - cabineria activa Tarifa por dia 1 a 2 dias",470169]
["3071294 Sonido de 200 a 300 personas 3 micrófono alambrico - cabineria activa  Tarifa por dia de 3 a 6 dias ",3071294,"Sonido de 200 a 300 personas 3 micrófono alambrico - cabineria activa  Tarifa por dia de 3 a 6 dias ",427448]
["3071294 Sonido de 200 a 300 personas 3 micrófono alambrico - cabineria activa  Tarifa de 7 dias en adelante ",3071294,"Sonido de 200 a 300 personas 3 micrófono alambrico - cabineria activa  Tarifa de 7 dias en adelante ",3052588]
["3071275 PAR LED - Luz LED multicolor decorar ambientes - espectáculos (Según  cantidad requiere dmx)  Tarifa por dia 1 a 2 dias",3071275,"PAR LED - Luz LED multicolor decorar ambientes - espectáculos (Según  cantidad requiere dmx)  Tarifa por dia 1 a 2 dias",40341]
["3071275 PAR LED - Luz LED multicolor decorar ambientes - espectáculos (Según  cantidad requiere dmx)  Tarifa por dia de 3 a 6 dias ",3071275,"PAR LED - Luz LED multicolor decorar ambientes - espectáculos (Según  cantidad requiere dmx)  Tarifa por dia de 3 a 6 dias ",36652]
["3071275 PAR LED - Luz LED multicolor decorar ambientes - espectáculos (Según  cantidad requiere dmx)  Tarifa de 7 dias en adelante ",3071275,"PAR LED - Luz LED multicolor decorar ambientes - espectáculos (Según  cantidad requiere dmx)  Tarifa de 7 dias en adelante ",261205]
["3071285 Control Mouse inalámbrico pasador de diapositivas USB con puntero laser  Tarifa por dia 1 a 2 dias",3071285,"Control Mouse inalámbrico pasador de diapositivas USB con puntero laser  Tarifa por dia 1 a 2 dias",26656]
["3071285 Control Mouse inalámbrico pasador de diapositivas USB con puntero laser  Tarifa por dia de 3 a 6 dias ",3071285,"Control Mouse inalámbrico pasador de diapositivas USB con puntero laser  Tarifa por dia de 3 a 6 dias ",24276]
["3071285 Control Mouse inalámbrico pasador de diapositivas USB con puntero laser  Tarifa de 7 dias en adelante ",3071285,"Control Mouse inalámbrico pasador de diapositivas USB con puntero laser  Tarifa de 7 dias en adelante ",172788]
["3070534 Operario técnico audiovisual, turno de 8 horas. Manejo de sonido básico, apoyo logístico  Tarifa por dia 1 a 2 dias",3070534,"Operario técnico audiovisual, turno de 8 horas. Manejo de sonido básico, apoyo logístico  Tarifa por dia 1 a 2 dias",178024]
["3070534 Operario técnico audiovisual, turno de 8 horas. Manejo de sonido básico, apoyo logístico Tarifa por dia de 3 a 6 dias ",3070534,"Operario técnico audiovisual, turno de 8 horas. Manejo de sonido básico, apoyo logístico Tarifa por dia de 3 a 6 dias ",161840]
["3070534 Operario técnico audiovisual, turno de 8 horas. Manejo de sonido básico, apoyo logístico Tarifa de 7 dias en adelante ",3070534,"Operario técnico audiovisual, turno de 8 horas. Manejo de sonido básico, apoyo logístico Tarifa de 7 dias en adelante ",1155371]
["3071300 Asesoría técnica en producción de eventos y/o asesoramiento técnico audiovisual (Una hora por sesión)  Tarifa por dia 1 a 2 dias",3071300,"Asesoría técnica en producción de eventos y/o asesoramiento técnico audiovisual (Una hora por sesión)  Tarifa por dia 1 a 2 dias",92939]
["3071300 Asesoría técnica en producción de eventos y/o asesoramiento técnico audiovisual (Una hora por sesión) Tarifa por dia de 3 a 6 dias ",3071300,"Asesoría técnica en producción de eventos y/o asesoramiento técnico audiovisual (Una hora por sesión) Tarifa por dia de 3 a 6 dias ",84490]
["3071300 Asesoría técnica en producción de eventos y/o asesoramiento técnico audiovisual (Una hora por sesión) Tarifa de 7 dias en adelante ",3071300,"Asesoría técnica en producción de eventos y/o asesoramiento técnico audiovisual (Una hora por sesión) Tarifa de 7 dias en adelante ",602854]
["3071256-12 Computador portátil  Tarifa por dia 1 a 2 dias","3071256-12","Computador portátil  Tarifa por dia 1 a 2 dias",92939]
["3071256-12 Computador portátil  Tarifa por dia de 3 a 6 dias ","3071256-12","Computador portátil  Tarifa por dia de 3 a 6 dias ",84490]
["3071256-12 Computador portátil  Tarifa de 7 dias en adelante ","3071256-12","Computador portátil  Tarifa de 7 dias en adelante ",602854]
["3071237 Computador de escritorio  Tarifa por dia 1 a 2 dias",3071237,"Computador de escritorio  Tarifa por dia 1 a 2 dias",88179]
["3071237 Computador de escritorio  Tarifa por dia de 3 a 6 dias ",3071237,"Computador de escritorio  Tarifa por dia de 3 a 6 dias ",80206]
["3071237 Computador de escritorio  Tarifa de 7 dias en adelante ",3071237,"Computador de escritorio  Tarifa de 7 dias en adelante ",572866]
["3071103 Nevera Minibar CHALLENGER 121lt  Tarifa por dia 1 a 2 dias",3071103,"Nevera Minibar CHALLENGER 121lt  Tarifa por dia 1 a 2 dias",74375]
["3071103 Nevera Minibar CHALLENGER 121lt  Tarifa por dia de 3 a 6 dias ",3071103,"Nevera Minibar CHALLENGER 121lt  Tarifa por dia de 3 a 6 dias ",56644]
["3071103 Nevera Minibar CHALLENGER 121lt Tarifa de 7 dias en adelante ",3071103,"Nevera Minibar CHALLENGER 121lt Tarifa de 7 dias en adelante ",312970]
["3071312 Aseo stands dos veces al dia entre 9 mts² y 27 mts² (valor por dia)",3071312,"Aseo stands dos veces al dia entre 9 mts² y 27 mts² (valor por dia)",19992]
["3071312 Aseo stands dos veces al dia entre 28 mts² y 55 mts² (valor por dia)",3071312,"Aseo stands dos veces al dia entre 28 mts² y 55 mts² (valor por dia)",27846]
["3071312 Aseo stands dos veces al dia entre 56 mts² y 108 mts² (valor por dia)",3071312,"Aseo stands dos veces al dia entre 56 mts² y 108 mts² (valor por dia)",41769]
["3071312 Aseo stands dos veces al dia entre 109 mts² y 162 mts² (valor por dia)",3071312,"Aseo stands dos veces al dia entre 109 mts² y 162 mts² (valor por dia)",67116]
["3071312 Aseo stands dos veces al dia de 162mts² en adelante se requiere de cotización previa,contactese con serviciosplus@corferias.com para brindarle asesoria y cotización.",3071312,"Aseo stands dos veces al dia de 162mts² en adelante se requiere de cotización previa,contactese con serviciosplus@corferias.com para brindarle asesoria y cotización.","Según cotización"]
["3071312 Aseo permanente 8 horas 1 Operario - Día normal",3071312,"Aseo permanente 8 horas 1 Operario - Día normal",112931]
["3071312 Aseo permanente 8 horas 1 Operario - Día festivo",3071312,"Aseo permanente 8 horas 1 Operario - Día festivo",166719]
["3071433 Corferias Conecta  APP (incluye el internet para un equipo)",3071433,"Corferias Conecta  APP (incluye el internet para un equipo)",330225]
["3071432 Corferias Conecta  APP + Tablet con internet",3071432,"Corferias Conecta  APP + Tablet con internet",436135]
["3071431 Tablet adicional con internet",3071431,"Tablet adicional con internet",290717]
["3071326 Internet adicional para la app por equipo",3071326,"Internet adicional para la app por equipo",103887]

{"sheet":"FORMULARIO SOLICITUD SERVICIOS","index":4,"n_rows":55,"n_cols":10,"rows_kept":55,"cut":false,"hidden":false,"merged":[[31,1,31,2],[33,1,33,2],[26,3,26,4],[54,7,54,9],[53,1,53,2],[34,3,34,4],[34,7,34,9],[49,1,49,2],[36,1,36,9],[37,6,40,9],[42,1,42,9],[43,3,43,5],[37,3,37,5],[38,3,38,5],[39,3,39,5],[40,3,40,5],[51,3,51,9],[21,1,21,2],[1,7,5,9],[1,1,1,6],[2,1,2,6],[3,1,3,6],[4,1,4,6],[5,1,5,6],[7,1,7,9],[18,3,18,4],[21,3,21,4],[20,3,20,4],[19,3,19,4],[10,1,10,9],[11,4,11,9],[12,4,12,9],[15,1,15,9],[16,1,16,9],[17,1,17,9],[19,1,19,2],[18,1,18,2],[14,1,14,9],[20,1,20,2],[44,3,44,5],[43,6,44,9],[50,1,50,2],[9,1,9,9],[32,3,32,4],[30,3,30,4],[29,3,29,4],[28,3,28,4],[28,1,28,2],[29,1,29,2],[30,1,30,2],[32,1,32,2],[22,1,22,2],[23,1,23,2],[23,3,23,4],[22,3,22,4],[51,1,51,2],[48,1,48,9],[50,3,50,9],[49,3,49,9],[45,1,45,9],[25,3,25,4],[24,1,24,2],[24,3,24,4],[25,1,25,2],[47,1,47,9],[27,3,27,4],[31,3,31,4],[33,3,33,4],[26,1,26,2],[27,1,27,2]]}
[]
[null,"SOLICITUD DE SERVICIOS EN ALQUILER",null,null,null,null,null,"FERIAS\n 2020"]
[null,"www.corferias.com"]
[null,"Cra. 37 No. 24-67 BOGOTÁ, COLOMBIA"]
[null,"PBX: 381 0000 Ext. 5616 - Correo electrónico: serviciosplus@corferias.com"]
[null,"SOMOS AUTORETENEDORES RESOLUCIÓN No. 000006 Enero 21 de 1993 y GRANDES CONTRIBUYENTES RESOLUCIÓN No. 012635                                                                                                                                    Diciembre 14 de 2018. NIT: 860.002.464-3"]
[]
[null,"Recuerde leer los Términos y Condiciones antes de diligenciar este formulario. "]
[]
[null,"INFORMACIÓN DEL EXPOSITOR "]
[null,"*No olvide diligenciar todos los campos"]
[null,"Razón social del expositor:",null,"NIT / C.C:"]
[null,"Facturar a nombre de:",null,"NIT / C.C:"]
[null,"Feria:",null,"Pabellon:",null,"Nivel:",null,"Stand:"]
[]
[null,"SOLICITUD DE SERVICIOS EN ALQUILER"]
[null,"Por favor seleccione el tipo de feria en la cual va a participar, después digite el codigo del servicio y seleccione el servicio que desea alquilar:"]
[]
[null,"DESCRIPCIÓN DEL SERVICIO",null,"OBSERVACIONES",null,"CANTIDAD","CANTIDAD DE DIAS","VALOR UNITARIO",null,"VALOR TOTAL"]
[null,"",null,null,null,null,null,{"$f":"IF('FERIAS 3 DIAS'!$E$3=1,VLOOKUP('FORMULARIO SOLICITUD SERVICIOS'!B20:C20,'FERIAS 3 DIAS'!$A$1:$D$199,4,FALSE),IF('FERIAS 3 DIAS'!$E$3=2,VLOOKUP('FORMULARIO SOLICITUD SERVICIOS'!B20:C20,'FERIAS DE 4 A 6 DIAS'!$A$1:$D$199,4,FALSE),IF('FERIAS 3 DIAS'!$E$3=3,VLOOKUP('FORMULARIO SOLICITUD SERVICIOS'!B20:C20,'FERIAS DE 7 DIAS EN ADELANTE'!$A$1:$D$223,4,FALSE),FALSE)))","v":{"$error":"#N/A"}},{"$error":"#N/A"},{"$f":"PRODUCT(F20,G20,H20)","v":{"$error":"#N/A"}}]
[null,"",null,null,null,null,null,{"$f":"IF('FERIAS 3 DIAS'!$E$3=1,VLOOKUP('FORMULARIO SOLICITUD SERVICIOS'!B21:C21,'FERIAS 3 DIAS'!$A$1:$D$199,4,FALSE),IF('FERIAS 3 DIAS'!$E$3=2,VLOOKUP('FORMULARIO SOLICITUD SERVICIOS'!B21:C21,'FERIAS DE 4 A 6 DIAS'!$A$1:$D$199,4,FALSE),IF('FERIAS 3 DIAS'!$E$3=3,VLOOKUP('FORMULARIO SOLICITUD SERVICIOS'!B21:C21,'FERIAS DE 7 DIAS EN ADELANTE'!$A$1:$D$223,4,FALSE),FALSE)))","v":{"$error":"#N/A"}},{"$error":"#N/A"},{"$f":"PRODUCT(F21,G21,H21)","v":{"$error":"#N/A"}}]
[null,"",null,null,null,null,null,{"$f":"IF('FERIAS 3 DIAS'!$E$3=1,VLOOKUP('FORMULARIO SOLICITUD SERVICIOS'!B22:C22,'FERIAS 3 DIAS'!$A$1:$D$199,4,FALSE),IF('FERIAS 3 DIAS'!$E$3=2,VLOOKUP('FORMULARIO SOLICITUD SERVICIOS'!B22:C22,'FERIAS DE 4 A 6 DIAS'!$A$1:$D$199,4,FALSE),IF('FERIAS 3 DIAS'!$E$3=3,VLOOKUP('FORMULARIO SOLICITUD SERVICIOS'!B22:C22,'FERIAS DE 7 DIAS EN ADELANTE'!$A$1:$D$223,4,FALSE),FALSE)))","v":{"$error":"#N/A"}},{"$error":"#N/A"},{"$error":"#N/A"}]
[null,"",null,null,null,null,null,{"$f":"IF('FERIAS 3 DIAS'!$E$3=1,VLOOKUP('FORMULARIO SOLICITUD SERVICIOS'!B23:C23,'FERIAS 3 DIAS'!$A$1:$D$199,4,FALSE),IF('FERIAS 3 DIAS'!$E$3=2,VLOOKUP('FORMULARIO SOLICITUD SERVICIOS'!B23:C23,'FERIAS DE 4 A 6 DIAS'!$A$1:$D$199,4,FALSE),IF('FERIAS 3 DIAS'!$E$3=3,VLOOKUP('FORMULARIO SOLICITUD SERVICIOS'!B23:C23,'FERIAS DE 7 DIAS EN ADELANTE'!$A$1:$D$223,4,FALSE),FALSE)))","v":{"$error":"#N/A"}},{"$error":"#N/A"},{"$error":"#N/A"}]
[null,"",null,null,null,null,null,{"$f":"IF('FERIAS 3 DIAS'!$E$3=1,VLOOKUP('FORMULARIO SOLICITUD SERVICIOS'!B24:C24,'FERIAS 3 DIAS'!$A$1:$D$199,4,FALSE),IF('FERIAS 3 DIAS'!$E$3=2,VLOOKUP('FORMULARIO SOLICITUD SERVICIOS'!B24:C24,'FERIAS DE 4 A 6 DIAS'!$A$1:$D$199,4,FALSE),IF('FERIAS 3 DIAS'!$E$3=3,VLOOKUP('FORMULARIO SOLICITUD SERVICIOS'!B24:C24,'FERIAS DE 7 DIAS EN ADELANTE'!$A$1:$D$223,4,FALSE),FALSE)))","v":{"$error":"#N/A"}},{"$error":"#N/A"},{"$error":"#N/A"}]
[null,"",null,null,null,null,null,{"$f":"IF('FERIAS 3 DIAS'!$E$3=1,VLOOKUP('FORMULARIO SOLICITUD SERVICIOS'!B25:C25,'FERIAS 3 DIAS'!$A$1:$D$199,4,FALSE),IF('FERIAS 3 DIAS'!$E$3=2,VLOOKUP('FORMULARIO SOLICITUD SERVICIOS'!B25:C25,'FERIAS DE 4 A 6 DIAS'!$A$1:$D$199,4,FALSE),IF('FERIAS 3 DIAS'!$E$3=3,VLOOKUP('FORMULARIO SOLICITUD SERVICIOS'!B25:C25,'FERIAS DE 7 DIAS EN ADELANTE'!$A$1:$D$223,4,FALSE),FALSE)))","v":{"$error":"#N/A"}},{"$error":"#N/A"},{"$error":"#N/A"}]
[null,"",null,null,null,null,null,{"$f":"IF('FERIAS 3 DIAS'!$E$3=1,VLOOKUP('FORMULARIO SOLICITUD SERVICIOS'!B26:C26,'FERIAS 3 DIAS'!$A$1:$D$199,4,FALSE),IF('FERIAS 3 DIAS'!$E$3=2,VLOOKUP('FORMULARIO SOLICITUD SERVICIOS'!B26:C26,'FERIAS DE 4 A 6 DIAS'!$A$1:$D$199,4,FALSE),IF('FERIAS 3 DIAS'!$E$3=3,VLOOKUP('FORMULARIO SOLICITUD SERVICIOS'!B26:C26,'FERIAS DE 7 DIAS EN ADELANTE'!$A$1:$D$223,4,FALSE),FALSE)))","v":{"$error":"#N/A"}},{"$error":"#N/A"},{"$error":"#N/A"}]
[null,"",null,null,null,null,null,{"$f":"IF('FERIAS 3 DIAS'!$E$3=1,VLOOKUP('FORMULARIO SOLICITUD SERVICIOS'!B27:C27,'FERIAS 3 DIAS'!$A$1:$D$199,4,FALSE),IF('FERIAS 3 DIAS'!$E$3=2,VLOOKUP('FORMULARIO SOLICITUD SERVICIOS'!B27:C27,'FERIAS DE 4 A 6 DIAS'!$A$1:$D$199,4,FALSE),IF('FERIAS 3 DIAS'!$E$3=3,VLOOKUP('FORMULARIO SOLICITUD SERVICIOS'!B27:C27,'FERIAS DE 7 DIAS EN ADELANTE'!$A$1:$D$223,4,FALSE),FALSE)))","v":{"$error":"#N/A"}},{"$error":"#N/A"},{"$error":"#N/A"}]
[null,"",null,null,null,null,null,{"$f":"IF('FERIAS 3 DIAS'!$E$3=1,VLOOKUP('FORMULARIO SOLICITUD SERVICIOS'!B28:C28,'FERIAS 3 DIAS'!$A$1:$D$199,4,FALSE),IF('FERIAS 3 DIAS'!$E$3=2,VLOOKUP('FORMULARIO SOLICITUD SERVICIOS'!B28:C28,'FERIAS DE 4 A 6 DIAS'!$A$1:$D$199,4,FALSE),IF('FERIAS 3 DIAS'!$E$3=3,VLOOKUP('FORMULARIO SOLICITUD SERVICIOS'!B28:C28,'FERIAS DE 7 DIAS EN ADELANTE'!$A$1:$D$223,4,FALSE),FALSE)))","v":{"$error":"#N/A"}},{"$error":"#N/A"},{"$error":"#N/A"}]
[null,"",null,null,null,null,null,{"$f":"IF('FERIAS 3 DIAS'!$E$3=1,VLOOKUP('FORMULARIO SOLICITUD SERVICIOS'!B29:C29,'FERIAS 3 DIAS'!$A$1:$D$199,4,FALSE),IF('FERIAS 3 DIAS'!$E$3=2,VLOOKUP('FORMULARIO SOLICITUD SERVICIOS'!B29:C29,'FERIAS DE 4 A 6 DIAS'!$A$1:$D$199,4,FALSE),IF('FERIAS 3 DIAS'!$E$3=3,VLOOKUP('FORMULARIO SOLICITUD SERVICIOS'!B29:C29,'FERIAS DE 7 DIAS EN ADELANTE'!$A$1:$D$223,4,FALSE),FALSE)))","v":{"$error":"#N/A"}},{"$error":"#N/A"},{"$error":"#N/A"}]
[null,"",null,null,null,null,null,{"$f":"IF('FERIAS 3 DIAS'!$E$3=1,VLOOKUP('FORMULARIO SOLICITUD SERVICIOS'!B30:C30,'FERIAS 3 DIAS'!$A$1:$D$199,4,FALSE),IF('FERIAS 3 DIAS'!$E$3=2,VLOOKUP('FORMULARIO SOLICITUD SERVICIOS'!B30:C30,'FERIAS DE 4 A 6 DIAS'!$A$1:$D$199,4,FALSE),IF('FERIAS 3 DIAS'!$E$3=3,VLOOKUP('FORMULARIO SOLICITUD SERVICIOS'!B30:C30,'FERIAS DE 7 DIAS EN ADELANTE'!$A$1:$D$223,4,FALSE),FALSE)))","v":{"$error":"#N/A"}},{"$error":"#N/A"},{"$error":"#N/A"}]
[null,"",null,null,null,null,null,{"$f":"IF('FERIAS 3 DIAS'!$E$3=1,VLOOKUP('FORMULARIO SOLICITUD SERVICIOS'!B31:C31,'FERIAS 3 DIAS'!$A$1:$D$199,4,FALSE),IF('FERIAS 3 DIAS'!$E$3=2,VLOOKUP('FORMULARIO SOLICITUD SERVICIOS'!B31:C31,'FERIAS DE 4 A 6 DIAS'!$A$1:$D$199,4,FALSE),IF('FERIAS 3 DIAS'!$E$3=3,VLOOKUP('FORMULARIO SOLICITUD SERVICIOS'!B31:C31,'FERIAS DE 7 DIAS EN ADELANTE'!$A$1:$D$223,4,FALSE),FALSE)))","v":{"$error":"#N/A"}},{"$error":"#N/A"},{"$error":"#N/A"}]
[null,"",null,null,null,null,null,{"$f":"IF('FERIAS 3 DIAS'!$E$3=1,VLOOKUP('FORMULARIO SOLICITUD SERVICIOS'!B32:C32,'FERIAS 3 DIAS'!$A$1:$D$199,4,FALSE),IF('FERIAS 3 DIAS'!$E$3=2,VLOOKUP('FORMULARIO SOLICITUD SERVICIOS'!B32:C32,'FERIAS DE 4 A 6 DIAS'!$A$1:$D$199,4,FALSE),IF('FERIAS 3 DIAS'!$E$3=3,VLOOKUP('FORMULARIO SOLICITUD SERVICIOS'!B32:C32,'FERIAS DE 7 DIAS EN ADELANTE'!$A$1:$D$223,4,FALSE),FALSE)))","v":{"$error":"#N/A"}},{"$error":"#N/A"},{"$error":"#N/A"}]
[null,"",null,null,null,null,null,{"$f":"IF('FERIAS 3 DIAS'!$E$3=1,VLOOKUP('FORMULARIO SOLICITUD SERVICIOS'!B33:C33,'FERIAS 3 DIAS'!$A$1:$D$199,4,FALSE),IF('FERIAS 3 DIAS'!$E$3=2,VLOOKUP('FORMULARIO SOLICITUD SERVICIOS'!B33:C33,'FERIAS DE 4 A 6 DIAS'!$A$1:$D$199,4,FALSE),IF('FERIAS 3 DIAS'!$E$3=3,VLOOKUP('FORMULARIO SOLICITUD SERVICIOS'!B33:C33,'FERIAS DE 7 DIAS EN ADELANTE'!$A$1:$D$223,4,FALSE),FALSE)))","v":{"$error":"#N/A"}},{"$error":"#N/A"},{"$error":"#N/A"}]
[null,"",null,null,null,null,null,{"$f":"IF('FERIAS 3 DIAS'!$E$3=1,VLOOKUP('FORMULARIO SOLICITUD SERVICIOS'!B34:C34,'FERIAS 3 DIAS'!$A$1:$D$199,4,FALSE),IF('FERIAS 3 DIAS'!$E$3=2,VLOOKUP('FORMULARIO SOLICITUD SERVICIOS'!B34:C34,'FERIAS DE 4 A 6 DIAS'!$A$1:$D$199,4,FALSE),IF('FERIAS 3 DIAS'!$E$3=3,VLOOKUP('FORMULARIO SOLICITUD SERVICIOS'!B34:C34,'FERIAS DE 7 DIAS EN ADELANTE'!$A$1:$D$223,4,FALSE),FALSE)))","v":{"$error":"#N/A"}},{"$error":"#N/A"},{"$error":"#N/A"}]
[null,"OBSERVACIONES GENERALES","En este espacio usted puede brindar información específica sobre el requerimiento","TOTAL (incluido IVA)",null,{"$f":"SUM(F20:F34)","v":0},{"$f":"_xlfn.AGGREGATE(9,7,G20:G34)","v":0},{"$f":"_xlfn.AGGREGATE(9,7,J20:J34)","v":0}]
[]
[null,"SOLICITUD DE CREDENCIALES E INVITACIONES ADICIONALES POR COMPRA"]
[null,"CODIGO","DESCRIPCION","CANTIDAD",null,null,"Si desea verificar los precios de las Credenciales e Invitaciones, recuerde que puede consultarlos la Guia del Expositor de la feria que va a participar."]
[null,3040107,"Credencial de expositor"]
[null,3040107,"Credencial de servicio"]
[null,3040108,"Invitación"]
[]
[null,"SOLICITUD DE BONO DE PARQUEADEO PARA EXPOSITORES"]
[null,"CODIGO","DESCRIPCION","CANTIDAD",null,null,"El área de parqueo se habilita de acuerdo a la ubicación geográfica de la feria o evento:\n  ● Parqueadero Torre: Carrera 40 # 22 - 60\n  ● Parqueadero Verde: Calle 25 # 33 - 60 "]
[null,3050103,"Bono de expositor"]
[null,"IMPORTANTE\n1.Esta tarjeta le da derecho al expositor a un cupo de parqueadero, durante el desarrollo de la Feria o Evento. \n2.Señor Expositor tenga en cuenta que al ingresar a los parqueaderos de Corferias, usted está aceptando las CONDICIONES DE USO de parqueaderos, que se encuentran debidamente publicadas en los mismos\n3. CORFERIAS no se hace responsable por la pérdida de la Tarjeta. En caso de pérdida de la Tarjeta, usted debe informar la perdida al personal del parqueadero y cancelar en las cajas del parqueadero el valor equivalente a ½ SMDLV.\n5. Es requisito indispensable ubicar la Tarjeta en el lector de la talanquera para que esta suba, por cada ingreso y salida del vehículo.\n6. Si llega a presentar alguna novedad con la tarjeta, se deberá reportar de inmediato con el líder de parqueaderos quien le brindara una solución.\n7. Por favor NO tomar tiquete, esta acción genera cobro.  \n8. La validez de la tarjeta de parqueadero dará inicio al día siguiente de la compra. En caso de que la tarjeta sea adquirida durante la ejecución de la feria y/o evento, el expositor podrá solicitar al cajero del Plus el sello respectivo en el tiquete de entrada, el cual deberá presentar en las cajas del parqueadero para homologar el beneficio de la tarjeta por una única vez."]
[]
[null,"ACEPTO TERMINOS Y CONDICIONES"]
[null,"*No olvide diligenciar todos los campos."]
[null,"Nombre Completo:"]
[null,"Teléfono movíl:"]
[null,"Correo Electrónico:"]
[]
[null,null,null,null,null,null,null,"Fecha",null,{"$f":"TODAY()","v":"2020-10-23"}]
[null,null,null,null,null,null,null,"PI-F-2091 (V.1)"]

{"sheet":"TARIFAS SERVICIOS","index":5,"n_rows":221,"n_cols":7,"rows_kept":221,"cut":false,"hidden":false,"merged":[[165,4,165,6],[166,4,166,6],[167,4,167,6],[168,4,168,6],[134,4,134,6],[135,4,135,6],[136,4,136,6],[138,1,138,6],[139,1,139,6],[140,4,140,6],[141,4,141,6],[142,4,142,6],[143,4,143,6],[156,4,156,6],[157,4,157,6],[158,4,158,6],[159,4,159,6],[160,4,160,6],[161,4,161,6],[128,1,136,1],[128,4,128,6],[129,4,129,6],[130,4,130,6],[131,4,131,6],[1,4,2,6],[1,3,2,3],[162,4,162,6],[107,4,107,6],[108,4,108,6],[109,4,109,6],[110,4,110,6],[111,4,111,6],[112,4,112,6],[124,4,124,6],[125,4,125,6],[66,4,66,6],[67,4,67,6],[69,1,69,6],[71,4,71,6],[71,1,76,1],[87,4,87,6],[88,4,88,6],[89,4,89,6],[90,4,90,6],[72,4,72,6],[73,4,73,6],[74,4,74,6],[75,4,75,6],[63,1,67,1],[63,4,63,6],[64,4,64,6],[65,4,65,6],[121,4,121,6],[122,4,122,6],[123,4,123,6],[116,1,117,1],[118,1,120,1],[116,4,116,6],[117,4,117,6],[118,4,118,6],[119,4,119,6],[120,4,120,6],[93,4,93,6],[94,4,94,6],[121,1,127,1],[126,4,126,6],[127,4,127,6],[97,1,101,1],[102,1,115,1],[102,2,105,2],[97,4,97,6],[98,4,98,6],[203,1,209,1],[202,1,202,6],[203,4,203,6],[204,4,204,6],[205,4,205,6],[206,4,206,6],[207,4,207,6],[208,3,208,6],[209,2,209,6],[188,1,192,1],[193,1,199,1],[166,1,171,1],[174,1,174,6],[173,1,173,6],[175,1,187,1],[171,4,171,6],[201,1,201,6],[144,4,144,6],[145,4,145,6],[146,4,146,6],[163,1,165,1],[153,1,159,1],[169,4,169,6],[170,4,170,6],[152,4,152,6],[140,1,146,1],[147,1,152,1],[160,1,162,1],[153,4,153,6],[154,4,154,6],[155,4,155,6],[163,4,163,6],[164,4,164,6],[216,1,220,1],[210,1,212,1],[210,4,210,6],[211,4,211,6],[212,4,212,6],[214,1,214,6],[215,1,215,6],[216,4,216,6],[217,4,217,6],[218,4,218,6],[219,4,219,6],[220,4,220,6],[132,4,132,6],[133,4,133,6],[147,4,147,6],[148,4,148,6],[149,4,149,6],[150,4,150,6],[151,4,151,6],[105,4,105,6],[106,4,106,6],[113,4,113,6],[114,4,114,6],[115,4,115,6],[99,4,99,6],[100,4,100,6],[101,4,101,6],[102,4,102,6],[103,4,103,6],[104,4,104,6],[61,4,61,6],[62,4,62,6],[76,4,76,6],[77,4,77,6],[44,1,45,6],[46,1,46,6],[22,1,30,1],[22,5,22,6],[92,1,96,1],[93,2,96,2],[87,1,91,1],[87,2,90,2],[82,4,82,6],[83,4,83,6],[84,4,84,6],[85,4,85,6],[86,4,86,6],[77,1,86,1],[78,4,78,6],[79,4,79,6],[80,4,80,6],[81,4,81,6],[95,4,95,6],[96,4,96,6],[91,4,91,6],[92,4,92,6],[28,5,28,6],[29,5,29,6],[30,2,30,6],[47,4,47,6],[48,4,48,6],[49,4,49,6],[31,4,31,6],[35,4,35,6],[32,4,32,6],[6,4,6,6],[4,1,4,6],[8,1,9,6],[10,1,10,6],[11,5,11,6],[12,5,12,6],[13,4,13,6],[14,4,14,6],[6,1,6,2],[11,1,21,1],[21,4,21,6],[15,4,15,6],[20,4,20,6],[19,4,19,6],[18,4,18,6],[16,4,16,6],[17,4,17,6],[23,5,23,6],[24,5,24,6],[25,5,25,6],[31,1,34,1],[35,1,42,1],[70,1,70,6],[33,4,33,6],[34,4,34,6],[36,4,36,6],[37,4,37,6],[38,4,38,6],[39,4,39,6],[40,4,40,6],[41,4,41,6],[42,2,42,6],[47,1,56,1],[56,3,56,6],[57,1,62,1],[57,4,57,6],[58,4,58,6],[59,4,59,6],[60,4,60,6],[26,5,26,6],[27,5,27,6]]}
[]
[null,null,null,"TARIFAS DE SERVICIOS EN ALQUILER ","FERIAS \n2020"]
[]
[]
[null,"Apreciado cliente, en este formulario podrá encontrar un completo listado con los servicios que Corferias pone a su disposición durante la planificación y desarrollo de la feria."]
[]
[null,"Los valores a continuación incluyen IVA del 19%",null,"Pensando en nuestros expositores, Corferias lo invita a conocer los nuevos Combos de Servicios en alquiler para que ahorre entre 5% y 20% según sus necesidades","Consulte las imágenes de referencia en nuestro catálogo: https://corferias.com/pdf/corferias-catalogo-de-servicios-2020.pdf"]
[]
[null,"SERVICIOS TÉCNICOS"]
[]
[null,"IMPORTANTE                                                                                                                                                                                                                                                                                                                                                                                                                                                                                                 * Recuerde que las instalaciones de servicios de Agua, Desague, Gas, Aire comprimido y Electricidad se hacen según especificaciones técinas de Corferias.\n* Los equipos eléctricos deben estar protegidos por un estabilizador de voltaje, o supresor de picos, que el expositor debe proveer. "]
[null,"ELECTRICIDAD","CODIGO","DESCRIPCIÓN DEL SERVICIO","Ferias 1 a 6 días","Ferias 7 días en adelante"]
[null,null,3070101,"Instalación Monofásica (Toma corriente doble, consumo hasta 2KW/110V)",364140,369852]
[null,null,3070103,"Instalación kilovatio adicional monofásico (Debe contar con punto principal, MAX 2KW por punto)",124593]
[null,null,3070102,"Instalación trifásica (Regleta plastica, consumo hasta 4KW/208V)",664734]
[null,null,3070104,"Instalación kilovatio adicional trifásico (Debe contar con punto principal)",162673]
[null,null,3071372,"De 21 a 50 kilovatios adicionales trifásicos (Valor por KW) (Debe contar con punto principal)",147917]
[null,null,3071373,"De 51 a 100 kilovatios adicionales trifásicos (Valor por KW) (Debe contar con punto principal)",141372]
[null,null,3071374,"Mas de100 kilovatios adicionales trifásicos (Valor por KW) (Debe contar con punto principal)",135541]
[null,null,3070402,"Lampara de pared ajustable (150W/110V)",68663]
[null,null,3070405,"Reflector Led (50W- mltV)",72352]
[null,null,3070403,"Extensión – tomacorriente doble con polo a tierra (1500W/110V) MAX 6mts No incluye electricidad",35581]
[null,"AGUA, AIRE Y GAS","CODIGO","DESCRIPCIÓN DEL SERVICIO","Ferias 1 a 6 días","Ferias 7 días en adelante"]
[null,null,3071345,"Lavaplatos 90XL* 60XH* 90 (No incluye agua y desague)",163149,176477]
[null,null,3070301,"Punto de Agua en 1/2\" (incluye consumo)",348075,429947]
[null,null,3070302,"Desagüe en 1 1/2\" Por toda la feria (Ubicación asignada por Corferias en su stand)",322252,396865]
[null,null,3071341,"Aire comprimido para punto con presión máx. de 100 PSI, y caudal máx. 35CFM.",444108,528479]
[null,null,3070307,"Punto de Agua en 1/2\" (Incluye consumo)  + Desagüe en 1 1/2\" + Lavaplatos ",750057,902972]
[null,null,3071321,"Punto de gas propano para UN (1) equipo de máximo 4 quemadores",395080,610708]
[null,null,3071368,"Quemador adicional (unidad), debe contar con punto de gas",80563,124593]
[null,null,"Nota: Si su equipo es una plancha para asar, horno, chimenea, entre otros; por favor enviar especificaciones técnicas (placa) y fotos de cada equipo a serviciosplus@corferias.com"]
[null,"SISTEMA DIVISORIO","CODIGO","DESCRIPCIÓN DEL SERVICIO","VALOR FERIA"]
[null,null,3070601,"Panel adicional sistema cfe 100cm x 240cm",36652]
[null,null,3070801,"Puerta sistema cfe 90cm x 240cm",90797]
[null,null,3070803,"Bodega estándar con puerta 150cm x 150cm (Sistema Corferias)",144823]
[null,"BRAZO MECÁNICO","CODIGO","DESCRIPCIÓN DEL SERVICIO","VALOR FERIA"]
[null,null,3071319,"Brazo Mecánico por Fracciòn de 15 min (Solo para primer nivel)",72709]
[null,null,3071319,"Brazo Mecánico por Fracciòn de 30 min (Solo para primer nivel)",134946]
[null,null,3071319,"Brazo Mecánico por Fracciòn de 45 min (Solo para primer nivel)",207655]
[null,null,3071319,"Brazo Mecánico por Fracciòn de 60 min (Solo para primer nivel)",249186]
[null,null,3070413,"Diferencial (Cap. 1 Ton.) + Brazo mecánico (Montaje y desmontaje) ",467313]
[null,null,3070414,"Plataforma Tijera eléctrica por Fracciòn /30 min (Uso para segundos niveles)",81396]
[null,null,"El servicio de Brazo mecánico por fracciones aplica según disponibilidad para los días y horarios oficiales de montaje y desmontaje (entre 8:00 a.m y 8:00 p.m.); para servicios por fuera de estos horarios puede comunicacrse con la oficina del PLUS para brindarle asesoría y cotización a través de nuestros asesores. La prestacón del servicio se coordina con el operario de la máquina de acuerdo a disponibilidad."]
[]
[null,"TELECOMUNICACIONES Y REDES"]
[]
[null,"IMPORTANTE                                                                                                                                                                                                                                                                                                                                       \nEl servicio de Internet ofrecido por Corferias tiene un ancho de banda compartido, Corferias entrega un PIN (Clave) como sistema de autenticación válido para un equipo.\n* Requiere tecnologías con Tarjeta de red de 5 GHz o mínimo 2,4 802.11n, cobertura sobre los pabellones de la feria, excluyendo áreas libres.\nWiFi: Por su naturaleza inalámbria puede presentar algunas intermitencias en la efectividad de su conexión.\nCableado: Aplica para equipos que cuenten con una tarjeta de red con puerto RJ45."]
[null,"SERVICIO DE INTERNET Y REDES","CODIGO","DESCRIPCIÓN DEL SERVICIO","VALOR DÍA"]
[null,null,3071418,"Servicio de Internet Cableado \"PARA UN EQUIPO - DURANTE UN DÍA\"  \n(Debe contar con puerto RJ45) *Ancho de banda compartido",74970]
[null,null,3071419,"Clave de acceso para la red WiFi  \"PARA UN EQUIPO - DURANTE UN DÍA\" \n(Incluye el servicio de navegación en Internet básico para consulta de correos y redes sociales)",74970]
[null,null,"CODIGO","DESCRIPCIÓN DEL SERVICIO","Valor Ferias de 3 días","Valor Ferias de 4 a  6 días","Valor Ferias a partir de 7 días"]
[null,null,3071417,"Servicio de Internet Cableado \"PARA UN EQUIPO - DURANTE TODA LA FERIA\"\n(Debe contar con puerto RJ45) *Ancho de banda compartido",180404,199563,272986]
[null,null,3071420,"Clave de acceso para la Red WiFi \"PARA UN EQUIPO - DURANTE TODA LA FERIA\"\n(Incluye el servicio de navegación en Internet básico para consulta de correos y redes sociales) ",180404,199563,272986]
[null,null,3071423,"Conexión para Datafono + Clave de acceso WIFI (Para un equipo durante toda la feria)",289765,307972,377706]
[null,null,3071424,"Conexión para Datafono + Servicio de Internet Cableado (Para un equipo durante toda la feria)",289765,307972,377706]
[null,null,3071425,"Servicio de Internet Cableado + Clave de acceso WIFI (Para un equipo durante toda la feria)",324751,359142,491351]
[null,null,3071437,"Internet Dedicado: Si requiere conexión banda ancha para diferentes servicios o redes locales, contáctese con el área del PLUS de Corferias para brindarle asesoria y cotización."]
[null,"SERVICIO DE INTERNET Y REDES","CODIGO","DESCRIPCIÓN DEL SERVICIO","VALOR FERIA"]
[null,null,3071406,"Instalación Punto de Red: Incluye un cable UTP por punto,equipos de cominicación necesarios para la conexión de red (En caso de ser necesarios en calidad de prestamo), asesoria para el diseño de red). No incluye servicio de Internet.",89012]
[null,null,3071407,"Switch: Equipos para soportar redes de datos. Incluye: Cable de poder (Necesita toma eléctrica), velocidad soportada 100/1000 BASE-T y capacidad de 1, 26 o 48 puertos. No incluye servicio de Internet, Incluye un punto de red.  VALOR POR FERIA ",85680]
[null,null,3071402,"Servicio de VLAN: Servicio virtual de red. Permite la conexión de red interna, entre dispositivos en diferentes pabellones del Recinto Ferial. No incluye servicio de Internet, Incluye un punto de red.  VALOR POR FERIA",349979]
[null,null,3071430,"Extension LAN: Servicio virtual para la extensión de una red externa al interior del Recinto Ferial.  Permite llevar el servicio a otro destino o ubicación dentro del recinto ferial. No incluye servicio de Internet.  VALOR POR FERIA  (Incluye punto de red y aplica para extender el servicio de internet contratado con terceros)",1113245]
[null,null,3071442,"Soporte técnico permanente (Por espacio de 8 horas) de un técnico. Solicitar con 24 horas de anterioridad\n  VALOR DÍARIO ",243474]
[null,"TELECOMUNICACIONES","CODIGO","DESCRIPCIÓN DEL SERVICIO","VALOR FERIA"]
[null,null,3070202,"Servicio Telefónico Urbano con Aparato (Incluye consumo local ilimitado)",42483]
[null,null,3070203,"Servicio Telefónico Larga Distancia con aparato: Incluye consumo local ilimitado. El valor no incluye los consumos de larga distacia nacional, local extendida, internacional o celular (Estos consumos se cobran al final de la feria)",42483]
[null,null,3070201,"Línea Externa no conmutada (Previa solicitud a Etb, Claro, EPM, Colomsat u otro operador): Servicio para traer troncales de una empresa o líneas dedicadas, incluye el traslado del strip telefónico del operador al stand del expositor.",120071]
[null,null,3070207,"Conexión cableada para Datafono: (No incluye Datafono) Para el datafono el expositor debe contactarse con la Red transaccional: Redeban o Credibanco\n",124593]
[]
[null,"MOBILIARIO Y ELEMENTOS DE DECORACIÓN"]
[null,"IMPORTANTE                                                                                                                                                                                                                                                                                                                                       \nEl mobiliario será entregado por nuestro cotratista es su stand, en el desmontaje este mismo será el encargado de retirarlo."]
[null,"COMBOS","CODIGO","DESCRIPCIÓN DEL SERVICIO","CANTIDAD"]
[null,null,3070942,"Kit básico Pino 1 (1 mesa pleglable pino, 3 sillas acrilicas k negra)",187306]
[null,null,3071105,"KIT básico oficina 2 (2 sillas interlocutoras, 1 silla ejecutiva, 1 mesa oficina)",222411]
[null,null,3071036,"Mesa plegable plastico + 2 sillas interlocutoras",171836]
[null,null,3071039,"Mesa alta Daysa + 2 sillas neumaticas altas marsella",228599]
[null,null,3071054,"Mesa estandar lotus vidrio + 2 sillas tipo huevo",249781]
[null,"SILLAS",3071002,"Silla Acrílica k negra (85cm x 49cm x 47cm)",41769]
[null,null,3071078,"Silla con Espaldar Arles (75cm x 38cm x39cm)",61761]
[null,null,30713198,"Silla Gerencial (119cm x 67cm x 78cm)",145418]
[null,null,3071081,"Silla Ejecutiva (79cm x 53cm x 42cm)",70567]
[null,null,3071061,"Silla estandar Suiza (48cm x 46cm x 45cm)",64617]
[null,null,3071008,"Silla estandar Tipo Huevo (48cm x 46cm x 45cm)",64617]
[null,null,3071006,"Silla Interlocutora Negra (79cm x 53cm x 42cm)",46410]
[null,null,3071022,"Silla Neumatica alta Versalles (80cm x 40 cm x 40cm",97580]
[null,null,3071077,"Silla Neumática alta Marsella (80cm x 40cm x 40cm)",77588]
[null,null,3071092,"Silla Neumatica alta POP (Blanca o negra) (80cm x 43cm x 40cm)",76755]
[null,"ESTANTERIAS",3070503,"Estantería Polo (Melaminico)   (100cm x 93cm x 35cm)",170527]
[null,null,null,"Estantería Polo (Miel)  (100cm x 93cm x 35cm)",170527]
[null,null,null,"Estantería Polo (Rovere)  (100cm x 93cm x 35cm)",170527]
[null,null,null,"Estantería Polo (Roble Gris)  (100cm x 93cm x 35cm)",170527]
[null,null,3071108,"Estantería Shelf 4E (190cm x 125cm x 41cm)",142086]
[null,"COUNTERS",3071107,"Archivador Regina (70cm x 37cm x50cm)",148274]
[null,null,3070954,"Counter Mónaco (Melaminico) (100cm x 100cm x 40cm)",160531]
[null,null,null,"Counter Mónaco (Miel) (100cm x 100cm x 40cm)",160531]
[null,null,null,"Counter Mónaco (Rovere) (100cm x 100cm x 40cm)",160531]
[null,null,null,"Counter Mónaco (Roble Gris) (100cm x 100cm x 40cm)",160531]
[null,"VITRINAS",3070535,"Vitrina Isla 2E (200cm x 50cm x 50cm)",232526]
[null,null,3070517,"Vitrina Mostrador 1E (100cm x 100cm x 40cm)",200634]
[null,null,3070518,"Vitrina Mostrador Tipo 2 1E (100cm x 50 cm x 40cm)",200634]
[null,null,3071111,"Vitrina Rectangular 2E (200cm x 100cm x 40cm)",268702]
[null,null,30713199,"Vitrina Rectangular 3E (180cm x 100cm x 40cm)",268702]
[null,"MESAS",3071115,"Mesa alta Daysa (Melaminico) (100cm x 60cm)",98889]
[null,null,null,"Mesa alta Daysa (Miel) (100cm x 60cm)",98889]
[null,null,null,"Mesa alta Daysa (Rovere) (100cm x 60cm)",98889]
[null,null,null,"Mesa alta Daysa (Roble Gris) (100cm x 60cm)",98889]
[null,null,3071093,"Mesa alta Daysa vidrio (100cm x 60cm)",111265]
[null,null,3071104,"Mesa Centro 2 Niveles (melaminico) (50cm x 60cm x 60)",80087]
[null,null,3071100,"Mesa Centro Circular doble nivel (melaminico) (50cm x 110cm x 60cm)",110075]
[null,null,3071068,"Mesa Centro Rectangular doble nivel (melaminico) (50cm x 75cm x 50cm) ",80087]
[null,null,3071097,"Mesa estandar Daysa (76cm x 60cm)",98889]
[null,null,3071116,"Mesa estandar Lotus (70cm x 64cm x 81cm)",148274]
[null,null,3071098,"Mesa estandar Shia (76cm x 60cm x 60cm)",98889]
[null,null,30713200,"Mesa Oficina (78cm x 120cm x 50cm)",124593]
[null,null,3070936,"Mesón plegable plástico (Gris o blanco) (73cm x 182cm x 76cm)",98056]
[null,null,3070904,"Mesón plegable pino (75cm x 120cm x 60cm)",98056]
[null,"SALAS",3071113,"Sala Osaka (1 sofá Toronto, 2 puffs Donna, 1 mesa centro 2 niveles)",432446]
[null,null,3071095,"Sala VIP (1 sofá Victoria derecho, 1 sofá Victoria izquierdo, 2 poltronas, 1 mesa centro 2 niveles)",716737]
[null,"PUFF",3071090,"Puff estandar cuadrado (43cm x 43cm x 43cm)",51765]
[null,null,3071091,"Puff Trunk 2 cuerpos (48cm x 81cm x 40cm)",98889]
[null,null,3071114,"Puff Trunk 3 cuerpos (48cm x 120cm x 54cm)",98889]
[null,"SOFAS",3071085,"Sofa Otawa 2 cuerpos (85cm x 120cm x 76cm)",197659]
[null,null,3071083,"Sofa Toronto 3 cuerpos (88cm x 173cm x 80cm)",210035]
[null,null,3071031,"Sofa Terranova 2 cuerpos (88cm x 173cm x 80cm)",210035]
[null,null,3071013,"Sofa Victoria derecho (70cm x 100cm x 75cm)",170646]
[null,null,3071023,"Sofa Victoria izquierdo (70cm x 100cm x 75cm)",170646]
[null,null,30713201,"Poltrona Buggy (72cm x 64cm)",145418]
[null,null,3071059,"Poltrona Levis (73cm x 86cm x 78cm)",185402]
[null,"ACCESORIOS",3071302,"Papelera metálica",23443]
[null,null,3071325,"Poste separador 120cm de alto",46291]
[null,null,3070714,"Cubo de exhibición (40cm x 40cm x 25cm)",33439]
[null,null,3070957,"Pedestal cuadrado (30cm x 30cm x 30cm)",32249]
[null,null,3070956,"Pedestal rectangular 60cm (30cm x 60cm x 30cm)",37128]
[null,null,3070955,"Pedestal rectangular 90cm (30cm x 90cm x 30cm)",42126]
[null,null,3071370,"Revistero plegable (140cm x 25cm x 29cm)",73661]
[null,null,3070505,"Tarima 120x120x60, (Previa verificación con área de montaje)",43197]
[null,null,3071388,"Módulo de carga 20 puntos 110V",247163]
[]
[null,"ELEMENTOS Y SUMINISTROS VIVERO"]
[null,"IMPORTANTE: Lo invitamos a visitar el vivero que se encuentra dentro de las instaciones de Corferias"]
[null,"COMBOS","CODIGO","DESCRIPCIÓN DEL SERVICIO","VALOR FERIA"]
[null,null,3071375,"Planta + matera plástica (Pequeña)",24514]
[null,null,3071376,"Planta + matera plástica (Mediana)",55216]
[null,null,3071377,"Planta + matera plástica (Grande)",70448]
[null,null,3071378,"Jardinera en madera + 3 Plantas grandes",119357]
[null,null,3071379,"Jardinera en madera + 3 Plantas medianas",96509]
[null,null,3071380,"Jardinera en madera + 7 Plantas pequeñas",99365]
[null,"PLANTAS",3071381,"Cajoneras con flores",185402]
[null,null,3071314,"Grandes (61cm x 120cm)",37723]
[null,null,3071301,"Medianas (31cm x 120cm)",29750]
[null,null,3071317,"Pequeñas (10cm x 30cm)",13209]
[null,null,3071382,"Suculentas (10cm x 15cm)",13209]
[null,null,3071383,"Chamizos",13209]
[null,"MATERAS (no incluye planta)",3071355,"De barro grande",36533]
[null,null,3071356,"De barro mediana",28441]
[null,null,3071384,"De barro pequeña",12614]
[null,null,3071357,"Plástica grande",36533]
[null,null,3071358,"Plástica mediana",28441]
[null,null,3071359,"Plástica pequeña",12614]
[null,null,3071360,"Jardinera en madera (35cm x 100cm x 35cm)",12614]
[null,"ARREGLOS FLORALES",3071352,"Grandes",111622]
[null,null,3071353,"Medianos",64974]
[null,null,3071354,"Pequeños",28560]
[null,"TOPIARIOS",3071364,"Topiario en forma de animales o frutas ",271915]
[null,null,3071365,"Topiario en bolas grandes",271915]
[null,null,3071385,"Topiario en bolas pequeñas",247163]
[null,"SUMINISTROS",3071363,"Piedras (Por m2)",28441]
[null,null,3071367,"Pino patula (Por bulto)",12614]
[null,null,3071361,"Gravilla (Por m2)",12614]
[null,null,3071386,"Muros verticales (Por m2)",390915]
[null,null,3071366,"Cascarilla (Por bulto)",12614]
[null,null,3071362,"Rocas (Por unidad)",75327]
[]
[null,"EQUIPOS"]
[null,"IMPORTANTE: Corferias cuenta con servicios técnicos adicionales para soluciones de Audio y Vídeo, contáctese con el área del PLUS de Corferias para brindarle asesoria y cotización."]
[null,"VIDEO","CODIGO","DESCRIPCIÓN DEL SERVICIO","TARIFA POR DÍA\nFERIAS 1 A 2 DÍAS","TARIFA POR DÍA\nFERIAS A PARTIR DE 3 DÍAS ","TARIFA POR FERIA \nDE 7 A 16 DÍAS "]
[null,null,3071346,"Base de Pedestal Para TV Led - LCD (No incluye instalación del equipo - ni tornillería)",42721,38913,277389]
[null,null,3071204,"TV LED o LCD de 40''+ base para pedestal (Incluye cableado) IN: USB, hdmi, rca",138992,126378,902615]
[null,null,3071206,"TV LED o LCD de 50''+ base para pedestal (Incluye cableado) IN: USB, hdmi, rca",216580,197064,1406580]
[null,null,3071279,"TV LED o LCD de 70''+ base para pedestal (Incluye cableado) IN: USB, hdmi, rca",541450,492303,3515974]
[null,null,3071222,"TV LED o LCD de 84''+ base para pedestal (Incluye cableado) IN: USB, hdmi, rca",1005550,914277,6529649]
[null,null,3071277,"TV LED o LCD de 90'' (Incluye: base de pedestal y cableado) IN: USB, hdmi, rca",1547000,1406461,10045504]
[null,null,3071261,"Pantalla TACTIL de 40'' + base de pedestal (Incluye cableado, PC portátil) IN: hdmi.",510153,463862,3312365]
[null,null,3071284,"Tablet Táctil 7 pulgadas ",85085,77469,552517]
[null,null,3071234,"Video Proyector 4500 ansi lumens - El lugar de proyección debe estar lo mas oscuro posible",386869,351645,2511376]
[null,null,3071232,"Telón de proyección (180cm x 135cm) - Frontal (colgar) - el espacio debe estar oscuro",46529,42245,301427]
[null,null,3071231,"Telón de proyección (305cm x 229cm)  Frontal & Retro - el espacio debe estar oscuro",212177,193018,1378020]
[null,null,3071292,"Circuito cerrado a 1 cámara (Digital)",1005669,914277,6529649]
[null,"AUDIO",3071348,"Micrófono inalámbrico de mano - sin operario (requiere sistema de sonido)",92820,84371,602616]
[null,null,3071349,"Micrófono inalámbrico de diadema - sin operario (requiere sistema de sonido)",92820,84371,602616]
[null,null,3070411,"Sonido de 1 a 100 personas 1 micrófono alambrico - cabineria activa",169575,154224,1101345]
[null,null,3071347,"Sonido de 100 a 200 personas 2 micrófono alambrico - cabineria activa",255374,232169,1658503]
[null,null,3071294,"Sonido de 200 a 300 personas 3 micrófono alambrico - cabineria activa",470169,427448,3052588]
[null,"SERVICIOS COMPLEMENTARIOS",3071275,"PAR LED - Luz LED multicolor decorar ambientes - espectáculos (Según  cantidad requiere dmx)",40341,36652,261205]
[null,null,3071285,"Control Mouse inalámbrico pasador de diapositivas USB con puntero laser",26656,24276,172788]
[null,null,3070534,"Operario técnico audiovisual, turno de 8 horas. Manejo de sonido básico, apoyo logístico",178024,161840,1155371]
[null,null,3071300,"Asesoría técnica en producción de eventos y/o asesoramiento técnico audiovisual (Una hora por sesión)",92939,84490,602854]
[null,null,"3071256-12","Computador portátil",92939,84490,602854]
[null,null,3071237,"Computador de escritorio",88179,80206,572866]
[null,null,3071103,"Nevera Minibar CHALLENGER 121lt",74375,56644,312970]
[]
[null,"SERVICIOS DE ASEO PARA STANDS"]
[null,"IMPORTANTE                                                                                                                                                                                                                                                                                                                                 \nCorferias pone a su disposición el servicio de Aseo para su área de exhibición, este servicio consta de Aseo general del stand (limpieza del polvo, limpieza de canecas, aspirada del tapete y retiro del material de desecho); Suministro de elementos e insumos para el aseo; Operario uniformado, identificado y con las prestaciones correspondientes de ley."]
[null,"TIPO 1","CODIGO","SERVICIO DOS VECES AL DÍA: (Una vez en la mañana y una vez en la tarde)   ","VALOR DÍA"]
[null,null,3071312,"Stands entre 9 mts² y 27 mts² (valor por dia)",19992]
[null,null,3071312,"Stands entre 28 mts² y 55 mts² (valor por dia)",27846]
[null,null,3071312,"Stands entre 56 mts² y 108 mts² (valor por dia)",41769]
[null,null,3071312,"Stands entre 109 mts² y 162 mts² (valor por dia)",67116]
[null,null,3071312,"Stands de 162mts²  en adelante se requiere de cotización previa,contactese con el área del plus de Corferias para brindarle asesoria y cotización."]
[null,null,"Nota:Para el cálculo de los metros cuadrados, por favor tener en cuenta el área total del stand, segundos niveles o mezzanines."]
[null,"TIPO 2 ","CODIGO","SERVICIO PERMANENTE 8 HORAS (Durante la feria, montaje o desmontaje)","VALOR DÍA"]
[null,null,3071312,"1 Operario - Día normal",112931]
[null,null,3071312,"1 Operario - Día festivo",166719]
[]
[null,"CORFERIAS CONECTA"]
[null,"IMPORTANTE                                                                                                                                                                                                                                                                                                                           \nServicio para ferias con contenido profesional que permite la captura de los datos de contacto registrados por los visistantes.\nEl internet configurado en la Tablet es para el uso exclusivo de la aplicación (No es de navegación).\nConsulte términos y condiciones del servicio en la página web www.corferias.com - Expositores - Servicios para expositores - Corferias Conecta"]
[null,"COMBOS","CODIGO","DESCRIPCIÓN DEL SERVICIO","VALOR FERIA"]
[null,null,3071433,"Corferias Conecta  APP (incluye el internet para un equipo)",330225]
[null,null,3071432,"Corferias Conecta  APP + Tablet con internet",436135]
[null,null,"3071431  ","Tablet adicional con internet",290717]
[null,null,"3071326  ","Internet adicional para la app por equipo",103887]

{"sheet":"TERMINOS Y CONDICIONES","index":6,"n_rows":38,"n_cols":2,"rows_kept":38,"cut":false,"hidden":false,"merged":[[37,1,37,11],[33,1,33,11],[26,1,26,11],[27,1,27,11],[28,1,28,11],[29,1,29,11],[30,1,30,11],[31,1,31,11],[32,1,32,11],[34,1,34,11],[35,1,35,11],[36,1,36,11],[25,1,25,11],[17,1,17,11],[18,1,18,11],[19,1,19,11],[20,1,20,11],[21,1,21,11],[22,1,22,11],[23,1,23,11],[24,1,24,11],[12,1,12,11],[13,1,13,11],[14,1,14,11],[15,1,15,11],[16,1,16,11],[7,1,7,11],[8,1,8,11],[9,1,9,11],[10,1,10,11],[11,1,11,11],[6,1,6,11],[1,1,1,11],[2,1,2,11],[3,1,3,11],[4,1,4,11],[5,1,5,11]]}
[]
[null,"TERMINOS Y CONDICIONES"]
[null,"Por favor verifique"]
[null,"● La cantidad de servicios según las dimensiones de su stand"]
[null,"● Viabilidad de la instalación de los servicios técnicos, escribiéndonos al correo serviciosplus@corferias.com "]
[null,"● Disponibilidad del inventario"]
[null,"Tenga en cuenta "]
[null,"● Los servicios sin cancelar no serán instalados"]
[null,"● El servicio será entregado en la medida que se encuentre un responsable\n\n"]
[null,"● Si durante la feria el servicio alquilado llega a presentar algún inconveniente, usted debe informarlo al Supervisor Logístico o al Plus para brindar la solución correspondiente"]
[null,"● La pérdida o dañ de los elementos alquilados es responsabilidad del expositor, por lo tanto, deberá asumir todos los gastos correspondientes a su reparación o reposición. "]
[null,"● Al finalizar la feria y durante los días de montaje el proveedor encargado de la entrega será quien retire los bienes y servicios alquilados."]
[null,"● Las tarifas aquí presentadas inclu la instalación, el soporte técnico y el IVA del 19%"]
[null,"Tiempo de instalación"]
[null,"● Para su comodidad, le sugerimos realizar el pago mínimo 5 días antes del inicio del montaje de la feria"]
[null,"● Los servicios pagos hasta el último día de montaje (hasta las 4:30 p.m.), serán instalados ese día."]
[null,"● Los servicios pagos a partir de las 4:30 p.m. del último día de montaje serán instalados máximo en 6 horas hábiles (8:30 a.m. – 5:30p.m.)"]
[null,"CONSIDERACIONES ADICIONALES"]
[null," SERVICIOS TÉCNICOS "]
[null,"● Recuerde que la instalación de Agua, Desagüe, Gas, Aire Comprimido y Electricidad, se hacen según especificaciones técnicas de Corferias"]
[null,"● La instalación de los servicios técnicos se debe realizar antes de la disposición y/o construcción de pisos o estructuras"]
[null,"Electricidad"]
[null,"●  Los equipos eléctricos deben estar protegidos por un estabilizador de voltaje o supresor de picos, que el expositor debe proveer. \n●  El voltaje y kilovatio suministrado es de 110V/2KW en monofásica y 208V/4KW en trifásica, (con un rango de máximo 5%), las dos con una frecuencia de    ff    60 Hz. ​ \n●  A partir de 3 kilovatios monofásicos y 4 kilovatios trifásicos se entrega una regleta plástica, el expositor es el encargado de distribuir la energía y llevarla ff   ff    hasta sus equipos. ​ \n●  La extensión tomacorriente no incluye electricidad. ​ \n●  La instalación monofásica no permite más de 2kw adicionales. ​ \n● El servicio eléctrico es deshabilitado al cierre del pabellón, si requiere del servicio permanente 24 horas, para dar suministro a frigoríficos maquinas,  holagradecemos comunicarlo al supervisor del pabellón. ​ \n●  Recuerde no sobrecargar la toma corriente eléctrica superando la capacidad de kilovatios, verifique los Watts de los equipos que desea utilizar en su stand. ​ \n  "]
[null,"Agua, desague y lavaplatos"]
[null,"● El alquiler del lavaplatos no incluye servicio de agua y desagüe. ​ \n● El valor del punto de agua este incluye consumo durante la feria. ​ \n● La instalación del Punto de agua y desagüe se realiza con manguera de ½ pulgada. ​ "]
[null,"Aire comprimido  "]
[null,"● El aire comprimido está dispuesto para un punto con presión de máximo 100PSI y caudal de 35CFM​ \n● Corferias hace entrega de una manguera de conexión hembra, el expositor realiza la conexión de esta a la maquinaria. "]
[null,"Servicio de gas "]
[null,"● Un punto de gas propano aplica solamente para un equipo con máximo 4 quemadores. ​ \n● El quemador adicional es exclusivo para equipos que superen los 4 quemadores y tiene un cobro por unidad. ​ \n● Si su equipo es una plancha para asar, horno, chimenea, entre otros; por favor enviar especificaciones técnicas (placa) y fotos de cada equipo "]
[null,"Brazo mecánico y plataforma tijera "]
[null,"● El servicio de brazo mecánico aplica para primeros niveles y el servicio de plataforma eléctrica aplica para los segundos niveles de los pabellones. ​ \n● El servicio de maquinaria no incluye instalador, ni elementos de instalación. ​ \n● Estos servicios se rentan por fracción de minutos. \n● El servicio de brazo mecánico por fracciones aplica según disponibilidad para los días y horarios oficiales de montaje y desmontaje (entre 8:00a.m. – 8:00 FFp.m.); para servicios fuera de estos horarios pude comunicarse con la oficina del PLUS para brindarle asesoría y cotización. "]
[null,"TELECOMUNICACIONES Y REDES "]
[null,"Internet básico​  "]
[null,"El servicio de internet básico ofrecido por Corferias permite navegación básica (consulta de correos y páginas web), cuenta con una red oscilante de 25MB en un ancho de banda compartido entre los expositores que adquieran el servicio. ​ \nCorferias ingresa en el equipo un PIN (Clave) valido para un equipo que permita su autenticación. ​ "]
[null,"Internet dedicado​ "]
[null,"Este servicio cuenta con una conexión simétrica y protocolo DHCP que permite una navegación compleja, servicios de streaming y aplicaciones en línea, para este servicio se destina una cantidad específica de megas como mínimo de 5MG de acuerdo a las necesidades de los expositores. ​ "]
[null,"Importante: "]
[null,"● El servicio de internet básico tiene cobertura dentro de los pabellones, no aplica en áreas libres. ​ \n● El servicio de internet cableado aplica para equipos que cuenten con un puerto de ethernet RJ45. ​ \n● El servicio de internet WIFI por su naturaleza inalámbrica puede presentar algunas intermitencias en la efectividad de su conexión. ​ \n● Los servicios de internet prestados por Corferias requieren tecnologías con Tarjeta de red de 5 Ghz y sistema operativo mínimo de Windows 10. "]